{"text_format":"3","workbook":"xlsx","n_sheets":2,"sheets":["Πρόγραμμα μαθημάτων","Λίστα μαθημάτων"],"not_rendered":{"defined_names":17},"read":"whole","date_system":"1900"}

{"sheet":"Πρόγραμμα μαθημάτων","index":0,"n_rows":56,"n_cols":9,"rows_kept":56,"merged":[[0,1,1,5],[0,8,1,8]]}
[null,"ΠΡΟΓΡΑΜΜΑ ΜΑΘΗΜΑΤΩΝ",{"$nulls":4},"ΕΝΑΡΞΗ \nΠΡΟΓΡΑΜΜΑΤΟΣ","ΧΡΟΝΙΚΟ \nΔΙΑΣΤΗΜΑ","Λίστα μαθημάτων"]
[{"$nulls":6},"08:00:00","15 ΛΕΠΤΑ"]
[null,"ΩΡΑ","ΚΥΡΙΑΚΗ","ΔΕΥΤΕΡΑ","ΤΡΙΤΗ","ΤΕΤΑΡΤΗ","ΠΕΜΠΤΗ","ΠΑΡΑΣΚΕΥΗ","ΣΑΒΒΑΤΟ"]
[null,{"$f":"ΈναρξηΧρονοδιαγράμματος","v":"08:00:00"},{"$f":"IFERROR(INDEX(ΛίσταΜαθημάτων[],MATCH(SUMPRODUCT((ΛίσταΜαθημάτων[ΗΜΕΡΑ]=ΠρόγραμμαΜαθημάτων[[#Headers],[ΚΥΡΙΑΚΗ]])*(ROUNDDOWN($B4,10)>=ROUNDDOWN(ΛίσταΜαθημάτων[ΩΡΑ ΕΝΑΡΞΗΣ],10))*($B4<=ΛίσταΜαθημάτων[ΩΡΑ ΛΗΞΗΣ]),ΛίσταΜαθημάτων[ΜΟΝΑΔΙΚΗ]),ΛίσταΜαθημάτων[ΜΟΝΑΔΙΚΗ],0),2),0)","v":0},{"$f":"IFERROR(INDEX(ΛίσταΜαθημάτων[],MATCH(SUMPRODUCT((ΛίσταΜαθημάτων[ΗΜΕΡΑ]=ΠρόγραμμαΜαθημάτων[[#Headers],[ΔΕΥΤΕΡΑ]])*(ROUNDDOWN($B4,10)>=ROUNDDOWN(ΛίσταΜαθημάτων[ΩΡΑ ΕΝΑΡΞΗΣ],10))*($B4<=ΛίσταΜαθημάτων[ΩΡΑ ΛΗΞΗΣ]),ΛίσταΜαθημάτων[ΜΟΝΑΔΙΚΗ]),ΛίσταΜαθημάτων[ΜΟΝΑΔΙΚΗ],0),2),0)","v":0},{"$f":"IFERROR(INDEX(ΛίσταΜαθημάτων[],MATCH(SUMPRODUCT((ΛίσταΜαθημάτων[ΗΜΕΡΑ]=ΠρόγραμμαΜαθημάτων[[#Headers],[ΤΡΙΤΗ]])*(ROUNDDOWN($B4,10)>=ROUNDDOWN(ΛίσταΜαθημάτων[ΩΡΑ ΕΝΑΡΞΗΣ],10))*($B4<=ΛίσταΜαθημάτων[ΩΡΑ ΛΗΞΗΣ]),ΛίσταΜαθημάτων[ΜΟΝΑΔΙΚΗ]),ΛίσταΜαθημάτων[ΜΟΝΑΔΙΚΗ],0),2),0)","v":0},{"$f":"IFERROR(INDEX(ΛίσταΜαθημάτων[],MATCH(SUMPRODUCT((ΛίσταΜαθημάτων[ΗΜΕΡΑ]=ΠρόγραμμαΜαθημάτων[[#Headers],[ΤΕΤΑΡΤΗ]])*(ROUNDDOWN($B4,10)>=ROUNDDOWN(ΛίσταΜαθημάτων[ΩΡΑ ΕΝΑΡΞΗΣ],10))*($B4<=ΛίσταΜαθημάτων[ΩΡΑ ΛΗΞΗΣ]),ΛίσταΜαθημάτων[ΜΟΝΑΔΙΚΗ]),ΛίσταΜαθημάτων[ΜΟΝΑΔΙΚΗ],0),2),0)","v":0},{"$f":"IFERROR(INDEX(ΛίσταΜαθημάτων[],MATCH(SUMPRODUCT((ΛίσταΜαθημάτων[ΗΜΕΡΑ]=ΠρόγραμμαΜαθημάτων[[#Headers],[ΠΕΜΠΤΗ]])*(ROUNDDOWN($B4,10)>=ROUNDDOWN(ΛίσταΜαθημάτων[ΩΡΑ ΕΝΑΡΞΗΣ],10))*($B4<=ΛίσταΜαθημάτων[ΩΡΑ ΛΗΞΗΣ]),ΛίσταΜαθημάτων[ΜΟΝΑΔΙΚΗ]),ΛίσταΜαθημάτων[ΜΟΝΑΔΙΚΗ],0),2),0)","v":0},{"$f":"IFERROR(INDEX(ΛίσταΜαθημάτων[],MATCH(SUMPRODUCT((ΛίσταΜαθημάτων[ΗΜΕΡΑ]=ΠρόγραμμαΜαθημάτων[[#Headers],[ΠΑΡΑΣΚΕΥΗ]])*(ROUNDDOWN($B4,10)>=ROUNDDOWN(ΛίσταΜαθημάτων[ΩΡΑ ΕΝΑΡΞΗΣ],10))*($B4<=ΛίσταΜαθημάτων[ΩΡΑ ΛΗΞΗΣ]),ΛίσταΜαθημάτων[ΜΟΝΑΔΙΚΗ]),ΛίσταΜαθημάτων[ΜΟΝΑΔΙΚΗ],0),2),0)","v":0},{"$f":"IFERROR(INDEX(ΛίσταΜαθημάτων[],MATCH(SUMPRODUCT((ΛίσταΜαθημάτων[ΗΜΕΡΑ]=ΠρόγραμμαΜαθημάτων[[#Headers],[ΣΑΒΒΑΤΟ]])*(ROUNDDOWN($B4,10)>=ROUNDDOWN(ΛίσταΜαθημάτων[ΩΡΑ ΕΝΑΡΞΗΣ],10))*($B4<=ΛίσταΜαθημάτων[ΩΡΑ ΛΗΞΗΣ]),ΛίσταΜαθημάτων[ΜΟΝΑΔΙΚΗ]),ΛίσταΜαθημάτων[ΜΟΝΑΔΙΚΗ],0),2),0)","v":0}]
[null,{"$f":"B4+Προσαύξηση","v":"08:15:00"},{"$f":"IFERROR(INDEX(ΛίσταΜαθημάτων[],MATCH(SUMPRODUCT((ΛίσταΜαθημάτων[ΗΜΕΡΑ]=ΠρόγραμμαΜαθημάτων[[#Headers],[ΚΥΡΙΑΚΗ]])*(ROUNDDOWN($B5,10)>=ROUNDDOWN(ΛίσταΜαθημάτων[ΩΡΑ ΕΝΑΡΞΗΣ],10))*($B5<=ΛίσταΜαθημάτων[ΩΡΑ ΛΗΞΗΣ]),ΛίσταΜαθημάτων[ΜΟΝΑΔΙΚΗ]),ΛίσταΜαθημάτων[ΜΟΝΑΔΙΚΗ],0),2),0)","v":0},{"$f":"IFERROR(INDEX(ΛίσταΜαθημάτων[],MATCH(SUMPRODUCT((ΛίσταΜαθημάτων[ΗΜΕΡΑ]=ΠρόγραμμαΜαθημάτων[[#Headers],[ΔΕΥΤΕΡΑ]])*(ROUNDDOWN($B5,10)>=ROUNDDOWN(ΛίσταΜαθημάτων[ΩΡΑ ΕΝΑΡΞΗΣ],10))*($B5<=ΛίσταΜαθημάτων[ΩΡΑ ΛΗΞΗΣ]),ΛίσταΜαθημάτων[ΜΟΝΑΔΙΚΗ]),ΛίσταΜαθημάτων[ΜΟΝΑΔΙΚΗ],0),2),0)","v":"MTH-113"},{"$f":"IFERROR(INDEX(ΛίσταΜαθημάτων[],MATCH(SUMPRODUCT((ΛίσταΜαθημάτων[ΗΜΕΡΑ]=ΠρόγραμμαΜαθημάτων[[#Headers],[ΤΡΙΤΗ]])*(ROUNDDOWN($B5,10)>=ROUNDDOWN(ΛίσταΜαθημάτων[ΩΡΑ ΕΝΑΡΞΗΣ],10))*($B5<=ΛίσταΜαθημάτων[ΩΡΑ ΛΗΞΗΣ]),ΛίσταΜαθημάτων[ΜΟΝΑΔΙΚΗ]),ΛίσταΜαθημάτων[ΜΟΝΑΔΙΚΗ],0),2),0)","v":0},{"$f":"IFERROR(INDEX(ΛίσταΜαθημάτων[],MATCH(SUMPRODUCT((ΛίσταΜαθημάτων[ΗΜΕΡΑ]=ΠρόγραμμαΜαθημάτων[[#Headers],[ΤΕΤΑΡΤΗ]])*(ROUNDDOWN($B5,10)>=ROUNDDOWN(ΛίσταΜαθημάτων[ΩΡΑ ΕΝΑΡΞΗΣ],10))*($B5<=ΛίσταΜαθημάτων[ΩΡΑ ΛΗΞΗΣ]),ΛίσταΜαθημάτων[ΜΟΝΑΔΙΚΗ]),ΛίσταΜαθημάτων[ΜΟΝΑΔΙΚΗ],0),2),0)","v":"MTH-113"},{"$f":"IFERROR(INDEX(ΛίσταΜαθημάτων[],MATCH(SUMPRODUCT((ΛίσταΜαθημάτων[ΗΜΕΡΑ]=ΠρόγραμμαΜαθημάτων[[#Headers],[ΠΕΜΠΤΗ]])*(ROUNDDOWN($B5,10)>=ROUNDDOWN(ΛίσταΜαθημάτων[ΩΡΑ ΕΝΑΡΞΗΣ],10))*($B5<=ΛίσταΜαθημάτων[ΩΡΑ ΛΗΞΗΣ]),ΛίσταΜαθημάτων[ΜΟΝΑΔΙΚΗ]),ΛίσταΜαθημάτων[ΜΟΝΑΔΙΚΗ],0),2),0)","v":0},{"$f":"IFERROR(INDEX(ΛίσταΜαθημάτων[],MATCH(SUMPRODUCT((ΛίσταΜαθημάτων[ΗΜΕΡΑ]=ΠρόγραμμαΜαθημάτων[[#Headers],[ΠΑΡΑΣΚΕΥΗ]])*(ROUNDDOWN($B5,10)>=ROUNDDOWN(ΛίσταΜαθημάτων[ΩΡΑ ΕΝΑΡΞΗΣ],10))*($B5<=ΛίσταΜαθημάτων[ΩΡΑ ΛΗΞΗΣ]),ΛίσταΜαθημάτων[ΜΟΝΑΔΙΚΗ]),ΛίσταΜαθημάτων[ΜΟΝΑΔΙΚΗ],0),2),0)","v":"MTH-113"},{"$f":"IFERROR(INDEX(ΛίσταΜαθημάτων[],MATCH(SUMPRODUCT((ΛίσταΜαθημάτων[ΗΜΕΡΑ]=ΠρόγραμμαΜαθημάτων[[#Headers],[ΣΑΒΒΑΤΟ]])*(ROUNDDOWN($B5,10)>=ROUNDDOWN(ΛίσταΜαθημάτων[ΩΡΑ ΕΝΑΡΞΗΣ],10))*($B5<=ΛίσταΜαθημάτων[ΩΡΑ ΛΗΞΗΣ]),ΛίσταΜαθημάτων[ΜΟΝΑΔΙΚΗ]),ΛίσταΜαθημάτων[ΜΟΝΑΔΙΚΗ],0),2),0)","v":0}]
[null,"08:30:00",{"$f":"IFERROR(INDEX(ΛίσταΜαθημάτων[],MATCH(SUMPRODUCT((ΛίσταΜαθημάτων[ΗΜΕΡΑ]=ΠρόγραμμαΜαθημάτων[[#Headers],[ΚΥΡΙΑΚΗ]])*(ROUNDDOWN($B6,10)>=ROUNDDOWN(ΛίσταΜαθημάτων[ΩΡΑ ΕΝΑΡΞΗΣ],10))*($B6<=ΛίσταΜαθημάτων[ΩΡΑ ΛΗΞΗΣ]),ΛίσταΜαθημάτων[ΜΟΝΑΔΙΚΗ]),ΛίσταΜαθημάτων[ΜΟΝΑΔΙΚΗ],0),2),0)","v":0},{"$f":"IFERROR(INDEX(ΛίσταΜαθημάτων[],MATCH(SUMPRODUCT((ΛίσταΜαθημάτων[ΗΜΕΡΑ]=ΠρόγραμμαΜαθημάτων[[#Headers],[ΔΕΥΤΕΡΑ]])*(ROUNDDOWN($B6,10)>=ROUNDDOWN(ΛίσταΜαθημάτων[ΩΡΑ ΕΝΑΡΞΗΣ],10))*($B6<=ΛίσταΜαθημάτων[ΩΡΑ ΛΗΞΗΣ]),ΛίσταΜαθημάτων[ΜΟΝΑΔΙΚΗ]),ΛίσταΜαθημάτων[ΜΟΝΑΔΙΚΗ],0),2),0)","v":"MTH-113"},{"$f":"IFERROR(INDEX(ΛίσταΜαθημάτων[],MATCH(SUMPRODUCT((ΛίσταΜαθημάτων[ΗΜΕΡΑ]=ΠρόγραμμαΜαθημάτων[[#Headers],[ΤΡΙΤΗ]])*(ROUNDDOWN($B6,10)>=ROUNDDOWN(ΛίσταΜαθημάτων[ΩΡΑ ΕΝΑΡΞΗΣ],10))*($B6<=ΛίσταΜαθημάτων[ΩΡΑ ΛΗΞΗΣ]),ΛίσταΜαθημάτων[ΜΟΝΑΔΙΚΗ]),ΛίσταΜαθημάτων[ΜΟΝΑΔΙΚΗ],0),2),0)","v":0},{"$f":"IFERROR(INDEX(ΛίσταΜαθημάτων[],MATCH(SUMPRODUCT((ΛίσταΜαθημάτων[ΗΜΕΡΑ]=ΠρόγραμμαΜαθημάτων[[#Headers],[ΤΕΤΑΡΤΗ]])*(ROUNDDOWN($B6,10)>=ROUNDDOWN(ΛίσταΜαθημάτων[ΩΡΑ ΕΝΑΡΞΗΣ],10))*($B6<=ΛίσταΜαθημάτων[ΩΡΑ ΛΗΞΗΣ]),ΛίσταΜαθημάτων[ΜΟΝΑΔΙΚΗ]),ΛίσταΜαθημάτων[ΜΟΝΑΔΙΚΗ],0),2),0)","v":"MTH-113"},{"$f":"IFERROR(INDEX(ΛίσταΜαθημάτων[],MATCH(SUMPRODUCT((ΛίσταΜαθημάτων[ΗΜΕΡΑ]=ΠρόγραμμαΜαθημάτων[[#Headers],[ΠΕΜΠΤΗ]])*(ROUNDDOWN($B6,10)>=ROUNDDOWN(ΛίσταΜαθημάτων[ΩΡΑ ΕΝΑΡΞΗΣ],10))*($B6<=ΛίσταΜαθημάτων[ΩΡΑ ΛΗΞΗΣ]),ΛίσταΜαθημάτων[ΜΟΝΑΔΙΚΗ]),ΛίσταΜαθημάτων[ΜΟΝΑΔΙΚΗ],0),2),0)","v":0},{"$f":"IFERROR(INDEX(ΛίσταΜαθημάτων[],MATCH(SUMPRODUCT((ΛίσταΜαθημάτων[ΗΜΕΡΑ]=ΠρόγραμμαΜαθημάτων[[#Headers],[ΠΑΡΑΣΚΕΥΗ]])*(ROUNDDOWN($B6,10)>=ROUNDDOWN(ΛίσταΜαθημάτων[ΩΡΑ ΕΝΑΡΞΗΣ],10))*($B6<=ΛίσταΜαθημάτων[ΩΡΑ ΛΗΞΗΣ]),ΛίσταΜαθημάτων[ΜΟΝΑΔΙΚΗ]),ΛίσταΜαθημάτων[ΜΟΝΑΔΙΚΗ],0),2),0)","v":"MTH-113"},{"$f":"IFERROR(INDEX(ΛίσταΜαθημάτων[],MATCH(SUMPRODUCT((ΛίσταΜαθημάτων[ΗΜΕΡΑ]=ΠρόγραμμαΜαθημάτων[[#Headers],[ΣΑΒΒΑΤΟ]])*(ROUNDDOWN($B6,10)>=ROUNDDOWN(ΛίσταΜαθημάτων[ΩΡΑ ΕΝΑΡΞΗΣ],10))*($B6<=ΛίσταΜαθημάτων[ΩΡΑ ΛΗΞΗΣ]),ΛίσταΜαθημάτων[ΜΟΝΑΔΙΚΗ]),ΛίσταΜαθημάτων[ΜΟΝΑΔΙΚΗ],0),2),0)","v":0}]
[null,"08:45:00",{"$f":"IFERROR(INDEX(ΛίσταΜαθημάτων[],MATCH(SUMPRODUCT((ΛίσταΜαθημάτων[ΗΜΕΡΑ]=ΠρόγραμμαΜαθημάτων[[#Headers],[ΚΥΡΙΑΚΗ]])*(ROUNDDOWN($B7,10)>=ROUNDDOWN(ΛίσταΜαθημάτων[ΩΡΑ ΕΝΑΡΞΗΣ],10))*($B7<=ΛίσταΜαθημάτων[ΩΡΑ ΛΗΞΗΣ]),ΛίσταΜαθημάτων[ΜΟΝΑΔΙΚΗ]),ΛίσταΜαθημάτων[ΜΟΝΑΔΙΚΗ],0),2),0)","v":0},{"$f":"IFERROR(INDEX(ΛίσταΜαθημάτων[],MATCH(SUMPRODUCT((ΛίσταΜαθημάτων[ΗΜΕΡΑ]=ΠρόγραμμαΜαθημάτων[[#Headers],[ΔΕΥΤΕΡΑ]])*(ROUNDDOWN($B7,10)>=ROUNDDOWN(ΛίσταΜαθημάτων[ΩΡΑ ΕΝΑΡΞΗΣ],10))*($B7<=ΛίσταΜαθημάτων[ΩΡΑ ΛΗΞΗΣ]),ΛίσταΜαθημάτων[ΜΟΝΑΔΙΚΗ]),ΛίσταΜαθημάτων[ΜΟΝΑΔΙΚΗ],0),2),0)","v":"MTH-113"},{"$f":"IFERROR(INDEX(ΛίσταΜαθημάτων[],MATCH(SUMPRODUCT((ΛίσταΜαθημάτων[ΗΜΕΡΑ]=ΠρόγραμμαΜαθημάτων[[#Headers],[ΤΡΙΤΗ]])*(ROUNDDOWN($B7,10)>=ROUNDDOWN(ΛίσταΜαθημάτων[ΩΡΑ ΕΝΑΡΞΗΣ],10))*($B7<=ΛίσταΜαθημάτων[ΩΡΑ ΛΗΞΗΣ]),ΛίσταΜαθημάτων[ΜΟΝΑΔΙΚΗ]),ΛίσταΜαθημάτων[ΜΟΝΑΔΙΚΗ],0),2),0)","v":0},{"$f":"IFERROR(INDEX(ΛίσταΜαθημάτων[],MATCH(SUMPRODUCT((ΛίσταΜαθημάτων[ΗΜΕΡΑ]=ΠρόγραμμαΜαθημάτων[[#Headers],[ΤΕΤΑΡΤΗ]])*(ROUNDDOWN($B7,10)>=ROUNDDOWN(ΛίσταΜαθημάτων[ΩΡΑ ΕΝΑΡΞΗΣ],10))*($B7<=ΛίσταΜαθημάτων[ΩΡΑ ΛΗΞΗΣ]),ΛίσταΜαθημάτων[ΜΟΝΑΔΙΚΗ]),ΛίσταΜαθημάτων[ΜΟΝΑΔΙΚΗ],0),2),0)","v":"MTH-113"},{"$f":"IFERROR(INDEX(ΛίσταΜαθημάτων[],MATCH(SUMPRODUCT((ΛίσταΜαθημάτων[ΗΜΕΡΑ]=ΠρόγραμμαΜαθημάτων[[#Headers],[ΠΕΜΠΤΗ]])*(ROUNDDOWN($B7,10)>=ROUNDDOWN(ΛίσταΜαθημάτων[ΩΡΑ ΕΝΑΡΞΗΣ],10))*($B7<=ΛίσταΜαθημάτων[ΩΡΑ ΛΗΞΗΣ]),ΛίσταΜαθημάτων[ΜΟΝΑΔΙΚΗ]),ΛίσταΜαθημάτων[ΜΟΝΑΔΙΚΗ],0),2),0)","v":0},{"$f":"IFERROR(INDEX(ΛίσταΜαθημάτων[],MATCH(SUMPRODUCT((ΛίσταΜαθημάτων[ΗΜΕΡΑ]=ΠρόγραμμαΜαθημάτων[[#Headers],[ΠΑΡΑΣΚΕΥΗ]])*(ROUNDDOWN($B7,10)>=ROUNDDOWN(ΛίσταΜαθημάτων[ΩΡΑ ΕΝΑΡΞΗΣ],10))*($B7<=ΛίσταΜαθημάτων[ΩΡΑ ΛΗΞΗΣ]),ΛίσταΜαθημάτων[ΜΟΝΑΔΙΚΗ]),ΛίσταΜαθημάτων[ΜΟΝΑΔΙΚΗ],0),2),0)","v":"MTH-113"},{"$f":"IFERROR(INDEX(ΛίσταΜαθημάτων[],MATCH(SUMPRODUCT((ΛίσταΜαθημάτων[ΗΜΕΡΑ]=ΠρόγραμμαΜαθημάτων[[#Headers],[ΣΑΒΒΑΤΟ]])*(ROUNDDOWN($B7,10)>=ROUNDDOWN(ΛίσταΜαθημάτων[ΩΡΑ ΕΝΑΡΞΗΣ],10))*($B7<=ΛίσταΜαθημάτων[ΩΡΑ ΛΗΞΗΣ]),ΛίσταΜαθημάτων[ΜΟΝΑΔΙΚΗ]),ΛίσταΜαθημάτων[ΜΟΝΑΔΙΚΗ],0),2),0)","v":0}]
[null,"09:00:00",{"$f":"IFERROR(INDEX(ΛίσταΜαθημάτων[],MATCH(SUMPRODUCT((ΛίσταΜαθημάτων[ΗΜΕΡΑ]=ΠρόγραμμαΜαθημάτων[[#Headers],[ΚΥΡΙΑΚΗ]])*(ROUNDDOWN($B8,10)>=ROUNDDOWN(ΛίσταΜαθημάτων[ΩΡΑ ΕΝΑΡΞΗΣ],10))*($B8<=ΛίσταΜαθημάτων[ΩΡΑ ΛΗΞΗΣ]),ΛίσταΜαθημάτων[ΜΟΝΑΔΙΚΗ]),ΛίσταΜαθημάτων[ΜΟΝΑΔΙΚΗ],0),2),0)","v":0},{"$f":"IFERROR(INDEX(ΛίσταΜαθημάτων[],MATCH(SUMPRODUCT((ΛίσταΜαθημάτων[ΗΜΕΡΑ]=ΠρόγραμμαΜαθημάτων[[#Headers],[ΔΕΥΤΕΡΑ]])*(ROUNDDOWN($B8,10)>=ROUNDDOWN(ΛίσταΜαθημάτων[ΩΡΑ ΕΝΑΡΞΗΣ],10))*($B8<=ΛίσταΜαθημάτων[ΩΡΑ ΛΗΞΗΣ]),ΛίσταΜαθημάτων[ΜΟΝΑΔΙΚΗ]),ΛίσταΜαθημάτων[ΜΟΝΑΔΙΚΗ],0),2),0)","v":"MTH-113"},{"$f":"IFERROR(INDEX(ΛίσταΜαθημάτων[],MATCH(SUMPRODUCT((ΛίσταΜαθημάτων[ΗΜΕΡΑ]=ΠρόγραμμαΜαθημάτων[[#Headers],[ΤΡΙΤΗ]])*(ROUNDDOWN($B8,10)>=ROUNDDOWN(ΛίσταΜαθημάτων[ΩΡΑ ΕΝΑΡΞΗΣ],10))*($B8<=ΛίσταΜαθημάτων[ΩΡΑ ΛΗΞΗΣ]),ΛίσταΜαθημάτων[ΜΟΝΑΔΙΚΗ]),ΛίσταΜαθημάτων[ΜΟΝΑΔΙΚΗ],0),2),0)","v":0},{"$f":"IFERROR(INDEX(ΛίσταΜαθημάτων[],MATCH(SUMPRODUCT((ΛίσταΜαθημάτων[ΗΜΕΡΑ]=ΠρόγραμμαΜαθημάτων[[#Headers],[ΤΕΤΑΡΤΗ]])*(ROUNDDOWN($B8,10)>=ROUNDDOWN(ΛίσταΜαθημάτων[ΩΡΑ ΕΝΑΡΞΗΣ],10))*($B8<=ΛίσταΜαθημάτων[ΩΡΑ ΛΗΞΗΣ]),ΛίσταΜαθημάτων[ΜΟΝΑΔΙΚΗ]),ΛίσταΜαθημάτων[ΜΟΝΑΔΙΚΗ],0),2),0)","v":"MTH-113"},{"$f":"IFERROR(INDEX(ΛίσταΜαθημάτων[],MATCH(SUMPRODUCT((ΛίσταΜαθημάτων[ΗΜΕΡΑ]=ΠρόγραμμαΜαθημάτων[[#Headers],[ΠΕΜΠΤΗ]])*(ROUNDDOWN($B8,10)>=ROUNDDOWN(ΛίσταΜαθημάτων[ΩΡΑ ΕΝΑΡΞΗΣ],10))*($B8<=ΛίσταΜαθημάτων[ΩΡΑ ΛΗΞΗΣ]),ΛίσταΜαθημάτων[ΜΟΝΑΔΙΚΗ]),ΛίσταΜαθημάτων[ΜΟΝΑΔΙΚΗ],0),2),0)","v":0},{"$f":"IFERROR(INDEX(ΛίσταΜαθημάτων[],MATCH(SUMPRODUCT((ΛίσταΜαθημάτων[ΗΜΕΡΑ]=ΠρόγραμμαΜαθημάτων[[#Headers],[ΠΑΡΑΣΚΕΥΗ]])*(ROUNDDOWN($B8,10)>=ROUNDDOWN(ΛίσταΜαθημάτων[ΩΡΑ ΕΝΑΡΞΗΣ],10))*($B8<=ΛίσταΜαθημάτων[ΩΡΑ ΛΗΞΗΣ]),ΛίσταΜαθημάτων[ΜΟΝΑΔΙΚΗ]),ΛίσταΜαθημάτων[ΜΟΝΑΔΙΚΗ],0),2),0)","v":"MTH-113"},{"$f":"IFERROR(INDEX(ΛίσταΜαθημάτων[],MATCH(SUMPRODUCT((ΛίσταΜαθημάτων[ΗΜΕΡΑ]=ΠρόγραμμαΜαθημάτων[[#Headers],[ΣΑΒΒΑΤΟ]])*(ROUNDDOWN($B8,10)>=ROUNDDOWN(ΛίσταΜαθημάτων[ΩΡΑ ΕΝΑΡΞΗΣ],10))*($B8<=ΛίσταΜαθημάτων[ΩΡΑ ΛΗΞΗΣ]),ΛίσταΜαθημάτων[ΜΟΝΑΔΙΚΗ]),ΛίσταΜαθημάτων[ΜΟΝΑΔΙΚΗ],0),2),0)","v":0}]
[null,{"$f":"B8+Προσαύξηση","v":"09:15:00"},{"$f":"IFERROR(INDEX(ΛίσταΜαθημάτων[],MATCH(SUMPRODUCT((ΛίσταΜαθημάτων[ΗΜΕΡΑ]=ΠρόγραμμαΜαθημάτων[[#Headers],[ΚΥΡΙΑΚΗ]])*(ROUNDDOWN($B9,10)>=ROUNDDOWN(ΛίσταΜαθημάτων[ΩΡΑ ΕΝΑΡΞΗΣ],10))*($B9<=ΛίσταΜαθημάτων[ΩΡΑ ΛΗΞΗΣ]),ΛίσταΜαθημάτων[ΜΟΝΑΔΙΚΗ]),ΛίσταΜαθημάτων[ΜΟΝΑΔΙΚΗ],0),2),0)","v":0},{"$f":"IFERROR(INDEX(ΛίσταΜαθημάτων[],MATCH(SUMPRODUCT((ΛίσταΜαθημάτων[ΗΜΕΡΑ]=ΠρόγραμμαΜαθημάτων[[#Headers],[ΔΕΥΤΕΡΑ]])*(ROUNDDOWN($B9,10)>=ROUNDDOWN(ΛίσταΜαθημάτων[ΩΡΑ ΕΝΑΡΞΗΣ],10))*($B9<=ΛίσταΜαθημάτων[ΩΡΑ ΛΗΞΗΣ]),ΛίσταΜαθημάτων[ΜΟΝΑΔΙΚΗ]),ΛίσταΜαθημάτων[ΜΟΝΑΔΙΚΗ],0),2),0)","v":"MTH-113"},{"$f":"IFERROR(INDEX(ΛίσταΜαθημάτων[],MATCH(SUMPRODUCT((ΛίσταΜαθημάτων[ΗΜΕΡΑ]=ΠρόγραμμαΜαθημάτων[[#Headers],[ΤΡΙΤΗ]])*(ROUNDDOWN($B9,10)>=ROUNDDOWN(ΛίσταΜαθημάτων[ΩΡΑ ΕΝΑΡΞΗΣ],10))*($B9<=ΛίσταΜαθημάτων[ΩΡΑ ΛΗΞΗΣ]),ΛίσταΜαθημάτων[ΜΟΝΑΔΙΚΗ]),ΛίσταΜαθημάτων[ΜΟΝΑΔΙΚΗ],0),2),0)","v":0},{"$f":"IFERROR(INDEX(ΛίσταΜαθημάτων[],MATCH(SUMPRODUCT((ΛίσταΜαθημάτων[ΗΜΕΡΑ]=ΠρόγραμμαΜαθημάτων[[#Headers],[ΤΕΤΑΡΤΗ]])*(ROUNDDOWN($B9,10)>=ROUNDDOWN(ΛίσταΜαθημάτων[ΩΡΑ ΕΝΑΡΞΗΣ],10))*($B9<=ΛίσταΜαθημάτων[ΩΡΑ ΛΗΞΗΣ]),ΛίσταΜαθημάτων[ΜΟΝΑΔΙΚΗ]),ΛίσταΜαθημάτων[ΜΟΝΑΔΙΚΗ],0),2),0)","v":"MTH-113"},{"$f":"IFERROR(INDEX(ΛίσταΜαθημάτων[],MATCH(SUMPRODUCT((ΛίσταΜαθημάτων[ΗΜΕΡΑ]=ΠρόγραμμαΜαθημάτων[[#Headers],[ΠΕΜΠΤΗ]])*(ROUNDDOWN($B9,10)>=ROUNDDOWN(ΛίσταΜαθημάτων[ΩΡΑ ΕΝΑΡΞΗΣ],10))*($B9<=ΛίσταΜαθημάτων[ΩΡΑ ΛΗΞΗΣ]),ΛίσταΜαθημάτων[ΜΟΝΑΔΙΚΗ]),ΛίσταΜαθημάτων[ΜΟΝΑΔΙΚΗ],0),2),0)","v":0},{"$f":"IFERROR(INDEX(ΛίσταΜαθημάτων[],MATCH(SUMPRODUCT((ΛίσταΜαθημάτων[ΗΜΕΡΑ]=ΠρόγραμμαΜαθημάτων[[#Headers],[ΠΑΡΑΣΚΕΥΗ]])*(ROUNDDOWN($B9,10)>=ROUNDDOWN(ΛίσταΜαθημάτων[ΩΡΑ ΕΝΑΡΞΗΣ],10))*($B9<=ΛίσταΜαθημάτων[ΩΡΑ ΛΗΞΗΣ]),ΛίσταΜαθημάτων[ΜΟΝΑΔΙΚΗ]),ΛίσταΜαθημάτων[ΜΟΝΑΔΙΚΗ],0),2),0)","v":"MTH-113"},{"$f":"IFERROR(INDEX(ΛίσταΜαθημάτων[],MATCH(SUMPRODUCT((ΛίσταΜαθημάτων[ΗΜΕΡΑ]=ΠρόγραμμαΜαθημάτων[[#Headers],[ΣΑΒΒΑΤΟ]])*(ROUNDDOWN($B9,10)>=ROUNDDOWN(ΛίσταΜαθημάτων[ΩΡΑ ΕΝΑΡΞΗΣ],10))*($B9<=ΛίσταΜαθημάτων[ΩΡΑ ΛΗΞΗΣ]),ΛίσταΜαθημάτων[ΜΟΝΑΔΙΚΗ]),ΛίσταΜαθημάτων[ΜΟΝΑΔΙΚΗ],0),2),0)","v":0}]
[null,"09:30:00",{"$f":"IFERROR(INDEX(ΛίσταΜαθημάτων[],MATCH(SUMPRODUCT((ΛίσταΜαθημάτων[ΗΜΕΡΑ]=ΠρόγραμμαΜαθημάτων[[#Headers],[ΚΥΡΙΑΚΗ]])*(ROUNDDOWN($B10,10)>=ROUNDDOWN(ΛίσταΜαθημάτων[ΩΡΑ ΕΝΑΡΞΗΣ],10))*($B10<=ΛίσταΜαθημάτων[ΩΡΑ ΛΗΞΗΣ]),ΛίσταΜαθημάτων[ΜΟΝΑΔΙΚΗ]),ΛίσταΜαθημάτων[ΜΟΝΑΔΙΚΗ],0),2),0)","v":0},{"$f":"IFERROR(INDEX(ΛίσταΜαθημάτων[],MATCH(SUMPRODUCT((ΛίσταΜαθημάτων[ΗΜΕΡΑ]=ΠρόγραμμαΜαθημάτων[[#Headers],[ΔΕΥΤΕΡΑ]])*(ROUNDDOWN($B10,10)>=ROUNDDOWN(ΛίσταΜαθημάτων[ΩΡΑ ΕΝΑΡΞΗΣ],10))*($B10<=ΛίσταΜαθημάτων[ΩΡΑ ΛΗΞΗΣ]),ΛίσταΜαθημάτων[ΜΟΝΑΔΙΚΗ]),ΛίσταΜαθημάτων[ΜΟΝΑΔΙΚΗ],0),2),0)","v":0},{"$f":"IFERROR(INDEX(ΛίσταΜαθημάτων[],MATCH(SUMPRODUCT((ΛίσταΜαθημάτων[ΗΜΕΡΑ]=ΠρόγραμμαΜαθημάτων[[#Headers],[ΤΡΙΤΗ]])*(ROUNDDOWN($B10,10)>=ROUNDDOWN(ΛίσταΜαθημάτων[ΩΡΑ ΕΝΑΡΞΗΣ],10))*($B10<=ΛίσταΜαθημάτων[ΩΡΑ ΛΗΞΗΣ]),ΛίσταΜαθημάτων[ΜΟΝΑΔΙΚΗ]),ΛίσταΜαθημάτων[ΜΟΝΑΔΙΚΗ],0),2),0)","v":0},{"$f":"IFERROR(INDEX(ΛίσταΜαθημάτων[],MATCH(SUMPRODUCT((ΛίσταΜαθημάτων[ΗΜΕΡΑ]=ΠρόγραμμαΜαθημάτων[[#Headers],[ΤΕΤΑΡΤΗ]])*(ROUNDDOWN($B10,10)>=ROUNDDOWN(ΛίσταΜαθημάτων[ΩΡΑ ΕΝΑΡΞΗΣ],10))*($B10<=ΛίσταΜαθημάτων[ΩΡΑ ΛΗΞΗΣ]),ΛίσταΜαθημάτων[ΜΟΝΑΔΙΚΗ]),ΛίσταΜαθημάτων[ΜΟΝΑΔΙΚΗ],0),2),0)","v":0},{"$f":"IFERROR(INDEX(ΛίσταΜαθημάτων[],MATCH(SUMPRODUCT((ΛίσταΜαθημάτων[ΗΜΕΡΑ]=ΠρόγραμμαΜαθημάτων[[#Headers],[ΠΕΜΠΤΗ]])*(ROUNDDOWN($B10,10)>=ROUNDDOWN(ΛίσταΜαθημάτων[ΩΡΑ ΕΝΑΡΞΗΣ],10))*($B10<=ΛίσταΜαθημάτων[ΩΡΑ ΛΗΞΗΣ]),ΛίσταΜαθημάτων[ΜΟΝΑΔΙΚΗ]),ΛίσταΜαθημάτων[ΜΟΝΑΔΙΚΗ],0),2),0)","v":0},{"$f":"IFERROR(INDEX(ΛίσταΜαθημάτων[],MATCH(SUMPRODUCT((ΛίσταΜαθημάτων[ΗΜΕΡΑ]=ΠρόγραμμαΜαθημάτων[[#Headers],[ΠΑΡΑΣΚΕΥΗ]])*(ROUNDDOWN($B10,10)>=ROUNDDOWN(ΛίσταΜαθημάτων[ΩΡΑ ΕΝΑΡΞΗΣ],10))*($B10<=ΛίσταΜαθημάτων[ΩΡΑ ΛΗΞΗΣ]),ΛίσταΜαθημάτων[ΜΟΝΑΔΙΚΗ]),ΛίσταΜαθημάτων[ΜΟΝΑΔΙΚΗ],0),2),0)","v":0},{"$f":"IFERROR(INDEX(ΛίσταΜαθημάτων[],MATCH(SUMPRODUCT((ΛίσταΜαθημάτων[ΗΜΕΡΑ]=ΠρόγραμμαΜαθημάτων[[#Headers],[ΣΑΒΒΑΤΟ]])*(ROUNDDOWN($B10,10)>=ROUNDDOWN(ΛίσταΜαθημάτων[ΩΡΑ ΕΝΑΡΞΗΣ],10))*($B10<=ΛίσταΜαθημάτων[ΩΡΑ ΛΗΞΗΣ]),ΛίσταΜαθημάτων[ΜΟΝΑΔΙΚΗ]),ΛίσταΜαθημάτων[ΜΟΝΑΔΙΚΗ],0),2),0)","v":0}]
[null,"09:45:00",{"$f":"IFERROR(INDEX(ΛίσταΜαθημάτων[],MATCH(SUMPRODUCT((ΛίσταΜαθημάτων[ΗΜΕΡΑ]=ΠρόγραμμαΜαθημάτων[[#Headers],[ΚΥΡΙΑΚΗ]])*(ROUNDDOWN($B11,10)>=ROUNDDOWN(ΛίσταΜαθημάτων[ΩΡΑ ΕΝΑΡΞΗΣ],10))*($B11<=ΛίσταΜαθημάτων[ΩΡΑ ΛΗΞΗΣ]),ΛίσταΜαθημάτων[ΜΟΝΑΔΙΚΗ]),ΛίσταΜαθημάτων[ΜΟΝΑΔΙΚΗ],0),2),0)","v":0},{"$f":"IFERROR(INDEX(ΛίσταΜαθημάτων[],MATCH(SUMPRODUCT((ΛίσταΜαθημάτων[ΗΜΕΡΑ]=ΠρόγραμμαΜαθημάτων[[#Headers],[ΔΕΥΤΕΡΑ]])*(ROUNDDOWN($B11,10)>=ROUNDDOWN(ΛίσταΜαθημάτων[ΩΡΑ ΕΝΑΡΞΗΣ],10))*($B11<=ΛίσταΜαθημάτων[ΩΡΑ ΛΗΞΗΣ]),ΛίσταΜαθημάτων[ΜΟΝΑΔΙΚΗ]),ΛίσταΜαθημάτων[ΜΟΝΑΔΙΚΗ],0),2),0)","v":0},{"$f":"IFERROR(INDEX(ΛίσταΜαθημάτων[],MATCH(SUMPRODUCT((ΛίσταΜαθημάτων[ΗΜΕΡΑ]=ΠρόγραμμαΜαθημάτων[[#Headers],[ΤΡΙΤΗ]])*(ROUNDDOWN($B11,10)>=ROUNDDOWN(ΛίσταΜαθημάτων[ΩΡΑ ΕΝΑΡΞΗΣ],10))*($B11<=ΛίσταΜαθημάτων[ΩΡΑ ΛΗΞΗΣ]),ΛίσταΜαθημάτων[ΜΟΝΑΔΙΚΗ]),ΛίσταΜαθημάτων[ΜΟΝΑΔΙΚΗ],0),2),0)","v":0},{"$f":"IFERROR(INDEX(ΛίσταΜαθημάτων[],MATCH(SUMPRODUCT((ΛίσταΜαθημάτων[ΗΜΕΡΑ]=ΠρόγραμμαΜαθημάτων[[#Headers],[ΤΕΤΑΡΤΗ]])*(ROUNDDOWN($B11,10)>=ROUNDDOWN(ΛίσταΜαθημάτων[ΩΡΑ ΕΝΑΡΞΗΣ],10))*($B11<=ΛίσταΜαθημάτων[ΩΡΑ ΛΗΞΗΣ]),ΛίσταΜαθημάτων[ΜΟΝΑΔΙΚΗ]),ΛίσταΜαθημάτων[ΜΟΝΑΔΙΚΗ],0),2),0)","v":0},{"$f":"IFERROR(INDEX(ΛίσταΜαθημάτων[],MATCH(SUMPRODUCT((ΛίσταΜαθημάτων[ΗΜΕΡΑ]=ΠρόγραμμαΜαθημάτων[[#Headers],[ΠΕΜΠΤΗ]])*(ROUNDDOWN($B11,10)>=ROUNDDOWN(ΛίσταΜαθημάτων[ΩΡΑ ΕΝΑΡΞΗΣ],10))*($B11<=ΛίσταΜαθημάτων[ΩΡΑ ΛΗΞΗΣ]),ΛίσταΜαθημάτων[ΜΟΝΑΔΙΚΗ]),ΛίσταΜαθημάτων[ΜΟΝΑΔΙΚΗ],0),2),0)","v":0},{"$f":"IFERROR(INDEX(ΛίσταΜαθημάτων[],MATCH(SUMPRODUCT((ΛίσταΜαθημάτων[ΗΜΕΡΑ]=ΠρόγραμμαΜαθημάτων[[#Headers],[ΠΑΡΑΣΚΕΥΗ]])*(ROUNDDOWN($B11,10)>=ROUNDDOWN(ΛίσταΜαθημάτων[ΩΡΑ ΕΝΑΡΞΗΣ],10))*($B11<=ΛίσταΜαθημάτων[ΩΡΑ ΛΗΞΗΣ]),ΛίσταΜαθημάτων[ΜΟΝΑΔΙΚΗ]),ΛίσταΜαθημάτων[ΜΟΝΑΔΙΚΗ],0),2),0)","v":0},{"$f":"IFERROR(INDEX(ΛίσταΜαθημάτων[],MATCH(SUMPRODUCT((ΛίσταΜαθημάτων[ΗΜΕΡΑ]=ΠρόγραμμαΜαθημάτων[[#Headers],[ΣΑΒΒΑΤΟ]])*(ROUNDDOWN($B11,10)>=ROUNDDOWN(ΛίσταΜαθημάτων[ΩΡΑ ΕΝΑΡΞΗΣ],10))*($B11<=ΛίσταΜαθημάτων[ΩΡΑ ΛΗΞΗΣ]),ΛίσταΜαθημάτων[ΜΟΝΑΔΙΚΗ]),ΛίσταΜαθημάτων[ΜΟΝΑΔΙΚΗ],0),2),0)","v":0}]
[null,"10:00:00",{"$f":"IFERROR(INDEX(ΛίσταΜαθημάτων[],MATCH(SUMPRODUCT((ΛίσταΜαθημάτων[ΗΜΕΡΑ]=ΠρόγραμμαΜαθημάτων[[#Headers],[ΚΥΡΙΑΚΗ]])*(ROUNDDOWN($B12,10)>=ROUNDDOWN(ΛίσταΜαθημάτων[ΩΡΑ ΕΝΑΡΞΗΣ],10))*($B12<=ΛίσταΜαθημάτων[ΩΡΑ ΛΗΞΗΣ]),ΛίσταΜαθημάτων[ΜΟΝΑΔΙΚΗ]),ΛίσταΜαθημάτων[ΜΟΝΑΔΙΚΗ],0),2),0)","v":0},{"$f":"IFERROR(INDEX(ΛίσταΜαθημάτων[],MATCH(SUMPRODUCT((ΛίσταΜαθημάτων[ΗΜΕΡΑ]=ΠρόγραμμαΜαθημάτων[[#Headers],[ΔΕΥΤΕΡΑ]])*(ROUNDDOWN($B12,10)>=ROUNDDOWN(ΛίσταΜαθημάτων[ΩΡΑ ΕΝΑΡΞΗΣ],10))*($B12<=ΛίσταΜαθημάτων[ΩΡΑ ΛΗΞΗΣ]),ΛίσταΜαθημάτων[ΜΟΝΑΔΙΚΗ]),ΛίσταΜαθημάτων[ΜΟΝΑΔΙΚΗ],0),2),0)","v":0},{"$f":"IFERROR(INDEX(ΛίσταΜαθημάτων[],MATCH(SUMPRODUCT((ΛίσταΜαθημάτων[ΗΜΕΡΑ]=ΠρόγραμμαΜαθημάτων[[#Headers],[ΤΡΙΤΗ]])*(ROUNDDOWN($B12,10)>=ROUNDDOWN(ΛίσταΜαθημάτων[ΩΡΑ ΕΝΑΡΞΗΣ],10))*($B12<=ΛίσταΜαθημάτων[ΩΡΑ ΛΗΞΗΣ]),ΛίσταΜαθημάτων[ΜΟΝΑΔΙΚΗ]),ΛίσταΜαθημάτων[ΜΟΝΑΔΙΚΗ],0),2),0)","v":0},{"$f":"IFERROR(INDEX(ΛίσταΜαθημάτων[],MATCH(SUMPRODUCT((ΛίσταΜαθημάτων[ΗΜΕΡΑ]=ΠρόγραμμαΜαθημάτων[[#Headers],[ΤΕΤΑΡΤΗ]])*(ROUNDDOWN($B12,10)>=ROUNDDOWN(ΛίσταΜαθημάτων[ΩΡΑ ΕΝΑΡΞΗΣ],10))*($B12<=ΛίσταΜαθημάτων[ΩΡΑ ΛΗΞΗΣ]),ΛίσταΜαθημάτων[ΜΟΝΑΔΙΚΗ]),ΛίσταΜαθημάτων[ΜΟΝΑΔΙΚΗ],0),2),0)","v":0},{"$f":"IFERROR(INDEX(ΛίσταΜαθημάτων[],MATCH(SUMPRODUCT((ΛίσταΜαθημάτων[ΗΜΕΡΑ]=ΠρόγραμμαΜαθημάτων[[#Headers],[ΠΕΜΠΤΗ]])*(ROUNDDOWN($B12,10)>=ROUNDDOWN(ΛίσταΜαθημάτων[ΩΡΑ ΕΝΑΡΞΗΣ],10))*($B12<=ΛίσταΜαθημάτων[ΩΡΑ ΛΗΞΗΣ]),ΛίσταΜαθημάτων[ΜΟΝΑΔΙΚΗ]),ΛίσταΜαθημάτων[ΜΟΝΑΔΙΚΗ],0),2),0)","v":0},{"$f":"IFERROR(INDEX(ΛίσταΜαθημάτων[],MATCH(SUMPRODUCT((ΛίσταΜαθημάτων[ΗΜΕΡΑ]=ΠρόγραμμαΜαθημάτων[[#Headers],[ΠΑΡΑΣΚΕΥΗ]])*(ROUNDDOWN($B12,10)>=ROUNDDOWN(ΛίσταΜαθημάτων[ΩΡΑ ΕΝΑΡΞΗΣ],10))*($B12<=ΛίσταΜαθημάτων[ΩΡΑ ΛΗΞΗΣ]),ΛίσταΜαθημάτων[ΜΟΝΑΔΙΚΗ]),ΛίσταΜαθημάτων[ΜΟΝΑΔΙΚΗ],0),2),0)","v":0},{"$f":"IFERROR(INDEX(ΛίσταΜαθημάτων[],MATCH(SUMPRODUCT((ΛίσταΜαθημάτων[ΗΜΕΡΑ]=ΠρόγραμμαΜαθημάτων[[#Headers],[ΣΑΒΒΑΤΟ]])*(ROUNDDOWN($B12,10)>=ROUNDDOWN(ΛίσταΜαθημάτων[ΩΡΑ ΕΝΑΡΞΗΣ],10))*($B12<=ΛίσταΜαθημάτων[ΩΡΑ ΛΗΞΗΣ]),ΛίσταΜαθημάτων[ΜΟΝΑΔΙΚΗ]),ΛίσταΜαθημάτων[ΜΟΝΑΔΙΚΗ],0),2),0)","v":0}]
[null,"10:15:00",{"$f":"IFERROR(INDEX(ΛίσταΜαθημάτων[],MATCH(SUMPRODUCT((ΛίσταΜαθημάτων[ΗΜΕΡΑ]=ΠρόγραμμαΜαθημάτων[[#Headers],[ΚΥΡΙΑΚΗ]])*(ROUNDDOWN($B13,10)>=ROUNDDOWN(ΛίσταΜαθημάτων[ΩΡΑ ΕΝΑΡΞΗΣ],10))*($B13<=ΛίσταΜαθημάτων[ΩΡΑ ΛΗΞΗΣ]),ΛίσταΜαθημάτων[ΜΟΝΑΔΙΚΗ]),ΛίσταΜαθημάτων[ΜΟΝΑΔΙΚΗ],0),2),0)","v":0},{"$f":"IFERROR(INDEX(ΛίσταΜαθημάτων[],MATCH(SUMPRODUCT((ΛίσταΜαθημάτων[ΗΜΕΡΑ]=ΠρόγραμμαΜαθημάτων[[#Headers],[ΔΕΥΤΕΡΑ]])*(ROUNDDOWN($B13,10)>=ROUNDDOWN(ΛίσταΜαθημάτων[ΩΡΑ ΕΝΑΡΞΗΣ],10))*($B13<=ΛίσταΜαθημάτων[ΩΡΑ ΛΗΞΗΣ]),ΛίσταΜαθημάτων[ΜΟΝΑΔΙΚΗ]),ΛίσταΜαθημάτων[ΜΟΝΑΔΙΚΗ],0),2),0)","v":0},{"$f":"IFERROR(INDEX(ΛίσταΜαθημάτων[],MATCH(SUMPRODUCT((ΛίσταΜαθημάτων[ΗΜΕΡΑ]=ΠρόγραμμαΜαθημάτων[[#Headers],[ΤΡΙΤΗ]])*(ROUNDDOWN($B13,10)>=ROUNDDOWN(ΛίσταΜαθημάτων[ΩΡΑ ΕΝΑΡΞΗΣ],10))*($B13<=ΛίσταΜαθημάτων[ΩΡΑ ΛΗΞΗΣ]),ΛίσταΜαθημάτων[ΜΟΝΑΔΙΚΗ]),ΛίσταΜαθημάτων[ΜΟΝΑΔΙΚΗ],0),2),0)","v":0},{"$f":"IFERROR(INDEX(ΛίσταΜαθημάτων[],MATCH(SUMPRODUCT((ΛίσταΜαθημάτων[ΗΜΕΡΑ]=ΠρόγραμμαΜαθημάτων[[#Headers],[ΤΕΤΑΡΤΗ]])*(ROUNDDOWN($B13,10)>=ROUNDDOWN(ΛίσταΜαθημάτων[ΩΡΑ ΕΝΑΡΞΗΣ],10))*($B13<=ΛίσταΜαθημάτων[ΩΡΑ ΛΗΞΗΣ]),ΛίσταΜαθημάτων[ΜΟΝΑΔΙΚΗ]),ΛίσταΜαθημάτων[ΜΟΝΑΔΙΚΗ],0),2),0)","v":0},{"$f":"IFERROR(INDEX(ΛίσταΜαθημάτων[],MATCH(SUMPRODUCT((ΛίσταΜαθημάτων[ΗΜΕΡΑ]=ΠρόγραμμαΜαθημάτων[[#Headers],[ΠΕΜΠΤΗ]])*(ROUNDDOWN($B13,10)>=ROUNDDOWN(ΛίσταΜαθημάτων[ΩΡΑ ΕΝΑΡΞΗΣ],10))*($B13<=ΛίσταΜαθημάτων[ΩΡΑ ΛΗΞΗΣ]),ΛίσταΜαθημάτων[ΜΟΝΑΔΙΚΗ]),ΛίσταΜαθημάτων[ΜΟΝΑΔΙΚΗ],0),2),0)","v":0},{"$f":"IFERROR(INDEX(ΛίσταΜαθημάτων[],MATCH(SUMPRODUCT((ΛίσταΜαθημάτων[ΗΜΕΡΑ]=ΠρόγραμμαΜαθημάτων[[#Headers],[ΠΑΡΑΣΚΕΥΗ]])*(ROUNDDOWN($B13,10)>=ROUNDDOWN(ΛίσταΜαθημάτων[ΩΡΑ ΕΝΑΡΞΗΣ],10))*($B13<=ΛίσταΜαθημάτων[ΩΡΑ ΛΗΞΗΣ]),ΛίσταΜαθημάτων[ΜΟΝΑΔΙΚΗ]),ΛίσταΜαθημάτων[ΜΟΝΑΔΙΚΗ],0),2),0)","v":0},{"$f":"IFERROR(INDEX(ΛίσταΜαθημάτων[],MATCH(SUMPRODUCT((ΛίσταΜαθημάτων[ΗΜΕΡΑ]=ΠρόγραμμαΜαθημάτων[[#Headers],[ΣΑΒΒΑΤΟ]])*(ROUNDDOWN($B13,10)>=ROUNDDOWN(ΛίσταΜαθημάτων[ΩΡΑ ΕΝΑΡΞΗΣ],10))*($B13<=ΛίσταΜαθημάτων[ΩΡΑ ΛΗΞΗΣ]),ΛίσταΜαθημάτων[ΜΟΝΑΔΙΚΗ]),ΛίσταΜαθημάτων[ΜΟΝΑΔΙΚΗ],0),2),0)","v":0}]
[null,"10:30:00",{"$f":"IFERROR(INDEX(ΛίσταΜαθημάτων[],MATCH(SUMPRODUCT((ΛίσταΜαθημάτων[ΗΜΕΡΑ]=ΠρόγραμμαΜαθημάτων[[#Headers],[ΚΥΡΙΑΚΗ]])*(ROUNDDOWN($B14,10)>=ROUNDDOWN(ΛίσταΜαθημάτων[ΩΡΑ ΕΝΑΡΞΗΣ],10))*($B14<=ΛίσταΜαθημάτων[ΩΡΑ ΛΗΞΗΣ]),ΛίσταΜαθημάτων[ΜΟΝΑΔΙΚΗ]),ΛίσταΜαθημάτων[ΜΟΝΑΔΙΚΗ],0),2),0)","v":0},{"$f":"IFERROR(INDEX(ΛίσταΜαθημάτων[],MATCH(SUMPRODUCT((ΛίσταΜαθημάτων[ΗΜΕΡΑ]=ΠρόγραμμαΜαθημάτων[[#Headers],[ΔΕΥΤΕΡΑ]])*(ROUNDDOWN($B14,10)>=ROUNDDOWN(ΛίσταΜαθημάτων[ΩΡΑ ΕΝΑΡΞΗΣ],10))*($B14<=ΛίσταΜαθημάτων[ΩΡΑ ΛΗΞΗΣ]),ΛίσταΜαθημάτων[ΜΟΝΑΔΙΚΗ]),ΛίσταΜαθημάτων[ΜΟΝΑΔΙΚΗ],0),2),0)","v":0},{"$f":"IFERROR(INDEX(ΛίσταΜαθημάτων[],MATCH(SUMPRODUCT((ΛίσταΜαθημάτων[ΗΜΕΡΑ]=ΠρόγραμμαΜαθημάτων[[#Headers],[ΤΡΙΤΗ]])*(ROUNDDOWN($B14,10)>=ROUNDDOWN(ΛίσταΜαθημάτων[ΩΡΑ ΕΝΑΡΞΗΣ],10))*($B14<=ΛίσταΜαθημάτων[ΩΡΑ ΛΗΞΗΣ]),ΛίσταΜαθημάτων[ΜΟΝΑΔΙΚΗ]),ΛίσταΜαθημάτων[ΜΟΝΑΔΙΚΗ],0),2),0)","v":0},{"$f":"IFERROR(INDEX(ΛίσταΜαθημάτων[],MATCH(SUMPRODUCT((ΛίσταΜαθημάτων[ΗΜΕΡΑ]=ΠρόγραμμαΜαθημάτων[[#Headers],[ΤΕΤΑΡΤΗ]])*(ROUNDDOWN($B14,10)>=ROUNDDOWN(ΛίσταΜαθημάτων[ΩΡΑ ΕΝΑΡΞΗΣ],10))*($B14<=ΛίσταΜαθημάτων[ΩΡΑ ΛΗΞΗΣ]),ΛίσταΜαθημάτων[ΜΟΝΑΔΙΚΗ]),ΛίσταΜαθημάτων[ΜΟΝΑΔΙΚΗ],0),2),0)","v":0},{"$f":"IFERROR(INDEX(ΛίσταΜαθημάτων[],MATCH(SUMPRODUCT((ΛίσταΜαθημάτων[ΗΜΕΡΑ]=ΠρόγραμμαΜαθημάτων[[#Headers],[ΠΕΜΠΤΗ]])*(ROUNDDOWN($B14,10)>=ROUNDDOWN(ΛίσταΜαθημάτων[ΩΡΑ ΕΝΑΡΞΗΣ],10))*($B14<=ΛίσταΜαθημάτων[ΩΡΑ ΛΗΞΗΣ]),ΛίσταΜαθημάτων[ΜΟΝΑΔΙΚΗ]),ΛίσταΜαθημάτων[ΜΟΝΑΔΙΚΗ],0),2),0)","v":0},{"$f":"IFERROR(INDEX(ΛίσταΜαθημάτων[],MATCH(SUMPRODUCT((ΛίσταΜαθημάτων[ΗΜΕΡΑ]=ΠρόγραμμαΜαθημάτων[[#Headers],[ΠΑΡΑΣΚΕΥΗ]])*(ROUNDDOWN($B14,10)>=ROUNDDOWN(ΛίσταΜαθημάτων[ΩΡΑ ΕΝΑΡΞΗΣ],10))*($B14<=ΛίσταΜαθημάτων[ΩΡΑ ΛΗΞΗΣ]),ΛίσταΜαθημάτων[ΜΟΝΑΔΙΚΗ]),ΛίσταΜαθημάτων[ΜΟΝΑΔΙΚΗ],0),2),0)","v":0},{"$f":"IFERROR(INDEX(ΛίσταΜαθημάτων[],MATCH(SUMPRODUCT((ΛίσταΜαθημάτων[ΗΜΕΡΑ]=ΠρόγραμμαΜαθημάτων[[#Headers],[ΣΑΒΒΑΤΟ]])*(ROUNDDOWN($B14,10)>=ROUNDDOWN(ΛίσταΜαθημάτων[ΩΡΑ ΕΝΑΡΞΗΣ],10))*($B14<=ΛίσταΜαθημάτων[ΩΡΑ ΛΗΞΗΣ]),ΛίσταΜαθημάτων[ΜΟΝΑΔΙΚΗ]),ΛίσταΜαθημάτων[ΜΟΝΑΔΙΚΗ],0),2),0)","v":0}]
[null,"10:45:00",{"$f":"IFERROR(INDEX(ΛίσταΜαθημάτων[],MATCH(SUMPRODUCT((ΛίσταΜαθημάτων[ΗΜΕΡΑ]=ΠρόγραμμαΜαθημάτων[[#Headers],[ΚΥΡΙΑΚΗ]])*(ROUNDDOWN($B15,10)>=ROUNDDOWN(ΛίσταΜαθημάτων[ΩΡΑ ΕΝΑΡΞΗΣ],10))*($B15<=ΛίσταΜαθημάτων[ΩΡΑ ΛΗΞΗΣ]),ΛίσταΜαθημάτων[ΜΟΝΑΔΙΚΗ]),ΛίσταΜαθημάτων[ΜΟΝΑΔΙΚΗ],0),2),0)","v":0},{"$f":"IFERROR(INDEX(ΛίσταΜαθημάτων[],MATCH(SUMPRODUCT((ΛίσταΜαθημάτων[ΗΜΕΡΑ]=ΠρόγραμμαΜαθημάτων[[#Headers],[ΔΕΥΤΕΡΑ]])*(ROUNDDOWN($B15,10)>=ROUNDDOWN(ΛίσταΜαθημάτων[ΩΡΑ ΕΝΑΡΞΗΣ],10))*($B15<=ΛίσταΜαθημάτων[ΩΡΑ ΛΗΞΗΣ]),ΛίσταΜαθημάτων[ΜΟΝΑΔΙΚΗ]),ΛίσταΜαθημάτων[ΜΟΝΑΔΙΚΗ],0),2),0)","v":0},{"$f":"IFERROR(INDEX(ΛίσταΜαθημάτων[],MATCH(SUMPRODUCT((ΛίσταΜαθημάτων[ΗΜΕΡΑ]=ΠρόγραμμαΜαθημάτων[[#Headers],[ΤΡΙΤΗ]])*(ROUNDDOWN($B15,10)>=ROUNDDOWN(ΛίσταΜαθημάτων[ΩΡΑ ΕΝΑΡΞΗΣ],10))*($B15<=ΛίσταΜαθημάτων[ΩΡΑ ΛΗΞΗΣ]),ΛίσταΜαθημάτων[ΜΟΝΑΔΙΚΗ]),ΛίσταΜαθημάτων[ΜΟΝΑΔΙΚΗ],0),2),0)","v":0},{"$f":"IFERROR(INDEX(ΛίσταΜαθημάτων[],MATCH(SUMPRODUCT((ΛίσταΜαθημάτων[ΗΜΕΡΑ]=ΠρόγραμμαΜαθημάτων[[#Headers],[ΤΕΤΑΡΤΗ]])*(ROUNDDOWN($B15,10)>=ROUNDDOWN(ΛίσταΜαθημάτων[ΩΡΑ ΕΝΑΡΞΗΣ],10))*($B15<=ΛίσταΜαθημάτων[ΩΡΑ ΛΗΞΗΣ]),ΛίσταΜαθημάτων[ΜΟΝΑΔΙΚΗ]),ΛίσταΜαθημάτων[ΜΟΝΑΔΙΚΗ],0),2),0)","v":0},{"$f":"IFERROR(INDEX(ΛίσταΜαθημάτων[],MATCH(SUMPRODUCT((ΛίσταΜαθημάτων[ΗΜΕΡΑ]=ΠρόγραμμαΜαθημάτων[[#Headers],[ΠΕΜΠΤΗ]])*(ROUNDDOWN($B15,10)>=ROUNDDOWN(ΛίσταΜαθημάτων[ΩΡΑ ΕΝΑΡΞΗΣ],10))*($B15<=ΛίσταΜαθημάτων[ΩΡΑ ΛΗΞΗΣ]),ΛίσταΜαθημάτων[ΜΟΝΑΔΙΚΗ]),ΛίσταΜαθημάτων[ΜΟΝΑΔΙΚΗ],0),2),0)","v":0},{"$f":"IFERROR(INDEX(ΛίσταΜαθημάτων[],MATCH(SUMPRODUCT((ΛίσταΜαθημάτων[ΗΜΕΡΑ]=ΠρόγραμμαΜαθημάτων[[#Headers],[ΠΑΡΑΣΚΕΥΗ]])*(ROUNDDOWN($B15,10)>=ROUNDDOWN(ΛίσταΜαθημάτων[ΩΡΑ ΕΝΑΡΞΗΣ],10))*($B15<=ΛίσταΜαθημάτων[ΩΡΑ ΛΗΞΗΣ]),ΛίσταΜαθημάτων[ΜΟΝΑΔΙΚΗ]),ΛίσταΜαθημάτων[ΜΟΝΑΔΙΚΗ],0),2),0)","v":0},{"$f":"IFERROR(INDEX(ΛίσταΜαθημάτων[],MATCH(SUMPRODUCT((ΛίσταΜαθημάτων[ΗΜΕΡΑ]=ΠρόγραμμαΜαθημάτων[[#Headers],[ΣΑΒΒΑΤΟ]])*(ROUNDDOWN($B15,10)>=ROUNDDOWN(ΛίσταΜαθημάτων[ΩΡΑ ΕΝΑΡΞΗΣ],10))*($B15<=ΛίσταΜαθημάτων[ΩΡΑ ΛΗΞΗΣ]),ΛίσταΜαθημάτων[ΜΟΝΑΔΙΚΗ]),ΛίσταΜαθημάτων[ΜΟΝΑΔΙΚΗ],0),2),0)","v":0}]
[null,"11:00:00",{"$f":"IFERROR(INDEX(ΛίσταΜαθημάτων[],MATCH(SUMPRODUCT((ΛίσταΜαθημάτων[ΗΜΕΡΑ]=ΠρόγραμμαΜαθημάτων[[#Headers],[ΚΥΡΙΑΚΗ]])*(ROUNDDOWN($B16,10)>=ROUNDDOWN(ΛίσταΜαθημάτων[ΩΡΑ ΕΝΑΡΞΗΣ],10))*($B16<=ΛίσταΜαθημάτων[ΩΡΑ ΛΗΞΗΣ]),ΛίσταΜαθημάτων[ΜΟΝΑΔΙΚΗ]),ΛίσταΜαθημάτων[ΜΟΝΑΔΙΚΗ],0),2),0)","v":0},{"$f":"IFERROR(INDEX(ΛίσταΜαθημάτων[],MATCH(SUMPRODUCT((ΛίσταΜαθημάτων[ΗΜΕΡΑ]=ΠρόγραμμαΜαθημάτων[[#Headers],[ΔΕΥΤΕΡΑ]])*(ROUNDDOWN($B16,10)>=ROUNDDOWN(ΛίσταΜαθημάτων[ΩΡΑ ΕΝΑΡΞΗΣ],10))*($B16<=ΛίσταΜαθημάτων[ΩΡΑ ΛΗΞΗΣ]),ΛίσταΜαθημάτων[ΜΟΝΑΔΙΚΗ]),ΛίσταΜαθημάτων[ΜΟΝΑΔΙΚΗ],0),2),0)","v":0},{"$f":"IFERROR(INDEX(ΛίσταΜαθημάτων[],MATCH(SUMPRODUCT((ΛίσταΜαθημάτων[ΗΜΕΡΑ]=ΠρόγραμμαΜαθημάτων[[#Headers],[ΤΡΙΤΗ]])*(ROUNDDOWN($B16,10)>=ROUNDDOWN(ΛίσταΜαθημάτων[ΩΡΑ ΕΝΑΡΞΗΣ],10))*($B16<=ΛίσταΜαθημάτων[ΩΡΑ ΛΗΞΗΣ]),ΛίσταΜαθημάτων[ΜΟΝΑΔΙΚΗ]),ΛίσταΜαθημάτων[ΜΟΝΑΔΙΚΗ],0),2),0)","v":"HPE-295"},{"$f":"IFERROR(INDEX(ΛίσταΜαθημάτων[],MATCH(SUMPRODUCT((ΛίσταΜαθημάτων[ΗΜΕΡΑ]=ΠρόγραμμαΜαθημάτων[[#Headers],[ΤΕΤΑΡΤΗ]])*(ROUNDDOWN($B16,10)>=ROUNDDOWN(ΛίσταΜαθημάτων[ΩΡΑ ΕΝΑΡΞΗΣ],10))*($B16<=ΛίσταΜαθημάτων[ΩΡΑ ΛΗΞΗΣ]),ΛίσταΜαθημάτων[ΜΟΝΑΔΙΚΗ]),ΛίσταΜαθημάτων[ΜΟΝΑΔΙΚΗ],0),2),0)","v":0},{"$f":"IFERROR(INDEX(ΛίσταΜαθημάτων[],MATCH(SUMPRODUCT((ΛίσταΜαθημάτων[ΗΜΕΡΑ]=ΠρόγραμμαΜαθημάτων[[#Headers],[ΠΕΜΠΤΗ]])*(ROUNDDOWN($B16,10)>=ROUNDDOWN(ΛίσταΜαθημάτων[ΩΡΑ ΕΝΑΡΞΗΣ],10))*($B16<=ΛίσταΜαθημάτων[ΩΡΑ ΛΗΞΗΣ]),ΛίσταΜαθημάτων[ΜΟΝΑΔΙΚΗ]),ΛίσταΜαθημάτων[ΜΟΝΑΔΙΚΗ],0),2),0)","v":"HPE-295"},{"$f":"IFERROR(INDEX(ΛίσταΜαθημάτων[],MATCH(SUMPRODUCT((ΛίσταΜαθημάτων[ΗΜΕΡΑ]=ΠρόγραμμαΜαθημάτων[[#Headers],[ΠΑΡΑΣΚΕΥΗ]])*(ROUNDDOWN($B16,10)>=ROUNDDOWN(ΛίσταΜαθημάτων[ΩΡΑ ΕΝΑΡΞΗΣ],10))*($B16<=ΛίσταΜαθημάτων[ΩΡΑ ΛΗΞΗΣ]),ΛίσταΜαθημάτων[ΜΟΝΑΔΙΚΗ]),ΛίσταΜαθημάτων[ΜΟΝΑΔΙΚΗ],0),2),0)","v":0},{"$f":"IFERROR(INDEX(ΛίσταΜαθημάτων[],MATCH(SUMPRODUCT((ΛίσταΜαθημάτων[ΗΜΕΡΑ]=ΠρόγραμμαΜαθημάτων[[#Headers],[ΣΑΒΒΑΤΟ]])*(ROUNDDOWN($B16,10)>=ROUNDDOWN(ΛίσταΜαθημάτων[ΩΡΑ ΕΝΑΡΞΗΣ],10))*($B16<=ΛίσταΜαθημάτων[ΩΡΑ ΛΗΞΗΣ]),ΛίσταΜαθημάτων[ΜΟΝΑΔΙΚΗ]),ΛίσταΜαθημάτων[ΜΟΝΑΔΙΚΗ],0),2),0)","v":0}]
[null,"11:15:00",{"$f":"IFERROR(INDEX(ΛίσταΜαθημάτων[],MATCH(SUMPRODUCT((ΛίσταΜαθημάτων[ΗΜΕΡΑ]=ΠρόγραμμαΜαθημάτων[[#Headers],[ΚΥΡΙΑΚΗ]])*(ROUNDDOWN($B17,10)>=ROUNDDOWN(ΛίσταΜαθημάτων[ΩΡΑ ΕΝΑΡΞΗΣ],10))*($B17<=ΛίσταΜαθημάτων[ΩΡΑ ΛΗΞΗΣ]),ΛίσταΜαθημάτων[ΜΟΝΑΔΙΚΗ]),ΛίσταΜαθημάτων[ΜΟΝΑΔΙΚΗ],0),2),0)","v":0},{"$f":"IFERROR(INDEX(ΛίσταΜαθημάτων[],MATCH(SUMPRODUCT((ΛίσταΜαθημάτων[ΗΜΕΡΑ]=ΠρόγραμμαΜαθημάτων[[#Headers],[ΔΕΥΤΕΡΑ]])*(ROUNDDOWN($B17,10)>=ROUNDDOWN(ΛίσταΜαθημάτων[ΩΡΑ ΕΝΑΡΞΗΣ],10))*($B17<=ΛίσταΜαθημάτων[ΩΡΑ ΛΗΞΗΣ]),ΛίσταΜαθημάτων[ΜΟΝΑΔΙΚΗ]),ΛίσταΜαθημάτων[ΜΟΝΑΔΙΚΗ],0),2),0)","v":0},{"$f":"IFERROR(INDEX(ΛίσταΜαθημάτων[],MATCH(SUMPRODUCT((ΛίσταΜαθημάτων[ΗΜΕΡΑ]=ΠρόγραμμαΜαθημάτων[[#Headers],[ΤΡΙΤΗ]])*(ROUNDDOWN($B17,10)>=ROUNDDOWN(ΛίσταΜαθημάτων[ΩΡΑ ΕΝΑΡΞΗΣ],10))*($B17<=ΛίσταΜαθημάτων[ΩΡΑ ΛΗΞΗΣ]),ΛίσταΜαθημάτων[ΜΟΝΑΔΙΚΗ]),ΛίσταΜαθημάτων[ΜΟΝΑΔΙΚΗ],0),2),0)","v":"HPE-295"},{"$f":"IFERROR(INDEX(ΛίσταΜαθημάτων[],MATCH(SUMPRODUCT((ΛίσταΜαθημάτων[ΗΜΕΡΑ]=ΠρόγραμμαΜαθημάτων[[#Headers],[ΤΕΤΑΡΤΗ]])*(ROUNDDOWN($B17,10)>=ROUNDDOWN(ΛίσταΜαθημάτων[ΩΡΑ ΕΝΑΡΞΗΣ],10))*($B17<=ΛίσταΜαθημάτων[ΩΡΑ ΛΗΞΗΣ]),ΛίσταΜαθημάτων[ΜΟΝΑΔΙΚΗ]),ΛίσταΜαθημάτων[ΜΟΝΑΔΙΚΗ],0),2),0)","v":0},{"$f":"IFERROR(INDEX(ΛίσταΜαθημάτων[],MATCH(SUMPRODUCT((ΛίσταΜαθημάτων[ΗΜΕΡΑ]=ΠρόγραμμαΜαθημάτων[[#Headers],[ΠΕΜΠΤΗ]])*(ROUNDDOWN($B17,10)>=ROUNDDOWN(ΛίσταΜαθημάτων[ΩΡΑ ΕΝΑΡΞΗΣ],10))*($B17<=ΛίσταΜαθημάτων[ΩΡΑ ΛΗΞΗΣ]),ΛίσταΜαθημάτων[ΜΟΝΑΔΙΚΗ]),ΛίσταΜαθημάτων[ΜΟΝΑΔΙΚΗ],0),2),0)","v":"HPE-295"},{"$f":"IFERROR(INDEX(ΛίσταΜαθημάτων[],MATCH(SUMPRODUCT((ΛίσταΜαθημάτων[ΗΜΕΡΑ]=ΠρόγραμμαΜαθημάτων[[#Headers],[ΠΑΡΑΣΚΕΥΗ]])*(ROUNDDOWN($B17,10)>=ROUNDDOWN(ΛίσταΜαθημάτων[ΩΡΑ ΕΝΑΡΞΗΣ],10))*($B17<=ΛίσταΜαθημάτων[ΩΡΑ ΛΗΞΗΣ]),ΛίσταΜαθημάτων[ΜΟΝΑΔΙΚΗ]),ΛίσταΜαθημάτων[ΜΟΝΑΔΙΚΗ],0),2),0)","v":0},{"$f":"IFERROR(INDEX(ΛίσταΜαθημάτων[],MATCH(SUMPRODUCT((ΛίσταΜαθημάτων[ΗΜΕΡΑ]=ΠρόγραμμαΜαθημάτων[[#Headers],[ΣΑΒΒΑΤΟ]])*(ROUNDDOWN($B17,10)>=ROUNDDOWN(ΛίσταΜαθημάτων[ΩΡΑ ΕΝΑΡΞΗΣ],10))*($B17<=ΛίσταΜαθημάτων[ΩΡΑ ΛΗΞΗΣ]),ΛίσταΜαθημάτων[ΜΟΝΑΔΙΚΗ]),ΛίσταΜαθημάτων[ΜΟΝΑΔΙΚΗ],0),2),0)","v":0}]
[null,"11:30:00",{"$f":"IFERROR(INDEX(ΛίσταΜαθημάτων[],MATCH(SUMPRODUCT((ΛίσταΜαθημάτων[ΗΜΕΡΑ]=ΠρόγραμμαΜαθημάτων[[#Headers],[ΚΥΡΙΑΚΗ]])*(ROUNDDOWN($B18,10)>=ROUNDDOWN(ΛίσταΜαθημάτων[ΩΡΑ ΕΝΑΡΞΗΣ],10))*($B18<=ΛίσταΜαθημάτων[ΩΡΑ ΛΗΞΗΣ]),ΛίσταΜαθημάτων[ΜΟΝΑΔΙΚΗ]),ΛίσταΜαθημάτων[ΜΟΝΑΔΙΚΗ],0),2),0)","v":0},{"$f":"IFERROR(INDEX(ΛίσταΜαθημάτων[],MATCH(SUMPRODUCT((ΛίσταΜαθημάτων[ΗΜΕΡΑ]=ΠρόγραμμαΜαθημάτων[[#Headers],[ΔΕΥΤΕΡΑ]])*(ROUNDDOWN($B18,10)>=ROUNDDOWN(ΛίσταΜαθημάτων[ΩΡΑ ΕΝΑΡΞΗΣ],10))*($B18<=ΛίσταΜαθημάτων[ΩΡΑ ΛΗΞΗΣ]),ΛίσταΜαθημάτων[ΜΟΝΑΔΙΚΗ]),ΛίσταΜαθημάτων[ΜΟΝΑΔΙΚΗ],0),2),0)","v":0},{"$f":"IFERROR(INDEX(ΛίσταΜαθημάτων[],MATCH(SUMPRODUCT((ΛίσταΜαθημάτων[ΗΜΕΡΑ]=ΠρόγραμμαΜαθημάτων[[#Headers],[ΤΡΙΤΗ]])*(ROUNDDOWN($B18,10)>=ROUNDDOWN(ΛίσταΜαθημάτων[ΩΡΑ ΕΝΑΡΞΗΣ],10))*($B18<=ΛίσταΜαθημάτων[ΩΡΑ ΛΗΞΗΣ]),ΛίσταΜαθημάτων[ΜΟΝΑΔΙΚΗ]),ΛίσταΜαθημάτων[ΜΟΝΑΔΙΚΗ],0),2),0)","v":"HPE-295"},{"$f":"IFERROR(INDEX(ΛίσταΜαθημάτων[],MATCH(SUMPRODUCT((ΛίσταΜαθημάτων[ΗΜΕΡΑ]=ΠρόγραμμαΜαθημάτων[[#Headers],[ΤΕΤΑΡΤΗ]])*(ROUNDDOWN($B18,10)>=ROUNDDOWN(ΛίσταΜαθημάτων[ΩΡΑ ΕΝΑΡΞΗΣ],10))*($B18<=ΛίσταΜαθημάτων[ΩΡΑ ΛΗΞΗΣ]),ΛίσταΜαθημάτων[ΜΟΝΑΔΙΚΗ]),ΛίσταΜαθημάτων[ΜΟΝΑΔΙΚΗ],0),2),0)","v":0},{"$f":"IFERROR(INDEX(ΛίσταΜαθημάτων[],MATCH(SUMPRODUCT((ΛίσταΜαθημάτων[ΗΜΕΡΑ]=ΠρόγραμμαΜαθημάτων[[#Headers],[ΠΕΜΠΤΗ]])*(ROUNDDOWN($B18,10)>=ROUNDDOWN(ΛίσταΜαθημάτων[ΩΡΑ ΕΝΑΡΞΗΣ],10))*($B18<=ΛίσταΜαθημάτων[ΩΡΑ ΛΗΞΗΣ]),ΛίσταΜαθημάτων[ΜΟΝΑΔΙΚΗ]),ΛίσταΜαθημάτων[ΜΟΝΑΔΙΚΗ],0),2),0)","v":"HPE-295"},{"$f":"IFERROR(INDEX(ΛίσταΜαθημάτων[],MATCH(SUMPRODUCT((ΛίσταΜαθημάτων[ΗΜΕΡΑ]=ΠρόγραμμαΜαθημάτων[[#Headers],[ΠΑΡΑΣΚΕΥΗ]])*(ROUNDDOWN($B18,10)>=ROUNDDOWN(ΛίσταΜαθημάτων[ΩΡΑ ΕΝΑΡΞΗΣ],10))*($B18<=ΛίσταΜαθημάτων[ΩΡΑ ΛΗΞΗΣ]),ΛίσταΜαθημάτων[ΜΟΝΑΔΙΚΗ]),ΛίσταΜαθημάτων[ΜΟΝΑΔΙΚΗ],0),2),0)","v":0},{"$f":"IFERROR(INDEX(ΛίσταΜαθημάτων[],MATCH(SUMPRODUCT((ΛίσταΜαθημάτων[ΗΜΕΡΑ]=ΠρόγραμμαΜαθημάτων[[#Headers],[ΣΑΒΒΑΤΟ]])*(ROUNDDOWN($B18,10)>=ROUNDDOWN(ΛίσταΜαθημάτων[ΩΡΑ ΕΝΑΡΞΗΣ],10))*($B18<=ΛίσταΜαθημάτων[ΩΡΑ ΛΗΞΗΣ]),ΛίσταΜαθημάτων[ΜΟΝΑΔΙΚΗ]),ΛίσταΜαθημάτων[ΜΟΝΑΔΙΚΗ],0),2),0)","v":0}]
[null,"11:45:00",{"$f":"IFERROR(INDEX(ΛίσταΜαθημάτων[],MATCH(SUMPRODUCT((ΛίσταΜαθημάτων[ΗΜΕΡΑ]=ΠρόγραμμαΜαθημάτων[[#Headers],[ΚΥΡΙΑΚΗ]])*(ROUNDDOWN($B19,10)>=ROUNDDOWN(ΛίσταΜαθημάτων[ΩΡΑ ΕΝΑΡΞΗΣ],10))*($B19<=ΛίσταΜαθημάτων[ΩΡΑ ΛΗΞΗΣ]),ΛίσταΜαθημάτων[ΜΟΝΑΔΙΚΗ]),ΛίσταΜαθημάτων[ΜΟΝΑΔΙΚΗ],0),2),0)","v":0},{"$f":"IFERROR(INDEX(ΛίσταΜαθημάτων[],MATCH(SUMPRODUCT((ΛίσταΜαθημάτων[ΗΜΕΡΑ]=ΠρόγραμμαΜαθημάτων[[#Headers],[ΔΕΥΤΕΡΑ]])*(ROUNDDOWN($B19,10)>=ROUNDDOWN(ΛίσταΜαθημάτων[ΩΡΑ ΕΝΑΡΞΗΣ],10))*($B19<=ΛίσταΜαθημάτων[ΩΡΑ ΛΗΞΗΣ]),ΛίσταΜαθημάτων[ΜΟΝΑΔΙΚΗ]),ΛίσταΜαθημάτων[ΜΟΝΑΔΙΚΗ],0),2),0)","v":0},{"$f":"IFERROR(INDEX(ΛίσταΜαθημάτων[],MATCH(SUMPRODUCT((ΛίσταΜαθημάτων[ΗΜΕΡΑ]=ΠρόγραμμαΜαθημάτων[[#Headers],[ΤΡΙΤΗ]])*(ROUNDDOWN($B19,10)>=ROUNDDOWN(ΛίσταΜαθημάτων[ΩΡΑ ΕΝΑΡΞΗΣ],10))*($B19<=ΛίσταΜαθημάτων[ΩΡΑ ΛΗΞΗΣ]),ΛίσταΜαθημάτων[ΜΟΝΑΔΙΚΗ]),ΛίσταΜαθημάτων[ΜΟΝΑΔΙΚΗ],0),2),0)","v":"HPE-295"},{"$f":"IFERROR(INDEX(ΛίσταΜαθημάτων[],MATCH(SUMPRODUCT((ΛίσταΜαθημάτων[ΗΜΕΡΑ]=ΠρόγραμμαΜαθημάτων[[#Headers],[ΤΕΤΑΡΤΗ]])*(ROUNDDOWN($B19,10)>=ROUNDDOWN(ΛίσταΜαθημάτων[ΩΡΑ ΕΝΑΡΞΗΣ],10))*($B19<=ΛίσταΜαθημάτων[ΩΡΑ ΛΗΞΗΣ]),ΛίσταΜαθημάτων[ΜΟΝΑΔΙΚΗ]),ΛίσταΜαθημάτων[ΜΟΝΑΔΙΚΗ],0),2),0)","v":0},{"$f":"IFERROR(INDEX(ΛίσταΜαθημάτων[],MATCH(SUMPRODUCT((ΛίσταΜαθημάτων[ΗΜΕΡΑ]=ΠρόγραμμαΜαθημάτων[[#Headers],[ΠΕΜΠΤΗ]])*(ROUNDDOWN($B19,10)>=ROUNDDOWN(ΛίσταΜαθημάτων[ΩΡΑ ΕΝΑΡΞΗΣ],10))*($B19<=ΛίσταΜαθημάτων[ΩΡΑ ΛΗΞΗΣ]),ΛίσταΜαθημάτων[ΜΟΝΑΔΙΚΗ]),ΛίσταΜαθημάτων[ΜΟΝΑΔΙΚΗ],0),2),0)","v":"HPE-295"},{"$f":"IFERROR(INDEX(ΛίσταΜαθημάτων[],MATCH(SUMPRODUCT((ΛίσταΜαθημάτων[ΗΜΕΡΑ]=ΠρόγραμμαΜαθημάτων[[#Headers],[ΠΑΡΑΣΚΕΥΗ]])*(ROUNDDOWN($B19,10)>=ROUNDDOWN(ΛίσταΜαθημάτων[ΩΡΑ ΕΝΑΡΞΗΣ],10))*($B19<=ΛίσταΜαθημάτων[ΩΡΑ ΛΗΞΗΣ]),ΛίσταΜαθημάτων[ΜΟΝΑΔΙΚΗ]),ΛίσταΜαθημάτων[ΜΟΝΑΔΙΚΗ],0),2),0)","v":0},{"$f":"IFERROR(INDEX(ΛίσταΜαθημάτων[],MATCH(SUMPRODUCT((ΛίσταΜαθημάτων[ΗΜΕΡΑ]=ΠρόγραμμαΜαθημάτων[[#Headers],[ΣΑΒΒΑΤΟ]])*(ROUNDDOWN($B19,10)>=ROUNDDOWN(ΛίσταΜαθημάτων[ΩΡΑ ΕΝΑΡΞΗΣ],10))*($B19<=ΛίσταΜαθημάτων[ΩΡΑ ΛΗΞΗΣ]),ΛίσταΜαθημάτων[ΜΟΝΑΔΙΚΗ]),ΛίσταΜαθημάτων[ΜΟΝΑΔΙΚΗ],0),2),0)","v":0}]
[null,"12:00:00",{"$f":"IFERROR(INDEX(ΛίσταΜαθημάτων[],MATCH(SUMPRODUCT((ΛίσταΜαθημάτων[ΗΜΕΡΑ]=ΠρόγραμμαΜαθημάτων[[#Headers],[ΚΥΡΙΑΚΗ]])*(ROUNDDOWN($B20,10)>=ROUNDDOWN(ΛίσταΜαθημάτων[ΩΡΑ ΕΝΑΡΞΗΣ],10))*($B20<=ΛίσταΜαθημάτων[ΩΡΑ ΛΗΞΗΣ]),ΛίσταΜαθημάτων[ΜΟΝΑΔΙΚΗ]),ΛίσταΜαθημάτων[ΜΟΝΑΔΙΚΗ],0),2),0)","v":0},{"$f":"IFERROR(INDEX(ΛίσταΜαθημάτων[],MATCH(SUMPRODUCT((ΛίσταΜαθημάτων[ΗΜΕΡΑ]=ΠρόγραμμαΜαθημάτων[[#Headers],[ΔΕΥΤΕΡΑ]])*(ROUNDDOWN($B20,10)>=ROUNDDOWN(ΛίσταΜαθημάτων[ΩΡΑ ΕΝΑΡΞΗΣ],10))*($B20<=ΛίσταΜαθημάτων[ΩΡΑ ΛΗΞΗΣ]),ΛίσταΜαθημάτων[ΜΟΝΑΔΙΚΗ]),ΛίσταΜαθημάτων[ΜΟΝΑΔΙΚΗ],0),2),0)","v":0},{"$f":"IFERROR(INDEX(ΛίσταΜαθημάτων[],MATCH(SUMPRODUCT((ΛίσταΜαθημάτων[ΗΜΕΡΑ]=ΠρόγραμμαΜαθημάτων[[#Headers],[ΤΡΙΤΗ]])*(ROUNDDOWN($B20,10)>=ROUNDDOWN(ΛίσταΜαθημάτων[ΩΡΑ ΕΝΑΡΞΗΣ],10))*($B20<=ΛίσταΜαθημάτων[ΩΡΑ ΛΗΞΗΣ]),ΛίσταΜαθημάτων[ΜΟΝΑΔΙΚΗ]),ΛίσταΜαθημάτων[ΜΟΝΑΔΙΚΗ],0),2),0)","v":"HPE-295"},{"$f":"IFERROR(INDEX(ΛίσταΜαθημάτων[],MATCH(SUMPRODUCT((ΛίσταΜαθημάτων[ΗΜΕΡΑ]=ΠρόγραμμαΜαθημάτων[[#Headers],[ΤΕΤΑΡΤΗ]])*(ROUNDDOWN($B20,10)>=ROUNDDOWN(ΛίσταΜαθημάτων[ΩΡΑ ΕΝΑΡΞΗΣ],10))*($B20<=ΛίσταΜαθημάτων[ΩΡΑ ΛΗΞΗΣ]),ΛίσταΜαθημάτων[ΜΟΝΑΔΙΚΗ]),ΛίσταΜαθημάτων[ΜΟΝΑΔΙΚΗ],0),2),0)","v":0},{"$f":"IFERROR(INDEX(ΛίσταΜαθημάτων[],MATCH(SUMPRODUCT((ΛίσταΜαθημάτων[ΗΜΕΡΑ]=ΠρόγραμμαΜαθημάτων[[#Headers],[ΠΕΜΠΤΗ]])*(ROUNDDOWN($B20,10)>=ROUNDDOWN(ΛίσταΜαθημάτων[ΩΡΑ ΕΝΑΡΞΗΣ],10))*($B20<=ΛίσταΜαθημάτων[ΩΡΑ ΛΗΞΗΣ]),ΛίσταΜαθημάτων[ΜΟΝΑΔΙΚΗ]),ΛίσταΜαθημάτων[ΜΟΝΑΔΙΚΗ],0),2),0)","v":"HPE-295"},{"$f":"IFERROR(INDEX(ΛίσταΜαθημάτων[],MATCH(SUMPRODUCT((ΛίσταΜαθημάτων[ΗΜΕΡΑ]=ΠρόγραμμαΜαθημάτων[[#Headers],[ΠΑΡΑΣΚΕΥΗ]])*(ROUNDDOWN($B20,10)>=ROUNDDOWN(ΛίσταΜαθημάτων[ΩΡΑ ΕΝΑΡΞΗΣ],10))*($B20<=ΛίσταΜαθημάτων[ΩΡΑ ΛΗΞΗΣ]),ΛίσταΜαθημάτων[ΜΟΝΑΔΙΚΗ]),ΛίσταΜαθημάτων[ΜΟΝΑΔΙΚΗ],0),2),0)","v":0},{"$f":"IFERROR(INDEX(ΛίσταΜαθημάτων[],MATCH(SUMPRODUCT((ΛίσταΜαθημάτων[ΗΜΕΡΑ]=ΠρόγραμμαΜαθημάτων[[#Headers],[ΣΑΒΒΑΤΟ]])*(ROUNDDOWN($B20,10)>=ROUNDDOWN(ΛίσταΜαθημάτων[ΩΡΑ ΕΝΑΡΞΗΣ],10))*($B20<=ΛίσταΜαθημάτων[ΩΡΑ ΛΗΞΗΣ]),ΛίσταΜαθημάτων[ΜΟΝΑΔΙΚΗ]),ΛίσταΜαθημάτων[ΜΟΝΑΔΙΚΗ],0),2),0)","v":0}]
[null,"12:15:00",{"$f":"IFERROR(INDEX(ΛίσταΜαθημάτων[],MATCH(SUMPRODUCT((ΛίσταΜαθημάτων[ΗΜΕΡΑ]=ΠρόγραμμαΜαθημάτων[[#Headers],[ΚΥΡΙΑΚΗ]])*(ROUNDDOWN($B21,10)>=ROUNDDOWN(ΛίσταΜαθημάτων[ΩΡΑ ΕΝΑΡΞΗΣ],10))*($B21<=ΛίσταΜαθημάτων[ΩΡΑ ΛΗΞΗΣ]),ΛίσταΜαθημάτων[ΜΟΝΑΔΙΚΗ]),ΛίσταΜαθημάτων[ΜΟΝΑΔΙΚΗ],0),2),0)","v":0},{"$f":"IFERROR(INDEX(ΛίσταΜαθημάτων[],MATCH(SUMPRODUCT((ΛίσταΜαθημάτων[ΗΜΕΡΑ]=ΠρόγραμμαΜαθημάτων[[#Headers],[ΔΕΥΤΕΡΑ]])*(ROUNDDOWN($B21,10)>=ROUNDDOWN(ΛίσταΜαθημάτων[ΩΡΑ ΕΝΑΡΞΗΣ],10))*($B21<=ΛίσταΜαθημάτων[ΩΡΑ ΛΗΞΗΣ]),ΛίσταΜαθημάτων[ΜΟΝΑΔΙΚΗ]),ΛίσταΜαθημάτων[ΜΟΝΑΔΙΚΗ],0),2),0)","v":0},{"$f":"IFERROR(INDEX(ΛίσταΜαθημάτων[],MATCH(SUMPRODUCT((ΛίσταΜαθημάτων[ΗΜΕΡΑ]=ΠρόγραμμαΜαθημάτων[[#Headers],[ΤΡΙΤΗ]])*(ROUNDDOWN($B21,10)>=ROUNDDOWN(ΛίσταΜαθημάτων[ΩΡΑ ΕΝΑΡΞΗΣ],10))*($B21<=ΛίσταΜαθημάτων[ΩΡΑ ΛΗΞΗΣ]),ΛίσταΜαθημάτων[ΜΟΝΑΔΙΚΗ]),ΛίσταΜαθημάτων[ΜΟΝΑΔΙΚΗ],0),2),0)","v":0},{"$f":"IFERROR(INDEX(ΛίσταΜαθημάτων[],MATCH(SUMPRODUCT((ΛίσταΜαθημάτων[ΗΜΕΡΑ]=ΠρόγραμμαΜαθημάτων[[#Headers],[ΤΕΤΑΡΤΗ]])*(ROUNDDOWN($B21,10)>=ROUNDDOWN(ΛίσταΜαθημάτων[ΩΡΑ ΕΝΑΡΞΗΣ],10))*($B21<=ΛίσταΜαθημάτων[ΩΡΑ ΛΗΞΗΣ]),ΛίσταΜαθημάτων[ΜΟΝΑΔΙΚΗ]),ΛίσταΜαθημάτων[ΜΟΝΑΔΙΚΗ],0),2),0)","v":0},{"$f":"IFERROR(INDEX(ΛίσταΜαθημάτων[],MATCH(SUMPRODUCT((ΛίσταΜαθημάτων[ΗΜΕΡΑ]=ΠρόγραμμαΜαθημάτων[[#Headers],[ΠΕΜΠΤΗ]])*(ROUNDDOWN($B21,10)>=ROUNDDOWN(ΛίσταΜαθημάτων[ΩΡΑ ΕΝΑΡΞΗΣ],10))*($B21<=ΛίσταΜαθημάτων[ΩΡΑ ΛΗΞΗΣ]),ΛίσταΜαθημάτων[ΜΟΝΑΔΙΚΗ]),ΛίσταΜαθημάτων[ΜΟΝΑΔΙΚΗ],0),2),0)","v":0},{"$f":"IFERROR(INDEX(ΛίσταΜαθημάτων[],MATCH(SUMPRODUCT((ΛίσταΜαθημάτων[ΗΜΕΡΑ]=ΠρόγραμμαΜαθημάτων[[#Headers],[ΠΑΡΑΣΚΕΥΗ]])*(ROUNDDOWN($B21,10)>=ROUNDDOWN(ΛίσταΜαθημάτων[ΩΡΑ ΕΝΑΡΞΗΣ],10))*($B21<=ΛίσταΜαθημάτων[ΩΡΑ ΛΗΞΗΣ]),ΛίσταΜαθημάτων[ΜΟΝΑΔΙΚΗ]),ΛίσταΜαθημάτων[ΜΟΝΑΔΙΚΗ],0),2),0)","v":0},{"$f":"IFERROR(INDEX(ΛίσταΜαθημάτων[],MATCH(SUMPRODUCT((ΛίσταΜαθημάτων[ΗΜΕΡΑ]=ΠρόγραμμαΜαθημάτων[[#Headers],[ΣΑΒΒΑΤΟ]])*(ROUNDDOWN($B21,10)>=ROUNDDOWN(ΛίσταΜαθημάτων[ΩΡΑ ΕΝΑΡΞΗΣ],10))*($B21<=ΛίσταΜαθημάτων[ΩΡΑ ΛΗΞΗΣ]),ΛίσταΜαθημάτων[ΜΟΝΑΔΙΚΗ]),ΛίσταΜαθημάτων[ΜΟΝΑΔΙΚΗ],0),2),0)","v":0}]
[null,"12:30:00",{"$f":"IFERROR(INDEX(ΛίσταΜαθημάτων[],MATCH(SUMPRODUCT((ΛίσταΜαθημάτων[ΗΜΕΡΑ]=ΠρόγραμμαΜαθημάτων[[#Headers],[ΚΥΡΙΑΚΗ]])*(ROUNDDOWN($B22,10)>=ROUNDDOWN(ΛίσταΜαθημάτων[ΩΡΑ ΕΝΑΡΞΗΣ],10))*($B22<=ΛίσταΜαθημάτων[ΩΡΑ ΛΗΞΗΣ]),ΛίσταΜαθημάτων[ΜΟΝΑΔΙΚΗ]),ΛίσταΜαθημάτων[ΜΟΝΑΔΙΚΗ],0),2),0)","v":0},{"$f":"IFERROR(INDEX(ΛίσταΜαθημάτων[],MATCH(SUMPRODUCT((ΛίσταΜαθημάτων[ΗΜΕΡΑ]=ΠρόγραμμαΜαθημάτων[[#Headers],[ΔΕΥΤΕΡΑ]])*(ROUNDDOWN($B22,10)>=ROUNDDOWN(ΛίσταΜαθημάτων[ΩΡΑ ΕΝΑΡΞΗΣ],10))*($B22<=ΛίσταΜαθημάτων[ΩΡΑ ΛΗΞΗΣ]),ΛίσταΜαθημάτων[ΜΟΝΑΔΙΚΗ]),ΛίσταΜαθημάτων[ΜΟΝΑΔΙΚΗ],0),2),0)","v":0},{"$f":"IFERROR(INDEX(ΛίσταΜαθημάτων[],MATCH(SUMPRODUCT((ΛίσταΜαθημάτων[ΗΜΕΡΑ]=ΠρόγραμμαΜαθημάτων[[#Headers],[ΤΡΙΤΗ]])*(ROUNDDOWN($B22,10)>=ROUNDDOWN(ΛίσταΜαθημάτων[ΩΡΑ ΕΝΑΡΞΗΣ],10))*($B22<=ΛίσταΜαθημάτων[ΩΡΑ ΛΗΞΗΣ]),ΛίσταΜαθημάτων[ΜΟΝΑΔΙΚΗ]),ΛίσταΜαθημάτων[ΜΟΝΑΔΙΚΗ],0),2),0)","v":0},{"$f":"IFERROR(INDEX(ΛίσταΜαθημάτων[],MATCH(SUMPRODUCT((ΛίσταΜαθημάτων[ΗΜΕΡΑ]=ΠρόγραμμαΜαθημάτων[[#Headers],[ΤΕΤΑΡΤΗ]])*(ROUNDDOWN($B22,10)>=ROUNDDOWN(ΛίσταΜαθημάτων[ΩΡΑ ΕΝΑΡΞΗΣ],10))*($B22<=ΛίσταΜαθημάτων[ΩΡΑ ΛΗΞΗΣ]),ΛίσταΜαθημάτων[ΜΟΝΑΔΙΚΗ]),ΛίσταΜαθημάτων[ΜΟΝΑΔΙΚΗ],0),2),0)","v":0},{"$f":"IFERROR(INDEX(ΛίσταΜαθημάτων[],MATCH(SUMPRODUCT((ΛίσταΜαθημάτων[ΗΜΕΡΑ]=ΠρόγραμμαΜαθημάτων[[#Headers],[ΠΕΜΠΤΗ]])*(ROUNDDOWN($B22,10)>=ROUNDDOWN(ΛίσταΜαθημάτων[ΩΡΑ ΕΝΑΡΞΗΣ],10))*($B22<=ΛίσταΜαθημάτων[ΩΡΑ ΛΗΞΗΣ]),ΛίσταΜαθημάτων[ΜΟΝΑΔΙΚΗ]),ΛίσταΜαθημάτων[ΜΟΝΑΔΙΚΗ],0),2),0)","v":0},{"$f":"IFERROR(INDEX(ΛίσταΜαθημάτων[],MATCH(SUMPRODUCT((ΛίσταΜαθημάτων[ΗΜΕΡΑ]=ΠρόγραμμαΜαθημάτων[[#Headers],[ΠΑΡΑΣΚΕΥΗ]])*(ROUNDDOWN($B22,10)>=ROUNDDOWN(ΛίσταΜαθημάτων[ΩΡΑ ΕΝΑΡΞΗΣ],10))*($B22<=ΛίσταΜαθημάτων[ΩΡΑ ΛΗΞΗΣ]),ΛίσταΜαθημάτων[ΜΟΝΑΔΙΚΗ]),ΛίσταΜαθημάτων[ΜΟΝΑΔΙΚΗ],0),2),0)","v":0},{"$f":"IFERROR(INDEX(ΛίσταΜαθημάτων[],MATCH(SUMPRODUCT((ΛίσταΜαθημάτων[ΗΜΕΡΑ]=ΠρόγραμμαΜαθημάτων[[#Headers],[ΣΑΒΒΑΤΟ]])*(ROUNDDOWN($B22,10)>=ROUNDDOWN(ΛίσταΜαθημάτων[ΩΡΑ ΕΝΑΡΞΗΣ],10))*($B22<=ΛίσταΜαθημάτων[ΩΡΑ ΛΗΞΗΣ]),ΛίσταΜαθημάτων[ΜΟΝΑΔΙΚΗ]),ΛίσταΜαθημάτων[ΜΟΝΑΔΙΚΗ],0),2),0)","v":0}]
[null,"12:45:00",{"$f":"IFERROR(INDEX(ΛίσταΜαθημάτων[],MATCH(SUMPRODUCT((ΛίσταΜαθημάτων[ΗΜΕΡΑ]=ΠρόγραμμαΜαθημάτων[[#Headers],[ΚΥΡΙΑΚΗ]])*(ROUNDDOWN($B23,10)>=ROUNDDOWN(ΛίσταΜαθημάτων[ΩΡΑ ΕΝΑΡΞΗΣ],10))*($B23<=ΛίσταΜαθημάτων[ΩΡΑ ΛΗΞΗΣ]),ΛίσταΜαθημάτων[ΜΟΝΑΔΙΚΗ]),ΛίσταΜαθημάτων[ΜΟΝΑΔΙΚΗ],0),2),0)","v":0},{"$f":"IFERROR(INDEX(ΛίσταΜαθημάτων[],MATCH(SUMPRODUCT((ΛίσταΜαθημάτων[ΗΜΕΡΑ]=ΠρόγραμμαΜαθημάτων[[#Headers],[ΔΕΥΤΕΡΑ]])*(ROUNDDOWN($B23,10)>=ROUNDDOWN(ΛίσταΜαθημάτων[ΩΡΑ ΕΝΑΡΞΗΣ],10))*($B23<=ΛίσταΜαθημάτων[ΩΡΑ ΛΗΞΗΣ]),ΛίσταΜαθημάτων[ΜΟΝΑΔΙΚΗ]),ΛίσταΜαθημάτων[ΜΟΝΑΔΙΚΗ],0),2),0)","v":0},{"$f":"IFERROR(INDEX(ΛίσταΜαθημάτων[],MATCH(SUMPRODUCT((ΛίσταΜαθημάτων[ΗΜΕΡΑ]=ΠρόγραμμαΜαθημάτων[[#Headers],[ΤΡΙΤΗ]])*(ROUNDDOWN($B23,10)>=ROUNDDOWN(ΛίσταΜαθημάτων[ΩΡΑ ΕΝΑΡΞΗΣ],10))*($B23<=ΛίσταΜαθημάτων[ΩΡΑ ΛΗΞΗΣ]),ΛίσταΜαθημάτων[ΜΟΝΑΔΙΚΗ]),ΛίσταΜαθημάτων[ΜΟΝΑΔΙΚΗ],0),2),0)","v":0},{"$f":"IFERROR(INDEX(ΛίσταΜαθημάτων[],MATCH(SUMPRODUCT((ΛίσταΜαθημάτων[ΗΜΕΡΑ]=ΠρόγραμμαΜαθημάτων[[#Headers],[ΤΕΤΑΡΤΗ]])*(ROUNDDOWN($B23,10)>=ROUNDDOWN(ΛίσταΜαθημάτων[ΩΡΑ ΕΝΑΡΞΗΣ],10))*($B23<=ΛίσταΜαθημάτων[ΩΡΑ ΛΗΞΗΣ]),ΛίσταΜαθημάτων[ΜΟΝΑΔΙΚΗ]),ΛίσταΜαθημάτων[ΜΟΝΑΔΙΚΗ],0),2),0)","v":0},{"$f":"IFERROR(INDEX(ΛίσταΜαθημάτων[],MATCH(SUMPRODUCT((ΛίσταΜαθημάτων[ΗΜΕΡΑ]=ΠρόγραμμαΜαθημάτων[[#Headers],[ΠΕΜΠΤΗ]])*(ROUNDDOWN($B23,10)>=ROUNDDOWN(ΛίσταΜαθημάτων[ΩΡΑ ΕΝΑΡΞΗΣ],10))*($B23<=ΛίσταΜαθημάτων[ΩΡΑ ΛΗΞΗΣ]),ΛίσταΜαθημάτων[ΜΟΝΑΔΙΚΗ]),ΛίσταΜαθημάτων[ΜΟΝΑΔΙΚΗ],0),2),0)","v":0},{"$f":"IFERROR(INDEX(ΛίσταΜαθημάτων[],MATCH(SUMPRODUCT((ΛίσταΜαθημάτων[ΗΜΕΡΑ]=ΠρόγραμμαΜαθημάτων[[#Headers],[ΠΑΡΑΣΚΕΥΗ]])*(ROUNDDOWN($B23,10)>=ROUNDDOWN(ΛίσταΜαθημάτων[ΩΡΑ ΕΝΑΡΞΗΣ],10))*($B23<=ΛίσταΜαθημάτων[ΩΡΑ ΛΗΞΗΣ]),ΛίσταΜαθημάτων[ΜΟΝΑΔΙΚΗ]),ΛίσταΜαθημάτων[ΜΟΝΑΔΙΚΗ],0),2),0)","v":0},{"$f":"IFERROR(INDEX(ΛίσταΜαθημάτων[],MATCH(SUMPRODUCT((ΛίσταΜαθημάτων[ΗΜΕΡΑ]=ΠρόγραμμαΜαθημάτων[[#Headers],[ΣΑΒΒΑΤΟ]])*(ROUNDDOWN($B23,10)>=ROUNDDOWN(ΛίσταΜαθημάτων[ΩΡΑ ΕΝΑΡΞΗΣ],10))*($B23<=ΛίσταΜαθημάτων[ΩΡΑ ΛΗΞΗΣ]),ΛίσταΜαθημάτων[ΜΟΝΑΔΙΚΗ]),ΛίσταΜαθημάτων[ΜΟΝΑΔΙΚΗ],0),2),0)","v":0}]
[null,"13:00:00",{"$f":"IFERROR(INDEX(ΛίσταΜαθημάτων[],MATCH(SUMPRODUCT((ΛίσταΜαθημάτων[ΗΜΕΡΑ]=ΠρόγραμμαΜαθημάτων[[#Headers],[ΚΥΡΙΑΚΗ]])*(ROUNDDOWN($B24,10)>=ROUNDDOWN(ΛίσταΜαθημάτων[ΩΡΑ ΕΝΑΡΞΗΣ],10))*($B24<=ΛίσταΜαθημάτων[ΩΡΑ ΛΗΞΗΣ]),ΛίσταΜαθημάτων[ΜΟΝΑΔΙΚΗ]),ΛίσταΜαθημάτων[ΜΟΝΑΔΙΚΗ],0),2),0)","v":0},{"$f":"IFERROR(INDEX(ΛίσταΜαθημάτων[],MATCH(SUMPRODUCT((ΛίσταΜαθημάτων[ΗΜΕΡΑ]=ΠρόγραμμαΜαθημάτων[[#Headers],[ΔΕΥΤΕΡΑ]])*(ROUNDDOWN($B24,10)>=ROUNDDOWN(ΛίσταΜαθημάτων[ΩΡΑ ΕΝΑΡΞΗΣ],10))*($B24<=ΛίσταΜαθημάτων[ΩΡΑ ΛΗΞΗΣ]),ΛίσταΜαθημάτων[ΜΟΝΑΔΙΚΗ]),ΛίσταΜαθημάτων[ΜΟΝΑΔΙΚΗ],0),2),0)","v":"WR-121"},{"$f":"IFERROR(INDEX(ΛίσταΜαθημάτων[],MATCH(SUMPRODUCT((ΛίσταΜαθημάτων[ΗΜΕΡΑ]=ΠρόγραμμαΜαθημάτων[[#Headers],[ΤΡΙΤΗ]])*(ROUNDDOWN($B24,10)>=ROUNDDOWN(ΛίσταΜαθημάτων[ΩΡΑ ΕΝΑΡΞΗΣ],10))*($B24<=ΛίσταΜαθημάτων[ΩΡΑ ΛΗΞΗΣ]),ΛίσταΜαθημάτων[ΜΟΝΑΔΙΚΗ]),ΛίσταΜαθημάτων[ΜΟΝΑΔΙΚΗ],0),2),0)","v":0},{"$f":"IFERROR(INDEX(ΛίσταΜαθημάτων[],MATCH(SUMPRODUCT((ΛίσταΜαθημάτων[ΗΜΕΡΑ]=ΠρόγραμμαΜαθημάτων[[#Headers],[ΤΕΤΑΡΤΗ]])*(ROUNDDOWN($B24,10)>=ROUNDDOWN(ΛίσταΜαθημάτων[ΩΡΑ ΕΝΑΡΞΗΣ],10))*($B24<=ΛίσταΜαθημάτων[ΩΡΑ ΛΗΞΗΣ]),ΛίσταΜαθημάτων[ΜΟΝΑΔΙΚΗ]),ΛίσταΜαθημάτων[ΜΟΝΑΔΙΚΗ],0),2),0)","v":"WR-121"},{"$f":"IFERROR(INDEX(ΛίσταΜαθημάτων[],MATCH(SUMPRODUCT((ΛίσταΜαθημάτων[ΗΜΕΡΑ]=ΠρόγραμμαΜαθημάτων[[#Headers],[ΠΕΜΠΤΗ]])*(ROUNDDOWN($B24,10)>=ROUNDDOWN(ΛίσταΜαθημάτων[ΩΡΑ ΕΝΑΡΞΗΣ],10))*($B24<=ΛίσταΜαθημάτων[ΩΡΑ ΛΗΞΗΣ]),ΛίσταΜαθημάτων[ΜΟΝΑΔΙΚΗ]),ΛίσταΜαθημάτων[ΜΟΝΑΔΙΚΗ],0),2),0)","v":0},{"$f":"IFERROR(INDEX(ΛίσταΜαθημάτων[],MATCH(SUMPRODUCT((ΛίσταΜαθημάτων[ΗΜΕΡΑ]=ΠρόγραμμαΜαθημάτων[[#Headers],[ΠΑΡΑΣΚΕΥΗ]])*(ROUNDDOWN($B24,10)>=ROUNDDOWN(ΛίσταΜαθημάτων[ΩΡΑ ΕΝΑΡΞΗΣ],10))*($B24<=ΛίσταΜαθημάτων[ΩΡΑ ΛΗΞΗΣ]),ΛίσταΜαθημάτων[ΜΟΝΑΔΙΚΗ]),ΛίσταΜαθημάτων[ΜΟΝΑΔΙΚΗ],0),2),0)","v":0},{"$f":"IFERROR(INDEX(ΛίσταΜαθημάτων[],MATCH(SUMPRODUCT((ΛίσταΜαθημάτων[ΗΜΕΡΑ]=ΠρόγραμμαΜαθημάτων[[#Headers],[ΣΑΒΒΑΤΟ]])*(ROUNDDOWN($B24,10)>=ROUNDDOWN(ΛίσταΜαθημάτων[ΩΡΑ ΕΝΑΡΞΗΣ],10))*($B24<=ΛίσταΜαθημάτων[ΩΡΑ ΛΗΞΗΣ]),ΛίσταΜαθημάτων[ΜΟΝΑΔΙΚΗ]),ΛίσταΜαθημάτων[ΜΟΝΑΔΙΚΗ],0),2),0)","v":0}]
[null,"13:15:00",{"$f":"IFERROR(INDEX(ΛίσταΜαθημάτων[],MATCH(SUMPRODUCT((ΛίσταΜαθημάτων[ΗΜΕΡΑ]=ΠρόγραμμαΜαθημάτων[[#Headers],[ΚΥΡΙΑΚΗ]])*(ROUNDDOWN($B25,10)>=ROUNDDOWN(ΛίσταΜαθημάτων[ΩΡΑ ΕΝΑΡΞΗΣ],10))*($B25<=ΛίσταΜαθημάτων[ΩΡΑ ΛΗΞΗΣ]),ΛίσταΜαθημάτων[ΜΟΝΑΔΙΚΗ]),ΛίσταΜαθημάτων[ΜΟΝΑΔΙΚΗ],0),2),0)","v":0},{"$f":"IFERROR(INDEX(ΛίσταΜαθημάτων[],MATCH(SUMPRODUCT((ΛίσταΜαθημάτων[ΗΜΕΡΑ]=ΠρόγραμμαΜαθημάτων[[#Headers],[ΔΕΥΤΕΡΑ]])*(ROUNDDOWN($B25,10)>=ROUNDDOWN(ΛίσταΜαθημάτων[ΩΡΑ ΕΝΑΡΞΗΣ],10))*($B25<=ΛίσταΜαθημάτων[ΩΡΑ ΛΗΞΗΣ]),ΛίσταΜαθημάτων[ΜΟΝΑΔΙΚΗ]),ΛίσταΜαθημάτων[ΜΟΝΑΔΙΚΗ],0),2),0)","v":"WR-121"},{"$f":"IFERROR(INDEX(ΛίσταΜαθημάτων[],MATCH(SUMPRODUCT((ΛίσταΜαθημάτων[ΗΜΕΡΑ]=ΠρόγραμμαΜαθημάτων[[#Headers],[ΤΡΙΤΗ]])*(ROUNDDOWN($B25,10)>=ROUNDDOWN(ΛίσταΜαθημάτων[ΩΡΑ ΕΝΑΡΞΗΣ],10))*($B25<=ΛίσταΜαθημάτων[ΩΡΑ ΛΗΞΗΣ]),ΛίσταΜαθημάτων[ΜΟΝΑΔΙΚΗ]),ΛίσταΜαθημάτων[ΜΟΝΑΔΙΚΗ],0),2),0)","v":0},{"$f":"IFERROR(INDEX(ΛίσταΜαθημάτων[],MATCH(SUMPRODUCT((ΛίσταΜαθημάτων[ΗΜΕΡΑ]=ΠρόγραμμαΜαθημάτων[[#Headers],[ΤΕΤΑΡΤΗ]])*(ROUNDDOWN($B25,10)>=ROUNDDOWN(ΛίσταΜαθημάτων[ΩΡΑ ΕΝΑΡΞΗΣ],10))*($B25<=ΛίσταΜαθημάτων[ΩΡΑ ΛΗΞΗΣ]),ΛίσταΜαθημάτων[ΜΟΝΑΔΙΚΗ]),ΛίσταΜαθημάτων[ΜΟΝΑΔΙΚΗ],0),2),0)","v":"WR-121"},{"$f":"IFERROR(INDEX(ΛίσταΜαθημάτων[],MATCH(SUMPRODUCT((ΛίσταΜαθημάτων[ΗΜΕΡΑ]=ΠρόγραμμαΜαθημάτων[[#Headers],[ΠΕΜΠΤΗ]])*(ROUNDDOWN($B25,10)>=ROUNDDOWN(ΛίσταΜαθημάτων[ΩΡΑ ΕΝΑΡΞΗΣ],10))*($B25<=ΛίσταΜαθημάτων[ΩΡΑ ΛΗΞΗΣ]),ΛίσταΜαθημάτων[ΜΟΝΑΔΙΚΗ]),ΛίσταΜαθημάτων[ΜΟΝΑΔΙΚΗ],0),2),0)","v":0},{"$f":"IFERROR(INDEX(ΛίσταΜαθημάτων[],MATCH(SUMPRODUCT((ΛίσταΜαθημάτων[ΗΜΕΡΑ]=ΠρόγραμμαΜαθημάτων[[#Headers],[ΠΑΡΑΣΚΕΥΗ]])*(ROUNDDOWN($B25,10)>=ROUNDDOWN(ΛίσταΜαθημάτων[ΩΡΑ ΕΝΑΡΞΗΣ],10))*($B25<=ΛίσταΜαθημάτων[ΩΡΑ ΛΗΞΗΣ]),ΛίσταΜαθημάτων[ΜΟΝΑΔΙΚΗ]),ΛίσταΜαθημάτων[ΜΟΝΑΔΙΚΗ],0),2),0)","v":0},{"$f":"IFERROR(INDEX(ΛίσταΜαθημάτων[],MATCH(SUMPRODUCT((ΛίσταΜαθημάτων[ΗΜΕΡΑ]=ΠρόγραμμαΜαθημάτων[[#Headers],[ΣΑΒΒΑΤΟ]])*(ROUNDDOWN($B25,10)>=ROUNDDOWN(ΛίσταΜαθημάτων[ΩΡΑ ΕΝΑΡΞΗΣ],10))*($B25<=ΛίσταΜαθημάτων[ΩΡΑ ΛΗΞΗΣ]),ΛίσταΜαθημάτων[ΜΟΝΑΔΙΚΗ]),ΛίσταΜαθημάτων[ΜΟΝΑΔΙΚΗ],0),2),0)","v":0}]
[null,"13:30:00",{"$f":"IFERROR(INDEX(ΛίσταΜαθημάτων[],MATCH(SUMPRODUCT((ΛίσταΜαθημάτων[ΗΜΕΡΑ]=ΠρόγραμμαΜαθημάτων[[#Headers],[ΚΥΡΙΑΚΗ]])*(ROUNDDOWN($B26,10)>=ROUNDDOWN(ΛίσταΜαθημάτων[ΩΡΑ ΕΝΑΡΞΗΣ],10))*($B26<=ΛίσταΜαθημάτων[ΩΡΑ ΛΗΞΗΣ]),ΛίσταΜαθημάτων[ΜΟΝΑΔΙΚΗ]),ΛίσταΜαθημάτων[ΜΟΝΑΔΙΚΗ],0),2),0)","v":0},{"$f":"IFERROR(INDEX(ΛίσταΜαθημάτων[],MATCH(SUMPRODUCT((ΛίσταΜαθημάτων[ΗΜΕΡΑ]=ΠρόγραμμαΜαθημάτων[[#Headers],[ΔΕΥΤΕΡΑ]])*(ROUNDDOWN($B26,10)>=ROUNDDOWN(ΛίσταΜαθημάτων[ΩΡΑ ΕΝΑΡΞΗΣ],10))*($B26<=ΛίσταΜαθημάτων[ΩΡΑ ΛΗΞΗΣ]),ΛίσταΜαθημάτων[ΜΟΝΑΔΙΚΗ]),ΛίσταΜαθημάτων[ΜΟΝΑΔΙΚΗ],0),2),0)","v":"WR-121"},{"$f":"IFERROR(INDEX(ΛίσταΜαθημάτων[],MATCH(SUMPRODUCT((ΛίσταΜαθημάτων[ΗΜΕΡΑ]=ΠρόγραμμαΜαθημάτων[[#Headers],[ΤΡΙΤΗ]])*(ROUNDDOWN($B26,10)>=ROUNDDOWN(ΛίσταΜαθημάτων[ΩΡΑ ΕΝΑΡΞΗΣ],10))*($B26<=ΛίσταΜαθημάτων[ΩΡΑ ΛΗΞΗΣ]),ΛίσταΜαθημάτων[ΜΟΝΑΔΙΚΗ]),ΛίσταΜαθημάτων[ΜΟΝΑΔΙΚΗ],0),2),0)","v":0},{"$f":"IFERROR(INDEX(ΛίσταΜαθημάτων[],MATCH(SUMPRODUCT((ΛίσταΜαθημάτων[ΗΜΕΡΑ]=ΠρόγραμμαΜαθημάτων[[#Headers],[ΤΕΤΑΡΤΗ]])*(ROUNDDOWN($B26,10)>=ROUNDDOWN(ΛίσταΜαθημάτων[ΩΡΑ ΕΝΑΡΞΗΣ],10))*($B26<=ΛίσταΜαθημάτων[ΩΡΑ ΛΗΞΗΣ]),ΛίσταΜαθημάτων[ΜΟΝΑΔΙΚΗ]),ΛίσταΜαθημάτων[ΜΟΝΑΔΙΚΗ],0),2),0)","v":"WR-121"},{"$f":"IFERROR(INDEX(ΛίσταΜαθημάτων[],MATCH(SUMPRODUCT((ΛίσταΜαθημάτων[ΗΜΕΡΑ]=ΠρόγραμμαΜαθημάτων[[#Headers],[ΠΕΜΠΤΗ]])*(ROUNDDOWN($B26,10)>=ROUNDDOWN(ΛίσταΜαθημάτων[ΩΡΑ ΕΝΑΡΞΗΣ],10))*($B26<=ΛίσταΜαθημάτων[ΩΡΑ ΛΗΞΗΣ]),ΛίσταΜαθημάτων[ΜΟΝΑΔΙΚΗ]),ΛίσταΜαθημάτων[ΜΟΝΑΔΙΚΗ],0),2),0)","v":0},{"$f":"IFERROR(INDEX(ΛίσταΜαθημάτων[],MATCH(SUMPRODUCT((ΛίσταΜαθημάτων[ΗΜΕΡΑ]=ΠρόγραμμαΜαθημάτων[[#Headers],[ΠΑΡΑΣΚΕΥΗ]])*(ROUNDDOWN($B26,10)>=ROUNDDOWN(ΛίσταΜαθημάτων[ΩΡΑ ΕΝΑΡΞΗΣ],10))*($B26<=ΛίσταΜαθημάτων[ΩΡΑ ΛΗΞΗΣ]),ΛίσταΜαθημάτων[ΜΟΝΑΔΙΚΗ]),ΛίσταΜαθημάτων[ΜΟΝΑΔΙΚΗ],0),2),0)","v":0},{"$f":"IFERROR(INDEX(ΛίσταΜαθημάτων[],MATCH(SUMPRODUCT((ΛίσταΜαθημάτων[ΗΜΕΡΑ]=ΠρόγραμμαΜαθημάτων[[#Headers],[ΣΑΒΒΑΤΟ]])*(ROUNDDOWN($B26,10)>=ROUNDDOWN(ΛίσταΜαθημάτων[ΩΡΑ ΕΝΑΡΞΗΣ],10))*($B26<=ΛίσταΜαθημάτων[ΩΡΑ ΛΗΞΗΣ]),ΛίσταΜαθημάτων[ΜΟΝΑΔΙΚΗ]),ΛίσταΜαθημάτων[ΜΟΝΑΔΙΚΗ],0),2),0)","v":0}]
[null,"13:45:00",{"$f":"IFERROR(INDEX(ΛίσταΜαθημάτων[],MATCH(SUMPRODUCT((ΛίσταΜαθημάτων[ΗΜΕΡΑ]=ΠρόγραμμαΜαθημάτων[[#Headers],[ΚΥΡΙΑΚΗ]])*(ROUNDDOWN($B27,10)>=ROUNDDOWN(ΛίσταΜαθημάτων[ΩΡΑ ΕΝΑΡΞΗΣ],10))*($B27<=ΛίσταΜαθημάτων[ΩΡΑ ΛΗΞΗΣ]),ΛίσταΜαθημάτων[ΜΟΝΑΔΙΚΗ]),ΛίσταΜαθημάτων[ΜΟΝΑΔΙΚΗ],0),2),0)","v":0},{"$f":"IFERROR(INDEX(ΛίσταΜαθημάτων[],MATCH(SUMPRODUCT((ΛίσταΜαθημάτων[ΗΜΕΡΑ]=ΠρόγραμμαΜαθημάτων[[#Headers],[ΔΕΥΤΕΡΑ]])*(ROUNDDOWN($B27,10)>=ROUNDDOWN(ΛίσταΜαθημάτων[ΩΡΑ ΕΝΑΡΞΗΣ],10))*($B27<=ΛίσταΜαθημάτων[ΩΡΑ ΛΗΞΗΣ]),ΛίσταΜαθημάτων[ΜΟΝΑΔΙΚΗ]),ΛίσταΜαθημάτων[ΜΟΝΑΔΙΚΗ],0),2),0)","v":"WR-121"},{"$f":"IFERROR(INDEX(ΛίσταΜαθημάτων[],MATCH(SUMPRODUCT((ΛίσταΜαθημάτων[ΗΜΕΡΑ]=ΠρόγραμμαΜαθημάτων[[#Headers],[ΤΡΙΤΗ]])*(ROUNDDOWN($B27,10)>=ROUNDDOWN(ΛίσταΜαθημάτων[ΩΡΑ ΕΝΑΡΞΗΣ],10))*($B27<=ΛίσταΜαθημάτων[ΩΡΑ ΛΗΞΗΣ]),ΛίσταΜαθημάτων[ΜΟΝΑΔΙΚΗ]),ΛίσταΜαθημάτων[ΜΟΝΑΔΙΚΗ],0),2),0)","v":0},{"$f":"IFERROR(INDEX(ΛίσταΜαθημάτων[],MATCH(SUMPRODUCT((ΛίσταΜαθημάτων[ΗΜΕΡΑ]=ΠρόγραμμαΜαθημάτων[[#Headers],[ΤΕΤΑΡΤΗ]])*(ROUNDDOWN($B27,10)>=ROUNDDOWN(ΛίσταΜαθημάτων[ΩΡΑ ΕΝΑΡΞΗΣ],10))*($B27<=ΛίσταΜαθημάτων[ΩΡΑ ΛΗΞΗΣ]),ΛίσταΜαθημάτων[ΜΟΝΑΔΙΚΗ]),ΛίσταΜαθημάτων[ΜΟΝΑΔΙΚΗ],0),2),0)","v":"WR-121"},{"$f":"IFERROR(INDEX(ΛίσταΜαθημάτων[],MATCH(SUMPRODUCT((ΛίσταΜαθημάτων[ΗΜΕΡΑ]=ΠρόγραμμαΜαθημάτων[[#Headers],[ΠΕΜΠΤΗ]])*(ROUNDDOWN($B27,10)>=ROUNDDOWN(ΛίσταΜαθημάτων[ΩΡΑ ΕΝΑΡΞΗΣ],10))*($B27<=ΛίσταΜαθημάτων[ΩΡΑ ΛΗΞΗΣ]),ΛίσταΜαθημάτων[ΜΟΝΑΔΙΚΗ]),ΛίσταΜαθημάτων[ΜΟΝΑΔΙΚΗ],0),2),0)","v":0},{"$f":"IFERROR(INDEX(ΛίσταΜαθημάτων[],MATCH(SUMPRODUCT((ΛίσταΜαθημάτων[ΗΜΕΡΑ]=ΠρόγραμμαΜαθημάτων[[#Headers],[ΠΑΡΑΣΚΕΥΗ]])*(ROUNDDOWN($B27,10)>=ROUNDDOWN(ΛίσταΜαθημάτων[ΩΡΑ ΕΝΑΡΞΗΣ],10))*($B27<=ΛίσταΜαθημάτων[ΩΡΑ ΛΗΞΗΣ]),ΛίσταΜαθημάτων[ΜΟΝΑΔΙΚΗ]),ΛίσταΜαθημάτων[ΜΟΝΑΔΙΚΗ],0),2),0)","v":0},{"$f":"IFERROR(INDEX(ΛίσταΜαθημάτων[],MATCH(SUMPRODUCT((ΛίσταΜαθημάτων[ΗΜΕΡΑ]=ΠρόγραμμαΜαθημάτων[[#Headers],[ΣΑΒΒΑΤΟ]])*(ROUNDDOWN($B27,10)>=ROUNDDOWN(ΛίσταΜαθημάτων[ΩΡΑ ΕΝΑΡΞΗΣ],10))*($B27<=ΛίσταΜαθημάτων[ΩΡΑ ΛΗΞΗΣ]),ΛίσταΜαθημάτων[ΜΟΝΑΔΙΚΗ]),ΛίσταΜαθημάτων[ΜΟΝΑΔΙΚΗ],0),2),0)","v":0}]
[null,"14:00:00",{"$f":"IFERROR(INDEX(ΛίσταΜαθημάτων[],MATCH(SUMPRODUCT((ΛίσταΜαθημάτων[ΗΜΕΡΑ]=ΠρόγραμμαΜαθημάτων[[#Headers],[ΚΥΡΙΑΚΗ]])*(ROUNDDOWN($B28,10)>=ROUNDDOWN(ΛίσταΜαθημάτων[ΩΡΑ ΕΝΑΡΞΗΣ],10))*($B28<=ΛίσταΜαθημάτων[ΩΡΑ ΛΗΞΗΣ]),ΛίσταΜαθημάτων[ΜΟΝΑΔΙΚΗ]),ΛίσταΜαθημάτων[ΜΟΝΑΔΙΚΗ],0),2),0)","v":0},{"$f":"IFERROR(INDEX(ΛίσταΜαθημάτων[],MATCH(SUMPRODUCT((ΛίσταΜαθημάτων[ΗΜΕΡΑ]=ΠρόγραμμαΜαθημάτων[[#Headers],[ΔΕΥΤΕΡΑ]])*(ROUNDDOWN($B28,10)>=ROUNDDOWN(ΛίσταΜαθημάτων[ΩΡΑ ΕΝΑΡΞΗΣ],10))*($B28<=ΛίσταΜαθημάτων[ΩΡΑ ΛΗΞΗΣ]),ΛίσταΜαθημάτων[ΜΟΝΑΔΙΚΗ]),ΛίσταΜαθημάτων[ΜΟΝΑΔΙΚΗ],0),2),0)","v":"WR-121"},{"$f":"IFERROR(INDEX(ΛίσταΜαθημάτων[],MATCH(SUMPRODUCT((ΛίσταΜαθημάτων[ΗΜΕΡΑ]=ΠρόγραμμαΜαθημάτων[[#Headers],[ΤΡΙΤΗ]])*(ROUNDDOWN($B28,10)>=ROUNDDOWN(ΛίσταΜαθημάτων[ΩΡΑ ΕΝΑΡΞΗΣ],10))*($B28<=ΛίσταΜαθημάτων[ΩΡΑ ΛΗΞΗΣ]),ΛίσταΜαθημάτων[ΜΟΝΑΔΙΚΗ]),ΛίσταΜαθημάτων[ΜΟΝΑΔΙΚΗ],0),2),0)","v":0},{"$f":"IFERROR(INDEX(ΛίσταΜαθημάτων[],MATCH(SUMPRODUCT((ΛίσταΜαθημάτων[ΗΜΕΡΑ]=ΠρόγραμμαΜαθημάτων[[#Headers],[ΤΕΤΑΡΤΗ]])*(ROUNDDOWN($B28,10)>=ROUNDDOWN(ΛίσταΜαθημάτων[ΩΡΑ ΕΝΑΡΞΗΣ],10))*($B28<=ΛίσταΜαθημάτων[ΩΡΑ ΛΗΞΗΣ]),ΛίσταΜαθημάτων[ΜΟΝΑΔΙΚΗ]),ΛίσταΜαθημάτων[ΜΟΝΑΔΙΚΗ],0),2),0)","v":"WR-121"},{"$f":"IFERROR(INDEX(ΛίσταΜαθημάτων[],MATCH(SUMPRODUCT((ΛίσταΜαθημάτων[ΗΜΕΡΑ]=ΠρόγραμμαΜαθημάτων[[#Headers],[ΠΕΜΠΤΗ]])*(ROUNDDOWN($B28,10)>=ROUNDDOWN(ΛίσταΜαθημάτων[ΩΡΑ ΕΝΑΡΞΗΣ],10))*($B28<=ΛίσταΜαθημάτων[ΩΡΑ ΛΗΞΗΣ]),ΛίσταΜαθημάτων[ΜΟΝΑΔΙΚΗ]),ΛίσταΜαθημάτων[ΜΟΝΑΔΙΚΗ],0),2),0)","v":0},{"$f":"IFERROR(INDEX(ΛίσταΜαθημάτων[],MATCH(SUMPRODUCT((ΛίσταΜαθημάτων[ΗΜΕΡΑ]=ΠρόγραμμαΜαθημάτων[[#Headers],[ΠΑΡΑΣΚΕΥΗ]])*(ROUNDDOWN($B28,10)>=ROUNDDOWN(ΛίσταΜαθημάτων[ΩΡΑ ΕΝΑΡΞΗΣ],10))*($B28<=ΛίσταΜαθημάτων[ΩΡΑ ΛΗΞΗΣ]),ΛίσταΜαθημάτων[ΜΟΝΑΔΙΚΗ]),ΛίσταΜαθημάτων[ΜΟΝΑΔΙΚΗ],0),2),0)","v":0},{"$f":"IFERROR(INDEX(ΛίσταΜαθημάτων[],MATCH(SUMPRODUCT((ΛίσταΜαθημάτων[ΗΜΕΡΑ]=ΠρόγραμμαΜαθημάτων[[#Headers],[ΣΑΒΒΑΤΟ]])*(ROUNDDOWN($B28,10)>=ROUNDDOWN(ΛίσταΜαθημάτων[ΩΡΑ ΕΝΑΡΞΗΣ],10))*($B28<=ΛίσταΜαθημάτων[ΩΡΑ ΛΗΞΗΣ]),ΛίσταΜαθημάτων[ΜΟΝΑΔΙΚΗ]),ΛίσταΜαθημάτων[ΜΟΝΑΔΙΚΗ],0),2),0)","v":0}]
[null,"14:15:00",{"$f":"IFERROR(INDEX(ΛίσταΜαθημάτων[],MATCH(SUMPRODUCT((ΛίσταΜαθημάτων[ΗΜΕΡΑ]=ΠρόγραμμαΜαθημάτων[[#Headers],[ΚΥΡΙΑΚΗ]])*(ROUNDDOWN($B29,10)>=ROUNDDOWN(ΛίσταΜαθημάτων[ΩΡΑ ΕΝΑΡΞΗΣ],10))*($B29<=ΛίσταΜαθημάτων[ΩΡΑ ΛΗΞΗΣ]),ΛίσταΜαθημάτων[ΜΟΝΑΔΙΚΗ]),ΛίσταΜαθημάτων[ΜΟΝΑΔΙΚΗ],0),2),0)","v":0},{"$f":"IFERROR(INDEX(ΛίσταΜαθημάτων[],MATCH(SUMPRODUCT((ΛίσταΜαθημάτων[ΗΜΕΡΑ]=ΠρόγραμμαΜαθημάτων[[#Headers],[ΔΕΥΤΕΡΑ]])*(ROUNDDOWN($B29,10)>=ROUNDDOWN(ΛίσταΜαθημάτων[ΩΡΑ ΕΝΑΡΞΗΣ],10))*($B29<=ΛίσταΜαθημάτων[ΩΡΑ ΛΗΞΗΣ]),ΛίσταΜαθημάτων[ΜΟΝΑΔΙΚΗ]),ΛίσταΜαθημάτων[ΜΟΝΑΔΙΚΗ],0),2),0)","v":0},{"$f":"IFERROR(INDEX(ΛίσταΜαθημάτων[],MATCH(SUMPRODUCT((ΛίσταΜαθημάτων[ΗΜΕΡΑ]=ΠρόγραμμαΜαθημάτων[[#Headers],[ΤΡΙΤΗ]])*(ROUNDDOWN($B29,10)>=ROUNDDOWN(ΛίσταΜαθημάτων[ΩΡΑ ΕΝΑΡΞΗΣ],10))*($B29<=ΛίσταΜαθημάτων[ΩΡΑ ΛΗΞΗΣ]),ΛίσταΜαθημάτων[ΜΟΝΑΔΙΚΗ]),ΛίσταΜαθημάτων[ΜΟΝΑΔΙΚΗ],0),2),0)","v":0},{"$f":"IFERROR(INDEX(ΛίσταΜαθημάτων[],MATCH(SUMPRODUCT((ΛίσταΜαθημάτων[ΗΜΕΡΑ]=ΠρόγραμμαΜαθημάτων[[#Headers],[ΤΕΤΑΡΤΗ]])*(ROUNDDOWN($B29,10)>=ROUNDDOWN(ΛίσταΜαθημάτων[ΩΡΑ ΕΝΑΡΞΗΣ],10))*($B29<=ΛίσταΜαθημάτων[ΩΡΑ ΛΗΞΗΣ]),ΛίσταΜαθημάτων[ΜΟΝΑΔΙΚΗ]),ΛίσταΜαθημάτων[ΜΟΝΑΔΙΚΗ],0),2),0)","v":0},{"$f":"IFERROR(INDEX(ΛίσταΜαθημάτων[],MATCH(SUMPRODUCT((ΛίσταΜαθημάτων[ΗΜΕΡΑ]=ΠρόγραμμαΜαθημάτων[[#Headers],[ΠΕΜΠΤΗ]])*(ROUNDDOWN($B29,10)>=ROUNDDOWN(ΛίσταΜαθημάτων[ΩΡΑ ΕΝΑΡΞΗΣ],10))*($B29<=ΛίσταΜαθημάτων[ΩΡΑ ΛΗΞΗΣ]),ΛίσταΜαθημάτων[ΜΟΝΑΔΙΚΗ]),ΛίσταΜαθημάτων[ΜΟΝΑΔΙΚΗ],0),2),0)","v":0},{"$f":"IFERROR(INDEX(ΛίσταΜαθημάτων[],MATCH(SUMPRODUCT((ΛίσταΜαθημάτων[ΗΜΕΡΑ]=ΠρόγραμμαΜαθημάτων[[#Headers],[ΠΑΡΑΣΚΕΥΗ]])*(ROUNDDOWN($B29,10)>=ROUNDDOWN(ΛίσταΜαθημάτων[ΩΡΑ ΕΝΑΡΞΗΣ],10))*($B29<=ΛίσταΜαθημάτων[ΩΡΑ ΛΗΞΗΣ]),ΛίσταΜαθημάτων[ΜΟΝΑΔΙΚΗ]),ΛίσταΜαθημάτων[ΜΟΝΑΔΙΚΗ],0),2),0)","v":0},{"$f":"IFERROR(INDEX(ΛίσταΜαθημάτων[],MATCH(SUMPRODUCT((ΛίσταΜαθημάτων[ΗΜΕΡΑ]=ΠρόγραμμαΜαθημάτων[[#Headers],[ΣΑΒΒΑΤΟ]])*(ROUNDDOWN($B29,10)>=ROUNDDOWN(ΛίσταΜαθημάτων[ΩΡΑ ΕΝΑΡΞΗΣ],10))*($B29<=ΛίσταΜαθημάτων[ΩΡΑ ΛΗΞΗΣ]),ΛίσταΜαθημάτων[ΜΟΝΑΔΙΚΗ]),ΛίσταΜαθημάτων[ΜΟΝΑΔΙΚΗ],0),2),0)","v":0}]
[null,"14:30:00",{"$f":"IFERROR(INDEX(ΛίσταΜαθημάτων[],MATCH(SUMPRODUCT((ΛίσταΜαθημάτων[ΗΜΕΡΑ]=ΠρόγραμμαΜαθημάτων[[#Headers],[ΚΥΡΙΑΚΗ]])*(ROUNDDOWN($B30,10)>=ROUNDDOWN(ΛίσταΜαθημάτων[ΩΡΑ ΕΝΑΡΞΗΣ],10))*($B30<=ΛίσταΜαθημάτων[ΩΡΑ ΛΗΞΗΣ]),ΛίσταΜαθημάτων[ΜΟΝΑΔΙΚΗ]),ΛίσταΜαθημάτων[ΜΟΝΑΔΙΚΗ],0),2),0)","v":0},{"$f":"IFERROR(INDEX(ΛίσταΜαθημάτων[],MATCH(SUMPRODUCT((ΛίσταΜαθημάτων[ΗΜΕΡΑ]=ΠρόγραμμαΜαθημάτων[[#Headers],[ΔΕΥΤΕΡΑ]])*(ROUNDDOWN($B30,10)>=ROUNDDOWN(ΛίσταΜαθημάτων[ΩΡΑ ΕΝΑΡΞΗΣ],10))*($B30<=ΛίσταΜαθημάτων[ΩΡΑ ΛΗΞΗΣ]),ΛίσταΜαθημάτων[ΜΟΝΑΔΙΚΗ]),ΛίσταΜαθημάτων[ΜΟΝΑΔΙΚΗ],0),2),0)","v":0},{"$f":"IFERROR(INDEX(ΛίσταΜαθημάτων[],MATCH(SUMPRODUCT((ΛίσταΜαθημάτων[ΗΜΕΡΑ]=ΠρόγραμμαΜαθημάτων[[#Headers],[ΤΡΙΤΗ]])*(ROUNDDOWN($B30,10)>=ROUNDDOWN(ΛίσταΜαθημάτων[ΩΡΑ ΕΝΑΡΞΗΣ],10))*($B30<=ΛίσταΜαθημάτων[ΩΡΑ ΛΗΞΗΣ]),ΛίσταΜαθημάτων[ΜΟΝΑΔΙΚΗ]),ΛίσταΜαθημάτων[ΜΟΝΑΔΙΚΗ],0),2),0)","v":0},{"$f":"IFERROR(INDEX(ΛίσταΜαθημάτων[],MATCH(SUMPRODUCT((ΛίσταΜαθημάτων[ΗΜΕΡΑ]=ΠρόγραμμαΜαθημάτων[[#Headers],[ΤΕΤΑΡΤΗ]])*(ROUNDDOWN($B30,10)>=ROUNDDOWN(ΛίσταΜαθημάτων[ΩΡΑ ΕΝΑΡΞΗΣ],10))*($B30<=ΛίσταΜαθημάτων[ΩΡΑ ΛΗΞΗΣ]),ΛίσταΜαθημάτων[ΜΟΝΑΔΙΚΗ]),ΛίσταΜαθημάτων[ΜΟΝΑΔΙΚΗ],0),2),0)","v":0},{"$f":"IFERROR(INDEX(ΛίσταΜαθημάτων[],MATCH(SUMPRODUCT((ΛίσταΜαθημάτων[ΗΜΕΡΑ]=ΠρόγραμμαΜαθημάτων[[#Headers],[ΠΕΜΠΤΗ]])*(ROUNDDOWN($B30,10)>=ROUNDDOWN(ΛίσταΜαθημάτων[ΩΡΑ ΕΝΑΡΞΗΣ],10))*($B30<=ΛίσταΜαθημάτων[ΩΡΑ ΛΗΞΗΣ]),ΛίσταΜαθημάτων[ΜΟΝΑΔΙΚΗ]),ΛίσταΜαθημάτων[ΜΟΝΑΔΙΚΗ],0),2),0)","v":0},{"$f":"IFERROR(INDEX(ΛίσταΜαθημάτων[],MATCH(SUMPRODUCT((ΛίσταΜαθημάτων[ΗΜΕΡΑ]=ΠρόγραμμαΜαθημάτων[[#Headers],[ΠΑΡΑΣΚΕΥΗ]])*(ROUNDDOWN($B30,10)>=ROUNDDOWN(ΛίσταΜαθημάτων[ΩΡΑ ΕΝΑΡΞΗΣ],10))*($B30<=ΛίσταΜαθημάτων[ΩΡΑ ΛΗΞΗΣ]),ΛίσταΜαθημάτων[ΜΟΝΑΔΙΚΗ]),ΛίσταΜαθημάτων[ΜΟΝΑΔΙΚΗ],0),2),0)","v":0},{"$f":"IFERROR(INDEX(ΛίσταΜαθημάτων[],MATCH(SUMPRODUCT((ΛίσταΜαθημάτων[ΗΜΕΡΑ]=ΠρόγραμμαΜαθημάτων[[#Headers],[ΣΑΒΒΑΤΟ]])*(ROUNDDOWN($B30,10)>=ROUNDDOWN(ΛίσταΜαθημάτων[ΩΡΑ ΕΝΑΡΞΗΣ],10))*($B30<=ΛίσταΜαθημάτων[ΩΡΑ ΛΗΞΗΣ]),ΛίσταΜαθημάτων[ΜΟΝΑΔΙΚΗ]),ΛίσταΜαθημάτων[ΜΟΝΑΔΙΚΗ],0),2),0)","v":0}]
[null,"14:45:00",{"$f":"IFERROR(INDEX(ΛίσταΜαθημάτων[],MATCH(SUMPRODUCT((ΛίσταΜαθημάτων[ΗΜΕΡΑ]=ΠρόγραμμαΜαθημάτων[[#Headers],[ΚΥΡΙΑΚΗ]])*(ROUNDDOWN($B31,10)>=ROUNDDOWN(ΛίσταΜαθημάτων[ΩΡΑ ΕΝΑΡΞΗΣ],10))*($B31<=ΛίσταΜαθημάτων[ΩΡΑ ΛΗΞΗΣ]),ΛίσταΜαθημάτων[ΜΟΝΑΔΙΚΗ]),ΛίσταΜαθημάτων[ΜΟΝΑΔΙΚΗ],0),2),0)","v":0},{"$f":"IFERROR(INDEX(ΛίσταΜαθημάτων[],MATCH(SUMPRODUCT((ΛίσταΜαθημάτων[ΗΜΕΡΑ]=ΠρόγραμμαΜαθημάτων[[#Headers],[ΔΕΥΤΕΡΑ]])*(ROUNDDOWN($B31,10)>=ROUNDDOWN(ΛίσταΜαθημάτων[ΩΡΑ ΕΝΑΡΞΗΣ],10))*($B31<=ΛίσταΜαθημάτων[ΩΡΑ ΛΗΞΗΣ]),ΛίσταΜαθημάτων[ΜΟΝΑΔΙΚΗ]),ΛίσταΜαθημάτων[ΜΟΝΑΔΙΚΗ],0),2),0)","v":0},{"$f":"IFERROR(INDEX(ΛίσταΜαθημάτων[],MATCH(SUMPRODUCT((ΛίσταΜαθημάτων[ΗΜΕΡΑ]=ΠρόγραμμαΜαθημάτων[[#Headers],[ΤΡΙΤΗ]])*(ROUNDDOWN($B31,10)>=ROUNDDOWN(ΛίσταΜαθημάτων[ΩΡΑ ΕΝΑΡΞΗΣ],10))*($B31<=ΛίσταΜαθημάτων[ΩΡΑ ΛΗΞΗΣ]),ΛίσταΜαθημάτων[ΜΟΝΑΔΙΚΗ]),ΛίσταΜαθημάτων[ΜΟΝΑΔΙΚΗ],0),2),0)","v":0},{"$f":"IFERROR(INDEX(ΛίσταΜαθημάτων[],MATCH(SUMPRODUCT((ΛίσταΜαθημάτων[ΗΜΕΡΑ]=ΠρόγραμμαΜαθημάτων[[#Headers],[ΤΕΤΑΡΤΗ]])*(ROUNDDOWN($B31,10)>=ROUNDDOWN(ΛίσταΜαθημάτων[ΩΡΑ ΕΝΑΡΞΗΣ],10))*($B31<=ΛίσταΜαθημάτων[ΩΡΑ ΛΗΞΗΣ]),ΛίσταΜαθημάτων[ΜΟΝΑΔΙΚΗ]),ΛίσταΜαθημάτων[ΜΟΝΑΔΙΚΗ],0),2),0)","v":0},{"$f":"IFERROR(INDEX(ΛίσταΜαθημάτων[],MATCH(SUMPRODUCT((ΛίσταΜαθημάτων[ΗΜΕΡΑ]=ΠρόγραμμαΜαθημάτων[[#Headers],[ΠΕΜΠΤΗ]])*(ROUNDDOWN($B31,10)>=ROUNDDOWN(ΛίσταΜαθημάτων[ΩΡΑ ΕΝΑΡΞΗΣ],10))*($B31<=ΛίσταΜαθημάτων[ΩΡΑ ΛΗΞΗΣ]),ΛίσταΜαθημάτων[ΜΟΝΑΔΙΚΗ]),ΛίσταΜαθημάτων[ΜΟΝΑΔΙΚΗ],0),2),0)","v":0},{"$f":"IFERROR(INDEX(ΛίσταΜαθημάτων[],MATCH(SUMPRODUCT((ΛίσταΜαθημάτων[ΗΜΕΡΑ]=ΠρόγραμμαΜαθημάτων[[#Headers],[ΠΑΡΑΣΚΕΥΗ]])*(ROUNDDOWN($B31,10)>=ROUNDDOWN(ΛίσταΜαθημάτων[ΩΡΑ ΕΝΑΡΞΗΣ],10))*($B31<=ΛίσταΜαθημάτων[ΩΡΑ ΛΗΞΗΣ]),ΛίσταΜαθημάτων[ΜΟΝΑΔΙΚΗ]),ΛίσταΜαθημάτων[ΜΟΝΑΔΙΚΗ],0),2),0)","v":0},{"$f":"IFERROR(INDEX(ΛίσταΜαθημάτων[],MATCH(SUMPRODUCT((ΛίσταΜαθημάτων[ΗΜΕΡΑ]=ΠρόγραμμαΜαθημάτων[[#Headers],[ΣΑΒΒΑΤΟ]])*(ROUNDDOWN($B31,10)>=ROUNDDOWN(ΛίσταΜαθημάτων[ΩΡΑ ΕΝΑΡΞΗΣ],10))*($B31<=ΛίσταΜαθημάτων[ΩΡΑ ΛΗΞΗΣ]),ΛίσταΜαθημάτων[ΜΟΝΑΔΙΚΗ]),ΛίσταΜαθημάτων[ΜΟΝΑΔΙΚΗ],0),2),0)","v":0}]
[null,"15:00:00",{"$f":"IFERROR(INDEX(ΛίσταΜαθημάτων[],MATCH(SUMPRODUCT((ΛίσταΜαθημάτων[ΗΜΕΡΑ]=ΠρόγραμμαΜαθημάτων[[#Headers],[ΚΥΡΙΑΚΗ]])*(ROUNDDOWN($B32,10)>=ROUNDDOWN(ΛίσταΜαθημάτων[ΩΡΑ ΕΝΑΡΞΗΣ],10))*($B32<=ΛίσταΜαθημάτων[ΩΡΑ ΛΗΞΗΣ]),ΛίσταΜαθημάτων[ΜΟΝΑΔΙΚΗ]),ΛίσταΜαθημάτων[ΜΟΝΑΔΙΚΗ],0),2),0)","v":0},{"$f":"IFERROR(INDEX(ΛίσταΜαθημάτων[],MATCH(SUMPRODUCT((ΛίσταΜαθημάτων[ΗΜΕΡΑ]=ΠρόγραμμαΜαθημάτων[[#Headers],[ΔΕΥΤΕΡΑ]])*(ROUNDDOWN($B32,10)>=ROUNDDOWN(ΛίσταΜαθημάτων[ΩΡΑ ΕΝΑΡΞΗΣ],10))*($B32<=ΛίσταΜαθημάτων[ΩΡΑ ΛΗΞΗΣ]),ΛίσταΜαθημάτων[ΜΟΝΑΔΙΚΗ]),ΛίσταΜαθημάτων[ΜΟΝΑΔΙΚΗ],0),2),0)","v":0},{"$f":"IFERROR(INDEX(ΛίσταΜαθημάτων[],MATCH(SUMPRODUCT((ΛίσταΜαθημάτων[ΗΜΕΡΑ]=ΠρόγραμμαΜαθημάτων[[#Headers],[ΤΡΙΤΗ]])*(ROUNDDOWN($B32,10)>=ROUNDDOWN(ΛίσταΜαθημάτων[ΩΡΑ ΕΝΑΡΞΗΣ],10))*($B32<=ΛίσταΜαθημάτων[ΩΡΑ ΛΗΞΗΣ]),ΛίσταΜαθημάτων[ΜΟΝΑΔΙΚΗ]),ΛίσταΜαθημάτων[ΜΟΝΑΔΙΚΗ],0),2),0)","v":0},{"$f":"IFERROR(INDEX(ΛίσταΜαθημάτων[],MATCH(SUMPRODUCT((ΛίσταΜαθημάτων[ΗΜΕΡΑ]=ΠρόγραμμαΜαθημάτων[[#Headers],[ΤΕΤΑΡΤΗ]])*(ROUNDDOWN($B32,10)>=ROUNDDOWN(ΛίσταΜαθημάτων[ΩΡΑ ΕΝΑΡΞΗΣ],10))*($B32<=ΛίσταΜαθημάτων[ΩΡΑ ΛΗΞΗΣ]),ΛίσταΜαθημάτων[ΜΟΝΑΔΙΚΗ]),ΛίσταΜαθημάτων[ΜΟΝΑΔΙΚΗ],0),2),0)","v":0},{"$f":"IFERROR(INDEX(ΛίσταΜαθημάτων[],MATCH(SUMPRODUCT((ΛίσταΜαθημάτων[ΗΜΕΡΑ]=ΠρόγραμμαΜαθημάτων[[#Headers],[ΠΕΜΠΤΗ]])*(ROUNDDOWN($B32,10)>=ROUNDDOWN(ΛίσταΜαθημάτων[ΩΡΑ ΕΝΑΡΞΗΣ],10))*($B32<=ΛίσταΜαθημάτων[ΩΡΑ ΛΗΞΗΣ]),ΛίσταΜαθημάτων[ΜΟΝΑΔΙΚΗ]),ΛίσταΜαθημάτων[ΜΟΝΑΔΙΚΗ],0),2),0)","v":0},{"$f":"IFERROR(INDEX(ΛίσταΜαθημάτων[],MATCH(SUMPRODUCT((ΛίσταΜαθημάτων[ΗΜΕΡΑ]=ΠρόγραμμαΜαθημάτων[[#Headers],[ΠΑΡΑΣΚΕΥΗ]])*(ROUNDDOWN($B32,10)>=ROUNDDOWN(ΛίσταΜαθημάτων[ΩΡΑ ΕΝΑΡΞΗΣ],10))*($B32<=ΛίσταΜαθημάτων[ΩΡΑ ΛΗΞΗΣ]),ΛίσταΜαθημάτων[ΜΟΝΑΔΙΚΗ]),ΛίσταΜαθημάτων[ΜΟΝΑΔΙΚΗ],0),2),0)","v":0},{"$f":"IFERROR(INDEX(ΛίσταΜαθημάτων[],MATCH(SUMPRODUCT((ΛίσταΜαθημάτων[ΗΜΕΡΑ]=ΠρόγραμμαΜαθημάτων[[#Headers],[ΣΑΒΒΑΤΟ]])*(ROUNDDOWN($B32,10)>=ROUNDDOWN(ΛίσταΜαθημάτων[ΩΡΑ ΕΝΑΡΞΗΣ],10))*($B32<=ΛίσταΜαθημάτων[ΩΡΑ ΛΗΞΗΣ]),ΛίσταΜαθημάτων[ΜΟΝΑΔΙΚΗ]),ΛίσταΜαθημάτων[ΜΟΝΑΔΙΚΗ],0),2),0)","v":0}]
[null,"15:15:00",{"$f":"IFERROR(INDEX(ΛίσταΜαθημάτων[],MATCH(SUMPRODUCT((ΛίσταΜαθημάτων[ΗΜΕΡΑ]=ΠρόγραμμαΜαθημάτων[[#Headers],[ΚΥΡΙΑΚΗ]])*(ROUNDDOWN($B33,10)>=ROUNDDOWN(ΛίσταΜαθημάτων[ΩΡΑ ΕΝΑΡΞΗΣ],10))*($B33<=ΛίσταΜαθημάτων[ΩΡΑ ΛΗΞΗΣ]),ΛίσταΜαθημάτων[ΜΟΝΑΔΙΚΗ]),ΛίσταΜαθημάτων[ΜΟΝΑΔΙΚΗ],0),2),0)","v":0},{"$f":"IFERROR(INDEX(ΛίσταΜαθημάτων[],MATCH(SUMPRODUCT((ΛίσταΜαθημάτων[ΗΜΕΡΑ]=ΠρόγραμμαΜαθημάτων[[#Headers],[ΔΕΥΤΕΡΑ]])*(ROUNDDOWN($B33,10)>=ROUNDDOWN(ΛίσταΜαθημάτων[ΩΡΑ ΕΝΑΡΞΗΣ],10))*($B33<=ΛίσταΜαθημάτων[ΩΡΑ ΛΗΞΗΣ]),ΛίσταΜαθημάτων[ΜΟΝΑΔΙΚΗ]),ΛίσταΜαθημάτων[ΜΟΝΑΔΙΚΗ],0),2),0)","v":0},{"$f":"IFERROR(INDEX(ΛίσταΜαθημάτων[],MATCH(SUMPRODUCT((ΛίσταΜαθημάτων[ΗΜΕΡΑ]=ΠρόγραμμαΜαθημάτων[[#Headers],[ΤΡΙΤΗ]])*(ROUNDDOWN($B33,10)>=ROUNDDOWN(ΛίσταΜαθημάτων[ΩΡΑ ΕΝΑΡΞΗΣ],10))*($B33<=ΛίσταΜαθημάτων[ΩΡΑ ΛΗΞΗΣ]),ΛίσταΜαθημάτων[ΜΟΝΑΔΙΚΗ]),ΛίσταΜαθημάτων[ΜΟΝΑΔΙΚΗ],0),2),0)","v":0},{"$f":"IFERROR(INDEX(ΛίσταΜαθημάτων[],MATCH(SUMPRODUCT((ΛίσταΜαθημάτων[ΗΜΕΡΑ]=ΠρόγραμμαΜαθημάτων[[#Headers],[ΤΕΤΑΡΤΗ]])*(ROUNDDOWN($B33,10)>=ROUNDDOWN(ΛίσταΜαθημάτων[ΩΡΑ ΕΝΑΡΞΗΣ],10))*($B33<=ΛίσταΜαθημάτων[ΩΡΑ ΛΗΞΗΣ]),ΛίσταΜαθημάτων[ΜΟΝΑΔΙΚΗ]),ΛίσταΜαθημάτων[ΜΟΝΑΔΙΚΗ],0),2),0)","v":0},{"$f":"IFERROR(INDEX(ΛίσταΜαθημάτων[],MATCH(SUMPRODUCT((ΛίσταΜαθημάτων[ΗΜΕΡΑ]=ΠρόγραμμαΜαθημάτων[[#Headers],[ΠΕΜΠΤΗ]])*(ROUNDDOWN($B33,10)>=ROUNDDOWN(ΛίσταΜαθημάτων[ΩΡΑ ΕΝΑΡΞΗΣ],10))*($B33<=ΛίσταΜαθημάτων[ΩΡΑ ΛΗΞΗΣ]),ΛίσταΜαθημάτων[ΜΟΝΑΔΙΚΗ]),ΛίσταΜαθημάτων[ΜΟΝΑΔΙΚΗ],0),2),0)","v":0},{"$f":"IFERROR(INDEX(ΛίσταΜαθημάτων[],MATCH(SUMPRODUCT((ΛίσταΜαθημάτων[ΗΜΕΡΑ]=ΠρόγραμμαΜαθημάτων[[#Headers],[ΠΑΡΑΣΚΕΥΗ]])*(ROUNDDOWN($B33,10)>=ROUNDDOWN(ΛίσταΜαθημάτων[ΩΡΑ ΕΝΑΡΞΗΣ],10))*($B33<=ΛίσταΜαθημάτων[ΩΡΑ ΛΗΞΗΣ]),ΛίσταΜαθημάτων[ΜΟΝΑΔΙΚΗ]),ΛίσταΜαθημάτων[ΜΟΝΑΔΙΚΗ],0),2),0)","v":0},{"$f":"IFERROR(INDEX(ΛίσταΜαθημάτων[],MATCH(SUMPRODUCT((ΛίσταΜαθημάτων[ΗΜΕΡΑ]=ΠρόγραμμαΜαθημάτων[[#Headers],[ΣΑΒΒΑΤΟ]])*(ROUNDDOWN($B33,10)>=ROUNDDOWN(ΛίσταΜαθημάτων[ΩΡΑ ΕΝΑΡΞΗΣ],10))*($B33<=ΛίσταΜαθημάτων[ΩΡΑ ΛΗΞΗΣ]),ΛίσταΜαθημάτων[ΜΟΝΑΔΙΚΗ]),ΛίσταΜαθημάτων[ΜΟΝΑΔΙΚΗ],0),2),0)","v":0}]
[null,"15:30:00",{"$f":"IFERROR(INDEX(ΛίσταΜαθημάτων[],MATCH(SUMPRODUCT((ΛίσταΜαθημάτων[ΗΜΕΡΑ]=ΠρόγραμμαΜαθημάτων[[#Headers],[ΚΥΡΙΑΚΗ]])*(ROUNDDOWN($B34,10)>=ROUNDDOWN(ΛίσταΜαθημάτων[ΩΡΑ ΕΝΑΡΞΗΣ],10))*($B34<=ΛίσταΜαθημάτων[ΩΡΑ ΛΗΞΗΣ]),ΛίσταΜαθημάτων[ΜΟΝΑΔΙΚΗ]),ΛίσταΜαθημάτων[ΜΟΝΑΔΙΚΗ],0),2),0)","v":0},{"$f":"IFERROR(INDEX(ΛίσταΜαθημάτων[],MATCH(SUMPRODUCT((ΛίσταΜαθημάτων[ΗΜΕΡΑ]=ΠρόγραμμαΜαθημάτων[[#Headers],[ΔΕΥΤΕΡΑ]])*(ROUNDDOWN($B34,10)>=ROUNDDOWN(ΛίσταΜαθημάτων[ΩΡΑ ΕΝΑΡΞΗΣ],10))*($B34<=ΛίσταΜαθημάτων[ΩΡΑ ΛΗΞΗΣ]),ΛίσταΜαθημάτων[ΜΟΝΑΔΙΚΗ]),ΛίσταΜαθημάτων[ΜΟΝΑΔΙΚΗ],0),2),0)","v":0},{"$f":"IFERROR(INDEX(ΛίσταΜαθημάτων[],MATCH(SUMPRODUCT((ΛίσταΜαθημάτων[ΗΜΕΡΑ]=ΠρόγραμμαΜαθημάτων[[#Headers],[ΤΡΙΤΗ]])*(ROUNDDOWN($B34,10)>=ROUNDDOWN(ΛίσταΜαθημάτων[ΩΡΑ ΕΝΑΡΞΗΣ],10))*($B34<=ΛίσταΜαθημάτων[ΩΡΑ ΛΗΞΗΣ]),ΛίσταΜαθημάτων[ΜΟΝΑΔΙΚΗ]),ΛίσταΜαθημάτων[ΜΟΝΑΔΙΚΗ],0),2),0)","v":0},{"$f":"IFERROR(INDEX(ΛίσταΜαθημάτων[],MATCH(SUMPRODUCT((ΛίσταΜαθημάτων[ΗΜΕΡΑ]=ΠρόγραμμαΜαθημάτων[[#Headers],[ΤΕΤΑΡΤΗ]])*(ROUNDDOWN($B34,10)>=ROUNDDOWN(ΛίσταΜαθημάτων[ΩΡΑ ΕΝΑΡΞΗΣ],10))*($B34<=ΛίσταΜαθημάτων[ΩΡΑ ΛΗΞΗΣ]),ΛίσταΜαθημάτων[ΜΟΝΑΔΙΚΗ]),ΛίσταΜαθημάτων[ΜΟΝΑΔΙΚΗ],0),2),0)","v":0},{"$f":"IFERROR(INDEX(ΛίσταΜαθημάτων[],MATCH(SUMPRODUCT((ΛίσταΜαθημάτων[ΗΜΕΡΑ]=ΠρόγραμμαΜαθημάτων[[#Headers],[ΠΕΜΠΤΗ]])*(ROUNDDOWN($B34,10)>=ROUNDDOWN(ΛίσταΜαθημάτων[ΩΡΑ ΕΝΑΡΞΗΣ],10))*($B34<=ΛίσταΜαθημάτων[ΩΡΑ ΛΗΞΗΣ]),ΛίσταΜαθημάτων[ΜΟΝΑΔΙΚΗ]),ΛίσταΜαθημάτων[ΜΟΝΑΔΙΚΗ],0),2),0)","v":0},{"$f":"IFERROR(INDEX(ΛίσταΜαθημάτων[],MATCH(SUMPRODUCT((ΛίσταΜαθημάτων[ΗΜΕΡΑ]=ΠρόγραμμαΜαθημάτων[[#Headers],[ΠΑΡΑΣΚΕΥΗ]])*(ROUNDDOWN($B34,10)>=ROUNDDOWN(ΛίσταΜαθημάτων[ΩΡΑ ΕΝΑΡΞΗΣ],10))*($B34<=ΛίσταΜαθημάτων[ΩΡΑ ΛΗΞΗΣ]),ΛίσταΜαθημάτων[ΜΟΝΑΔΙΚΗ]),ΛίσταΜαθημάτων[ΜΟΝΑΔΙΚΗ],0),2),0)","v":0},{"$f":"IFERROR(INDEX(ΛίσταΜαθημάτων[],MATCH(SUMPRODUCT((ΛίσταΜαθημάτων[ΗΜΕΡΑ]=ΠρόγραμμαΜαθημάτων[[#Headers],[ΣΑΒΒΑΤΟ]])*(ROUNDDOWN($B34,10)>=ROUNDDOWN(ΛίσταΜαθημάτων[ΩΡΑ ΕΝΑΡΞΗΣ],10))*($B34<=ΛίσταΜαθημάτων[ΩΡΑ ΛΗΞΗΣ]),ΛίσταΜαθημάτων[ΜΟΝΑΔΙΚΗ]),ΛίσταΜαθημάτων[ΜΟΝΑΔΙΚΗ],0),2),0)","v":0}]
[null,"15:45:00",{"$f":"IFERROR(INDEX(ΛίσταΜαθημάτων[],MATCH(SUMPRODUCT((ΛίσταΜαθημάτων[ΗΜΕΡΑ]=ΠρόγραμμαΜαθημάτων[[#Headers],[ΚΥΡΙΑΚΗ]])*(ROUNDDOWN($B35,10)>=ROUNDDOWN(ΛίσταΜαθημάτων[ΩΡΑ ΕΝΑΡΞΗΣ],10))*($B35<=ΛίσταΜαθημάτων[ΩΡΑ ΛΗΞΗΣ]),ΛίσταΜαθημάτων[ΜΟΝΑΔΙΚΗ]),ΛίσταΜαθημάτων[ΜΟΝΑΔΙΚΗ],0),2),0)","v":0},{"$f":"IFERROR(INDEX(ΛίσταΜαθημάτων[],MATCH(SUMPRODUCT((ΛίσταΜαθημάτων[ΗΜΕΡΑ]=ΠρόγραμμαΜαθημάτων[[#Headers],[ΔΕΥΤΕΡΑ]])*(ROUNDDOWN($B35,10)>=ROUNDDOWN(ΛίσταΜαθημάτων[ΩΡΑ ΕΝΑΡΞΗΣ],10))*($B35<=ΛίσταΜαθημάτων[ΩΡΑ ΛΗΞΗΣ]),ΛίσταΜαθημάτων[ΜΟΝΑΔΙΚΗ]),ΛίσταΜαθημάτων[ΜΟΝΑΔΙΚΗ],0),2),0)","v":0},{"$f":"IFERROR(INDEX(ΛίσταΜαθημάτων[],MATCH(SUMPRODUCT((ΛίσταΜαθημάτων[ΗΜΕΡΑ]=ΠρόγραμμαΜαθημάτων[[#Headers],[ΤΡΙΤΗ]])*(ROUNDDOWN($B35,10)>=ROUNDDOWN(ΛίσταΜαθημάτων[ΩΡΑ ΕΝΑΡΞΗΣ],10))*($B35<=ΛίσταΜαθημάτων[ΩΡΑ ΛΗΞΗΣ]),ΛίσταΜαθημάτων[ΜΟΝΑΔΙΚΗ]),ΛίσταΜαθημάτων[ΜΟΝΑΔΙΚΗ],0),2),0)","v":0},{"$f":"IFERROR(INDEX(ΛίσταΜαθημάτων[],MATCH(SUMPRODUCT((ΛίσταΜαθημάτων[ΗΜΕΡΑ]=ΠρόγραμμαΜαθημάτων[[#Headers],[ΤΕΤΑΡΤΗ]])*(ROUNDDOWN($B35,10)>=ROUNDDOWN(ΛίσταΜαθημάτων[ΩΡΑ ΕΝΑΡΞΗΣ],10))*($B35<=ΛίσταΜαθημάτων[ΩΡΑ ΛΗΞΗΣ]),ΛίσταΜαθημάτων[ΜΟΝΑΔΙΚΗ]),ΛίσταΜαθημάτων[ΜΟΝΑΔΙΚΗ],0),2),0)","v":0},{"$f":"IFERROR(INDEX(ΛίσταΜαθημάτων[],MATCH(SUMPRODUCT((ΛίσταΜαθημάτων[ΗΜΕΡΑ]=ΠρόγραμμαΜαθημάτων[[#Headers],[ΠΕΜΠΤΗ]])*(ROUNDDOWN($B35,10)>=ROUNDDOWN(ΛίσταΜαθημάτων[ΩΡΑ ΕΝΑΡΞΗΣ],10))*($B35<=ΛίσταΜαθημάτων[ΩΡΑ ΛΗΞΗΣ]),ΛίσταΜαθημάτων[ΜΟΝΑΔΙΚΗ]),ΛίσταΜαθημάτων[ΜΟΝΑΔΙΚΗ],0),2),0)","v":0},{"$f":"IFERROR(INDEX(ΛίσταΜαθημάτων[],MATCH(SUMPRODUCT((ΛίσταΜαθημάτων[ΗΜΕΡΑ]=ΠρόγραμμαΜαθημάτων[[#Headers],[ΠΑΡΑΣΚΕΥΗ]])*(ROUNDDOWN($B35,10)>=ROUNDDOWN(ΛίσταΜαθημάτων[ΩΡΑ ΕΝΑΡΞΗΣ],10))*($B35<=ΛίσταΜαθημάτων[ΩΡΑ ΛΗΞΗΣ]),ΛίσταΜαθημάτων[ΜΟΝΑΔΙΚΗ]),ΛίσταΜαθημάτων[ΜΟΝΑΔΙΚΗ],0),2),0)","v":0},{"$f":"IFERROR(INDEX(ΛίσταΜαθημάτων[],MATCH(SUMPRODUCT((ΛίσταΜαθημάτων[ΗΜΕΡΑ]=ΠρόγραμμαΜαθημάτων[[#Headers],[ΣΑΒΒΑΤΟ]])*(ROUNDDOWN($B35,10)>=ROUNDDOWN(ΛίσταΜαθημάτων[ΩΡΑ ΕΝΑΡΞΗΣ],10))*($B35<=ΛίσταΜαθημάτων[ΩΡΑ ΛΗΞΗΣ]),ΛίσταΜαθημάτων[ΜΟΝΑΔΙΚΗ]),ΛίσταΜαθημάτων[ΜΟΝΑΔΙΚΗ],0),2),0)","v":0}]
[null,"16:00:00",{"$f":"IFERROR(INDEX(ΛίσταΜαθημάτων[],MATCH(SUMPRODUCT((ΛίσταΜαθημάτων[ΗΜΕΡΑ]=ΠρόγραμμαΜαθημάτων[[#Headers],[ΚΥΡΙΑΚΗ]])*(ROUNDDOWN($B36,10)>=ROUNDDOWN(ΛίσταΜαθημάτων[ΩΡΑ ΕΝΑΡΞΗΣ],10))*($B36<=ΛίσταΜαθημάτων[ΩΡΑ ΛΗΞΗΣ]),ΛίσταΜαθημάτων[ΜΟΝΑΔΙΚΗ]),ΛίσταΜαθημάτων[ΜΟΝΑΔΙΚΗ],0),2),0)","v":0},{"$f":"IFERROR(INDEX(ΛίσταΜαθημάτων[],MATCH(SUMPRODUCT((ΛίσταΜαθημάτων[ΗΜΕΡΑ]=ΠρόγραμμαΜαθημάτων[[#Headers],[ΔΕΥΤΕΡΑ]])*(ROUNDDOWN($B36,10)>=ROUNDDOWN(ΛίσταΜαθημάτων[ΩΡΑ ΕΝΑΡΞΗΣ],10))*($B36<=ΛίσταΜαθημάτων[ΩΡΑ ΛΗΞΗΣ]),ΛίσταΜαθημάτων[ΜΟΝΑΔΙΚΗ]),ΛίσταΜαθημάτων[ΜΟΝΑΔΙΚΗ],0),2),0)","v":"SP-111"},{"$f":"IFERROR(INDEX(ΛίσταΜαθημάτων[],MATCH(SUMPRODUCT((ΛίσταΜαθημάτων[ΗΜΕΡΑ]=ΠρόγραμμαΜαθημάτων[[#Headers],[ΤΡΙΤΗ]])*(ROUNDDOWN($B36,10)>=ROUNDDOWN(ΛίσταΜαθημάτων[ΩΡΑ ΕΝΑΡΞΗΣ],10))*($B36<=ΛίσταΜαθημάτων[ΩΡΑ ΛΗΞΗΣ]),ΛίσταΜαθημάτων[ΜΟΝΑΔΙΚΗ]),ΛίσταΜαθημάτων[ΜΟΝΑΔΙΚΗ],0),2),0)","v":0},{"$f":"IFERROR(INDEX(ΛίσταΜαθημάτων[],MATCH(SUMPRODUCT((ΛίσταΜαθημάτων[ΗΜΕΡΑ]=ΠρόγραμμαΜαθημάτων[[#Headers],[ΤΕΤΑΡΤΗ]])*(ROUNDDOWN($B36,10)>=ROUNDDOWN(ΛίσταΜαθημάτων[ΩΡΑ ΕΝΑΡΞΗΣ],10))*($B36<=ΛίσταΜαθημάτων[ΩΡΑ ΛΗΞΗΣ]),ΛίσταΜαθημάτων[ΜΟΝΑΔΙΚΗ]),ΛίσταΜαθημάτων[ΜΟΝΑΔΙΚΗ],0),2),0)","v":0},{"$f":"IFERROR(INDEX(ΛίσταΜαθημάτων[],MATCH(SUMPRODUCT((ΛίσταΜαθημάτων[ΗΜΕΡΑ]=ΠρόγραμμαΜαθημάτων[[#Headers],[ΠΕΜΠΤΗ]])*(ROUNDDOWN($B36,10)>=ROUNDDOWN(ΛίσταΜαθημάτων[ΩΡΑ ΕΝΑΡΞΗΣ],10))*($B36<=ΛίσταΜαθημάτων[ΩΡΑ ΛΗΞΗΣ]),ΛίσταΜαθημάτων[ΜΟΝΑΔΙΚΗ]),ΛίσταΜαθημάτων[ΜΟΝΑΔΙΚΗ],0),2),0)","v":0},{"$f":"IFERROR(INDEX(ΛίσταΜαθημάτων[],MATCH(SUMPRODUCT((ΛίσταΜαθημάτων[ΗΜΕΡΑ]=ΠρόγραμμαΜαθημάτων[[#Headers],[ΠΑΡΑΣΚΕΥΗ]])*(ROUNDDOWN($B36,10)>=ROUNDDOWN(ΛίσταΜαθημάτων[ΩΡΑ ΕΝΑΡΞΗΣ],10))*($B36<=ΛίσταΜαθημάτων[ΩΡΑ ΛΗΞΗΣ]),ΛίσταΜαθημάτων[ΜΟΝΑΔΙΚΗ]),ΛίσταΜαθημάτων[ΜΟΝΑΔΙΚΗ],0),2),0)","v":0},{"$f":"IFERROR(INDEX(ΛίσταΜαθημάτων[],MATCH(SUMPRODUCT((ΛίσταΜαθημάτων[ΗΜΕΡΑ]=ΠρόγραμμαΜαθημάτων[[#Headers],[ΣΑΒΒΑΤΟ]])*(ROUNDDOWN($B36,10)>=ROUNDDOWN(ΛίσταΜαθημάτων[ΩΡΑ ΕΝΑΡΞΗΣ],10))*($B36<=ΛίσταΜαθημάτων[ΩΡΑ ΛΗΞΗΣ]),ΛίσταΜαθημάτων[ΜΟΝΑΔΙΚΗ]),ΛίσταΜαθημάτων[ΜΟΝΑΔΙΚΗ],0),2),0)","v":0}]
[null,{"$f":"B36+Προσαύξηση","v":"16:15:00"},{"$f":"IFERROR(INDEX(ΛίσταΜαθημάτων[],MATCH(SUMPRODUCT((ΛίσταΜαθημάτων[ΗΜΕΡΑ]=ΠρόγραμμαΜαθημάτων[[#Headers],[ΚΥΡΙΑΚΗ]])*(ROUNDDOWN($B37,10)>=ROUNDDOWN(ΛίσταΜαθημάτων[ΩΡΑ ΕΝΑΡΞΗΣ],10))*($B37<=ΛίσταΜαθημάτων[ΩΡΑ ΛΗΞΗΣ]),ΛίσταΜαθημάτων[ΜΟΝΑΔΙΚΗ]),ΛίσταΜαθημάτων[ΜΟΝΑΔΙΚΗ],0),2),0)","v":0},{"$f":"IFERROR(INDEX(ΛίσταΜαθημάτων[],MATCH(SUMPRODUCT((ΛίσταΜαθημάτων[ΗΜΕΡΑ]=ΠρόγραμμαΜαθημάτων[[#Headers],[ΔΕΥΤΕΡΑ]])*(ROUNDDOWN($B37,10)>=ROUNDDOWN(ΛίσταΜαθημάτων[ΩΡΑ ΕΝΑΡΞΗΣ],10))*($B37<=ΛίσταΜαθημάτων[ΩΡΑ ΛΗΞΗΣ]),ΛίσταΜαθημάτων[ΜΟΝΑΔΙΚΗ]),ΛίσταΜαθημάτων[ΜΟΝΑΔΙΚΗ],0),2),0)","v":"SP-111"},{"$f":"IFERROR(INDEX(ΛίσταΜαθημάτων[],MATCH(SUMPRODUCT((ΛίσταΜαθημάτων[ΗΜΕΡΑ]=ΠρόγραμμαΜαθημάτων[[#Headers],[ΤΡΙΤΗ]])*(ROUNDDOWN($B37,10)>=ROUNDDOWN(ΛίσταΜαθημάτων[ΩΡΑ ΕΝΑΡΞΗΣ],10))*($B37<=ΛίσταΜαθημάτων[ΩΡΑ ΛΗΞΗΣ]),ΛίσταΜαθημάτων[ΜΟΝΑΔΙΚΗ]),ΛίσταΜαθημάτων[ΜΟΝΑΔΙΚΗ],0),2),0)","v":0},{"$f":"IFERROR(INDEX(ΛίσταΜαθημάτων[],MATCH(SUMPRODUCT((ΛίσταΜαθημάτων[ΗΜΕΡΑ]=ΠρόγραμμαΜαθημάτων[[#Headers],[ΤΕΤΑΡΤΗ]])*(ROUNDDOWN($B37,10)>=ROUNDDOWN(ΛίσταΜαθημάτων[ΩΡΑ ΕΝΑΡΞΗΣ],10))*($B37<=ΛίσταΜαθημάτων[ΩΡΑ ΛΗΞΗΣ]),ΛίσταΜαθημάτων[ΜΟΝΑΔΙΚΗ]),ΛίσταΜαθημάτων[ΜΟΝΑΔΙΚΗ],0),2),0)","v":0},{"$f":"IFERROR(INDEX(ΛίσταΜαθημάτων[],MATCH(SUMPRODUCT((ΛίσταΜαθημάτων[ΗΜΕΡΑ]=ΠρόγραμμαΜαθημάτων[[#Headers],[ΠΕΜΠΤΗ]])*(ROUNDDOWN($B37,10)>=ROUNDDOWN(ΛίσταΜαθημάτων[ΩΡΑ ΕΝΑΡΞΗΣ],10))*($B37<=ΛίσταΜαθημάτων[ΩΡΑ ΛΗΞΗΣ]),ΛίσταΜαθημάτων[ΜΟΝΑΔΙΚΗ]),ΛίσταΜαθημάτων[ΜΟΝΑΔΙΚΗ],0),2),0)","v":0},{"$f":"IFERROR(INDEX(ΛίσταΜαθημάτων[],MATCH(SUMPRODUCT((ΛίσταΜαθημάτων[ΗΜΕΡΑ]=ΠρόγραμμαΜαθημάτων[[#Headers],[ΠΑΡΑΣΚΕΥΗ]])*(ROUNDDOWN($B37,10)>=ROUNDDOWN(ΛίσταΜαθημάτων[ΩΡΑ ΕΝΑΡΞΗΣ],10))*($B37<=ΛίσταΜαθημάτων[ΩΡΑ ΛΗΞΗΣ]),ΛίσταΜαθημάτων[ΜΟΝΑΔΙΚΗ]),ΛίσταΜαθημάτων[ΜΟΝΑΔΙΚΗ],0),2),0)","v":0},{"$f":"IFERROR(INDEX(ΛίσταΜαθημάτων[],MATCH(SUMPRODUCT((ΛίσταΜαθημάτων[ΗΜΕΡΑ]=ΠρόγραμμαΜαθημάτων[[#Headers],[ΣΑΒΒΑΤΟ]])*(ROUNDDOWN($B37,10)>=ROUNDDOWN(ΛίσταΜαθημάτων[ΩΡΑ ΕΝΑΡΞΗΣ],10))*($B37<=ΛίσταΜαθημάτων[ΩΡΑ ΛΗΞΗΣ]),ΛίσταΜαθημάτων[ΜΟΝΑΔΙΚΗ]),ΛίσταΜαθημάτων[ΜΟΝΑΔΙΚΗ],0),2),0)","v":0}]
[null,"16:30:00",{"$f":"IFERROR(INDEX(ΛίσταΜαθημάτων[],MATCH(SUMPRODUCT((ΛίσταΜαθημάτων[ΗΜΕΡΑ]=ΠρόγραμμαΜαθημάτων[[#Headers],[ΚΥΡΙΑΚΗ]])*(ROUNDDOWN($B38,10)>=ROUNDDOWN(ΛίσταΜαθημάτων[ΩΡΑ ΕΝΑΡΞΗΣ],10))*($B38<=ΛίσταΜαθημάτων[ΩΡΑ ΛΗΞΗΣ]),ΛίσταΜαθημάτων[ΜΟΝΑΔΙΚΗ]),ΛίσταΜαθημάτων[ΜΟΝΑΔΙΚΗ],0),2),0)","v":0},{"$f":"IFERROR(INDEX(ΛίσταΜαθημάτων[],MATCH(SUMPRODUCT((ΛίσταΜαθημάτων[ΗΜΕΡΑ]=ΠρόγραμμαΜαθημάτων[[#Headers],[ΔΕΥΤΕΡΑ]])*(ROUNDDOWN($B38,10)>=ROUNDDOWN(ΛίσταΜαθημάτων[ΩΡΑ ΕΝΑΡΞΗΣ],10))*($B38<=ΛίσταΜαθημάτων[ΩΡΑ ΛΗΞΗΣ]),ΛίσταΜαθημάτων[ΜΟΝΑΔΙΚΗ]),ΛίσταΜαθημάτων[ΜΟΝΑΔΙΚΗ],0),2),0)","v":"SP-111"},{"$f":"IFERROR(INDEX(ΛίσταΜαθημάτων[],MATCH(SUMPRODUCT((ΛίσταΜαθημάτων[ΗΜΕΡΑ]=ΠρόγραμμαΜαθημάτων[[#Headers],[ΤΡΙΤΗ]])*(ROUNDDOWN($B38,10)>=ROUNDDOWN(ΛίσταΜαθημάτων[ΩΡΑ ΕΝΑΡΞΗΣ],10))*($B38<=ΛίσταΜαθημάτων[ΩΡΑ ΛΗΞΗΣ]),ΛίσταΜαθημάτων[ΜΟΝΑΔΙΚΗ]),ΛίσταΜαθημάτων[ΜΟΝΑΔΙΚΗ],0),2),0)","v":0},{"$f":"IFERROR(INDEX(ΛίσταΜαθημάτων[],MATCH(SUMPRODUCT((ΛίσταΜαθημάτων[ΗΜΕΡΑ]=ΠρόγραμμαΜαθημάτων[[#Headers],[ΤΕΤΑΡΤΗ]])*(ROUNDDOWN($B38,10)>=ROUNDDOWN(ΛίσταΜαθημάτων[ΩΡΑ ΕΝΑΡΞΗΣ],10))*($B38<=ΛίσταΜαθημάτων[ΩΡΑ ΛΗΞΗΣ]),ΛίσταΜαθημάτων[ΜΟΝΑΔΙΚΗ]),ΛίσταΜαθημάτων[ΜΟΝΑΔΙΚΗ],0),2),0)","v":0},{"$f":"IFERROR(INDEX(ΛίσταΜαθημάτων[],MATCH(SUMPRODUCT((ΛίσταΜαθημάτων[ΗΜΕΡΑ]=ΠρόγραμμαΜαθημάτων[[#Headers],[ΠΕΜΠΤΗ]])*(ROUNDDOWN($B38,10)>=ROUNDDOWN(ΛίσταΜαθημάτων[ΩΡΑ ΕΝΑΡΞΗΣ],10))*($B38<=ΛίσταΜαθημάτων[ΩΡΑ ΛΗΞΗΣ]),ΛίσταΜαθημάτων[ΜΟΝΑΔΙΚΗ]),ΛίσταΜαθημάτων[ΜΟΝΑΔΙΚΗ],0),2),0)","v":0},{"$f":"IFERROR(INDEX(ΛίσταΜαθημάτων[],MATCH(SUMPRODUCT((ΛίσταΜαθημάτων[ΗΜΕΡΑ]=ΠρόγραμμαΜαθημάτων[[#Headers],[ΠΑΡΑΣΚΕΥΗ]])*(ROUNDDOWN($B38,10)>=ROUNDDOWN(ΛίσταΜαθημάτων[ΩΡΑ ΕΝΑΡΞΗΣ],10))*($B38<=ΛίσταΜαθημάτων[ΩΡΑ ΛΗΞΗΣ]),ΛίσταΜαθημάτων[ΜΟΝΑΔΙΚΗ]),ΛίσταΜαθημάτων[ΜΟΝΑΔΙΚΗ],0),2),0)","v":0},{"$f":"IFERROR(INDEX(ΛίσταΜαθημάτων[],MATCH(SUMPRODUCT((ΛίσταΜαθημάτων[ΗΜΕΡΑ]=ΠρόγραμμαΜαθημάτων[[#Headers],[ΣΑΒΒΑΤΟ]])*(ROUNDDOWN($B38,10)>=ROUNDDOWN(ΛίσταΜαθημάτων[ΩΡΑ ΕΝΑΡΞΗΣ],10))*($B38<=ΛίσταΜαθημάτων[ΩΡΑ ΛΗΞΗΣ]),ΛίσταΜαθημάτων[ΜΟΝΑΔΙΚΗ]),ΛίσταΜαθημάτων[ΜΟΝΑΔΙΚΗ],0),2),0)","v":0}]
[null,"16:45:00",{"$f":"IFERROR(INDEX(ΛίσταΜαθημάτων[],MATCH(SUMPRODUCT((ΛίσταΜαθημάτων[ΗΜΕΡΑ]=ΠρόγραμμαΜαθημάτων[[#Headers],[ΚΥΡΙΑΚΗ]])*(ROUNDDOWN($B39,10)>=ROUNDDOWN(ΛίσταΜαθημάτων[ΩΡΑ ΕΝΑΡΞΗΣ],10))*($B39<=ΛίσταΜαθημάτων[ΩΡΑ ΛΗΞΗΣ]),ΛίσταΜαθημάτων[ΜΟΝΑΔΙΚΗ]),ΛίσταΜαθημάτων[ΜΟΝΑΔΙΚΗ],0),2),0)","v":0},{"$f":"IFERROR(INDEX(ΛίσταΜαθημάτων[],MATCH(SUMPRODUCT((ΛίσταΜαθημάτων[ΗΜΕΡΑ]=ΠρόγραμμαΜαθημάτων[[#Headers],[ΔΕΥΤΕΡΑ]])*(ROUNDDOWN($B39,10)>=ROUNDDOWN(ΛίσταΜαθημάτων[ΩΡΑ ΕΝΑΡΞΗΣ],10))*($B39<=ΛίσταΜαθημάτων[ΩΡΑ ΛΗΞΗΣ]),ΛίσταΜαθημάτων[ΜΟΝΑΔΙΚΗ]),ΛίσταΜαθημάτων[ΜΟΝΑΔΙΚΗ],0),2),0)","v":"SP-111"},{"$f":"IFERROR(INDEX(ΛίσταΜαθημάτων[],MATCH(SUMPRODUCT((ΛίσταΜαθημάτων[ΗΜΕΡΑ]=ΠρόγραμμαΜαθημάτων[[#Headers],[ΤΡΙΤΗ]])*(ROUNDDOWN($B39,10)>=ROUNDDOWN(ΛίσταΜαθημάτων[ΩΡΑ ΕΝΑΡΞΗΣ],10))*($B39<=ΛίσταΜαθημάτων[ΩΡΑ ΛΗΞΗΣ]),ΛίσταΜαθημάτων[ΜΟΝΑΔΙΚΗ]),ΛίσταΜαθημάτων[ΜΟΝΑΔΙΚΗ],0),2),0)","v":0},{"$f":"IFERROR(INDEX(ΛίσταΜαθημάτων[],MATCH(SUMPRODUCT((ΛίσταΜαθημάτων[ΗΜΕΡΑ]=ΠρόγραμμαΜαθημάτων[[#Headers],[ΤΕΤΑΡΤΗ]])*(ROUNDDOWN($B39,10)>=ROUNDDOWN(ΛίσταΜαθημάτων[ΩΡΑ ΕΝΑΡΞΗΣ],10))*($B39<=ΛίσταΜαθημάτων[ΩΡΑ ΛΗΞΗΣ]),ΛίσταΜαθημάτων[ΜΟΝΑΔΙΚΗ]),ΛίσταΜαθημάτων[ΜΟΝΑΔΙΚΗ],0),2),0)","v":0},{"$f":"IFERROR(INDEX(ΛίσταΜαθημάτων[],MATCH(SUMPRODUCT((ΛίσταΜαθημάτων[ΗΜΕΡΑ]=ΠρόγραμμαΜαθημάτων[[#Headers],[ΠΕΜΠΤΗ]])*(ROUNDDOWN($B39,10)>=ROUNDDOWN(ΛίσταΜαθημάτων[ΩΡΑ ΕΝΑΡΞΗΣ],10))*($B39<=ΛίσταΜαθημάτων[ΩΡΑ ΛΗΞΗΣ]),ΛίσταΜαθημάτων[ΜΟΝΑΔΙΚΗ]),ΛίσταΜαθημάτων[ΜΟΝΑΔΙΚΗ],0),2),0)","v":0},{"$f":"IFERROR(INDEX(ΛίσταΜαθημάτων[],MATCH(SUMPRODUCT((ΛίσταΜαθημάτων[ΗΜΕΡΑ]=ΠρόγραμμαΜαθημάτων[[#Headers],[ΠΑΡΑΣΚΕΥΗ]])*(ROUNDDOWN($B39,10)>=ROUNDDOWN(ΛίσταΜαθημάτων[ΩΡΑ ΕΝΑΡΞΗΣ],10))*($B39<=ΛίσταΜαθημάτων[ΩΡΑ ΛΗΞΗΣ]),ΛίσταΜαθημάτων[ΜΟΝΑΔΙΚΗ]),ΛίσταΜαθημάτων[ΜΟΝΑΔΙΚΗ],0),2),0)","v":0},{"$f":"IFERROR(INDEX(ΛίσταΜαθημάτων[],MATCH(SUMPRODUCT((ΛίσταΜαθημάτων[ΗΜΕΡΑ]=ΠρόγραμμαΜαθημάτων[[#Headers],[ΣΑΒΒΑΤΟ]])*(ROUNDDOWN($B39,10)>=ROUNDDOWN(ΛίσταΜαθημάτων[ΩΡΑ ΕΝΑΡΞΗΣ],10))*($B39<=ΛίσταΜαθημάτων[ΩΡΑ ΛΗΞΗΣ]),ΛίσταΜαθημάτων[ΜΟΝΑΔΙΚΗ]),ΛίσταΜαθημάτων[ΜΟΝΑΔΙΚΗ],0),2),0)","v":0}]
[null,"17:00:00",{"$f":"IFERROR(INDEX(ΛίσταΜαθημάτων[],MATCH(SUMPRODUCT((ΛίσταΜαθημάτων[ΗΜΕΡΑ]=ΠρόγραμμαΜαθημάτων[[#Headers],[ΚΥΡΙΑΚΗ]])*(ROUNDDOWN($B40,10)>=ROUNDDOWN(ΛίσταΜαθημάτων[ΩΡΑ ΕΝΑΡΞΗΣ],10))*($B40<=ΛίσταΜαθημάτων[ΩΡΑ ΛΗΞΗΣ]),ΛίσταΜαθημάτων[ΜΟΝΑΔΙΚΗ]),ΛίσταΜαθημάτων[ΜΟΝΑΔΙΚΗ],0),2),0)","v":0},{"$f":"IFERROR(INDEX(ΛίσταΜαθημάτων[],MATCH(SUMPRODUCT((ΛίσταΜαθημάτων[ΗΜΕΡΑ]=ΠρόγραμμαΜαθημάτων[[#Headers],[ΔΕΥΤΕΡΑ]])*(ROUNDDOWN($B40,10)>=ROUNDDOWN(ΛίσταΜαθημάτων[ΩΡΑ ΕΝΑΡΞΗΣ],10))*($B40<=ΛίσταΜαθημάτων[ΩΡΑ ΛΗΞΗΣ]),ΛίσταΜαθημάτων[ΜΟΝΑΔΙΚΗ]),ΛίσταΜαθημάτων[ΜΟΝΑΔΙΚΗ],0),2),0)","v":"SP-111"},{"$f":"IFERROR(INDEX(ΛίσταΜαθημάτων[],MATCH(SUMPRODUCT((ΛίσταΜαθημάτων[ΗΜΕΡΑ]=ΠρόγραμμαΜαθημάτων[[#Headers],[ΤΡΙΤΗ]])*(ROUNDDOWN($B40,10)>=ROUNDDOWN(ΛίσταΜαθημάτων[ΩΡΑ ΕΝΑΡΞΗΣ],10))*($B40<=ΛίσταΜαθημάτων[ΩΡΑ ΛΗΞΗΣ]),ΛίσταΜαθημάτων[ΜΟΝΑΔΙΚΗ]),ΛίσταΜαθημάτων[ΜΟΝΑΔΙΚΗ],0),2),0)","v":0},{"$f":"IFERROR(INDEX(ΛίσταΜαθημάτων[],MATCH(SUMPRODUCT((ΛίσταΜαθημάτων[ΗΜΕΡΑ]=ΠρόγραμμαΜαθημάτων[[#Headers],[ΤΕΤΑΡΤΗ]])*(ROUNDDOWN($B40,10)>=ROUNDDOWN(ΛίσταΜαθημάτων[ΩΡΑ ΕΝΑΡΞΗΣ],10))*($B40<=ΛίσταΜαθημάτων[ΩΡΑ ΛΗΞΗΣ]),ΛίσταΜαθημάτων[ΜΟΝΑΔΙΚΗ]),ΛίσταΜαθημάτων[ΜΟΝΑΔΙΚΗ],0),2),0)","v":0},{"$f":"IFERROR(INDEX(ΛίσταΜαθημάτων[],MATCH(SUMPRODUCT((ΛίσταΜαθημάτων[ΗΜΕΡΑ]=ΠρόγραμμαΜαθημάτων[[#Headers],[ΠΕΜΠΤΗ]])*(ROUNDDOWN($B40,10)>=ROUNDDOWN(ΛίσταΜαθημάτων[ΩΡΑ ΕΝΑΡΞΗΣ],10))*($B40<=ΛίσταΜαθημάτων[ΩΡΑ ΛΗΞΗΣ]),ΛίσταΜαθημάτων[ΜΟΝΑΔΙΚΗ]),ΛίσταΜαθημάτων[ΜΟΝΑΔΙΚΗ],0),2),0)","v":0},{"$f":"IFERROR(INDEX(ΛίσταΜαθημάτων[],MATCH(SUMPRODUCT((ΛίσταΜαθημάτων[ΗΜΕΡΑ]=ΠρόγραμμαΜαθημάτων[[#Headers],[ΠΑΡΑΣΚΕΥΗ]])*(ROUNDDOWN($B40,10)>=ROUNDDOWN(ΛίσταΜαθημάτων[ΩΡΑ ΕΝΑΡΞΗΣ],10))*($B40<=ΛίσταΜαθημάτων[ΩΡΑ ΛΗΞΗΣ]),ΛίσταΜαθημάτων[ΜΟΝΑΔΙΚΗ]),ΛίσταΜαθημάτων[ΜΟΝΑΔΙΚΗ],0),2),0)","v":0},{"$f":"IFERROR(INDEX(ΛίσταΜαθημάτων[],MATCH(SUMPRODUCT((ΛίσταΜαθημάτων[ΗΜΕΡΑ]=ΠρόγραμμαΜαθημάτων[[#Headers],[ΣΑΒΒΑΤΟ]])*(ROUNDDOWN($B40,10)>=ROUNDDOWN(ΛίσταΜαθημάτων[ΩΡΑ ΕΝΑΡΞΗΣ],10))*($B40<=ΛίσταΜαθημάτων[ΩΡΑ ΛΗΞΗΣ]),ΛίσταΜαθημάτων[ΜΟΝΑΔΙΚΗ]),ΛίσταΜαθημάτων[ΜΟΝΑΔΙΚΗ],0),2),0)","v":0}]
[null,"17:15:00",{"$f":"IFERROR(INDEX(ΛίσταΜαθημάτων[],MATCH(SUMPRODUCT((ΛίσταΜαθημάτων[ΗΜΕΡΑ]=ΠρόγραμμαΜαθημάτων[[#Headers],[ΚΥΡΙΑΚΗ]])*(ROUNDDOWN($B41,10)>=ROUNDDOWN(ΛίσταΜαθημάτων[ΩΡΑ ΕΝΑΡΞΗΣ],10))*($B41<=ΛίσταΜαθημάτων[ΩΡΑ ΛΗΞΗΣ]),ΛίσταΜαθημάτων[ΜΟΝΑΔΙΚΗ]),ΛίσταΜαθημάτων[ΜΟΝΑΔΙΚΗ],0),2),0)","v":0},{"$f":"IFERROR(INDEX(ΛίσταΜαθημάτων[],MATCH(SUMPRODUCT((ΛίσταΜαθημάτων[ΗΜΕΡΑ]=ΠρόγραμμαΜαθημάτων[[#Headers],[ΔΕΥΤΕΡΑ]])*(ROUNDDOWN($B41,10)>=ROUNDDOWN(ΛίσταΜαθημάτων[ΩΡΑ ΕΝΑΡΞΗΣ],10))*($B41<=ΛίσταΜαθημάτων[ΩΡΑ ΛΗΞΗΣ]),ΛίσταΜαθημάτων[ΜΟΝΑΔΙΚΗ]),ΛίσταΜαθημάτων[ΜΟΝΑΔΙΚΗ],0),2),0)","v":0},{"$f":"IFERROR(INDEX(ΛίσταΜαθημάτων[],MATCH(SUMPRODUCT((ΛίσταΜαθημάτων[ΗΜΕΡΑ]=ΠρόγραμμαΜαθημάτων[[#Headers],[ΤΡΙΤΗ]])*(ROUNDDOWN($B41,10)>=ROUNDDOWN(ΛίσταΜαθημάτων[ΩΡΑ ΕΝΑΡΞΗΣ],10))*($B41<=ΛίσταΜαθημάτων[ΩΡΑ ΛΗΞΗΣ]),ΛίσταΜαθημάτων[ΜΟΝΑΔΙΚΗ]),ΛίσταΜαθημάτων[ΜΟΝΑΔΙΚΗ],0),2),0)","v":0},{"$f":"IFERROR(INDEX(ΛίσταΜαθημάτων[],MATCH(SUMPRODUCT((ΛίσταΜαθημάτων[ΗΜΕΡΑ]=ΠρόγραμμαΜαθημάτων[[#Headers],[ΤΕΤΑΡΤΗ]])*(ROUNDDOWN($B41,10)>=ROUNDDOWN(ΛίσταΜαθημάτων[ΩΡΑ ΕΝΑΡΞΗΣ],10))*($B41<=ΛίσταΜαθημάτων[ΩΡΑ ΛΗΞΗΣ]),ΛίσταΜαθημάτων[ΜΟΝΑΔΙΚΗ]),ΛίσταΜαθημάτων[ΜΟΝΑΔΙΚΗ],0),2),0)","v":0},{"$f":"IFERROR(INDEX(ΛίσταΜαθημάτων[],MATCH(SUMPRODUCT((ΛίσταΜαθημάτων[ΗΜΕΡΑ]=ΠρόγραμμαΜαθημάτων[[#Headers],[ΠΕΜΠΤΗ]])*(ROUNDDOWN($B41,10)>=ROUNDDOWN(ΛίσταΜαθημάτων[ΩΡΑ ΕΝΑΡΞΗΣ],10))*($B41<=ΛίσταΜαθημάτων[ΩΡΑ ΛΗΞΗΣ]),ΛίσταΜαθημάτων[ΜΟΝΑΔΙΚΗ]),ΛίσταΜαθημάτων[ΜΟΝΑΔΙΚΗ],0),2),0)","v":0},{"$f":"IFERROR(INDEX(ΛίσταΜαθημάτων[],MATCH(SUMPRODUCT((ΛίσταΜαθημάτων[ΗΜΕΡΑ]=ΠρόγραμμαΜαθημάτων[[#Headers],[ΠΑΡΑΣΚΕΥΗ]])*(ROUNDDOWN($B41,10)>=ROUNDDOWN(ΛίσταΜαθημάτων[ΩΡΑ ΕΝΑΡΞΗΣ],10))*($B41<=ΛίσταΜαθημάτων[ΩΡΑ ΛΗΞΗΣ]),ΛίσταΜαθημάτων[ΜΟΝΑΔΙΚΗ]),ΛίσταΜαθημάτων[ΜΟΝΑΔΙΚΗ],0),2),0)","v":0},{"$f":"IFERROR(INDEX(ΛίσταΜαθημάτων[],MATCH(SUMPRODUCT((ΛίσταΜαθημάτων[ΗΜΕΡΑ]=ΠρόγραμμαΜαθημάτων[[#Headers],[ΣΑΒΒΑΤΟ]])*(ROUNDDOWN($B41,10)>=ROUNDDOWN(ΛίσταΜαθημάτων[ΩΡΑ ΕΝΑΡΞΗΣ],10))*($B41<=ΛίσταΜαθημάτων[ΩΡΑ ΛΗΞΗΣ]),ΛίσταΜαθημάτων[ΜΟΝΑΔΙΚΗ]),ΛίσταΜαθημάτων[ΜΟΝΑΔΙΚΗ],0),2),0)","v":0}]
[null,"17:30:00",{"$f":"IFERROR(INDEX(ΛίσταΜαθημάτων[],MATCH(SUMPRODUCT((ΛίσταΜαθημάτων[ΗΜΕΡΑ]=ΠρόγραμμαΜαθημάτων[[#Headers],[ΚΥΡΙΑΚΗ]])*(ROUNDDOWN($B42,10)>=ROUNDDOWN(ΛίσταΜαθημάτων[ΩΡΑ ΕΝΑΡΞΗΣ],10))*($B42<=ΛίσταΜαθημάτων[ΩΡΑ ΛΗΞΗΣ]),ΛίσταΜαθημάτων[ΜΟΝΑΔΙΚΗ]),ΛίσταΜαθημάτων[ΜΟΝΑΔΙΚΗ],0),2),0)","v":0},{"$f":"IFERROR(INDEX(ΛίσταΜαθημάτων[],MATCH(SUMPRODUCT((ΛίσταΜαθημάτων[ΗΜΕΡΑ]=ΠρόγραμμαΜαθημάτων[[#Headers],[ΔΕΥΤΕΡΑ]])*(ROUNDDOWN($B42,10)>=ROUNDDOWN(ΛίσταΜαθημάτων[ΩΡΑ ΕΝΑΡΞΗΣ],10))*($B42<=ΛίσταΜαθημάτων[ΩΡΑ ΛΗΞΗΣ]),ΛίσταΜαθημάτων[ΜΟΝΑΔΙΚΗ]),ΛίσταΜαθημάτων[ΜΟΝΑΔΙΚΗ],0),2),0)","v":0},{"$f":"IFERROR(INDEX(ΛίσταΜαθημάτων[],MATCH(SUMPRODUCT((ΛίσταΜαθημάτων[ΗΜΕΡΑ]=ΠρόγραμμαΜαθημάτων[[#Headers],[ΤΡΙΤΗ]])*(ROUNDDOWN($B42,10)>=ROUNDDOWN(ΛίσταΜαθημάτων[ΩΡΑ ΕΝΑΡΞΗΣ],10))*($B42<=ΛίσταΜαθημάτων[ΩΡΑ ΛΗΞΗΣ]),ΛίσταΜαθημάτων[ΜΟΝΑΔΙΚΗ]),ΛίσταΜαθημάτων[ΜΟΝΑΔΙΚΗ],0),2),0)","v":0},{"$f":"IFERROR(INDEX(ΛίσταΜαθημάτων[],MATCH(SUMPRODUCT((ΛίσταΜαθημάτων[ΗΜΕΡΑ]=ΠρόγραμμαΜαθημάτων[[#Headers],[ΤΕΤΑΡΤΗ]])*(ROUNDDOWN($B42,10)>=ROUNDDOWN(ΛίσταΜαθημάτων[ΩΡΑ ΕΝΑΡΞΗΣ],10))*($B42<=ΛίσταΜαθημάτων[ΩΡΑ ΛΗΞΗΣ]),ΛίσταΜαθημάτων[ΜΟΝΑΔΙΚΗ]),ΛίσταΜαθημάτων[ΜΟΝΑΔΙΚΗ],0),2),0)","v":0},{"$f":"IFERROR(INDEX(ΛίσταΜαθημάτων[],MATCH(SUMPRODUCT((ΛίσταΜαθημάτων[ΗΜΕΡΑ]=ΠρόγραμμαΜαθημάτων[[#Headers],[ΠΕΜΠΤΗ]])*(ROUNDDOWN($B42,10)>=ROUNDDOWN(ΛίσταΜαθημάτων[ΩΡΑ ΕΝΑΡΞΗΣ],10))*($B42<=ΛίσταΜαθημάτων[ΩΡΑ ΛΗΞΗΣ]),ΛίσταΜαθημάτων[ΜΟΝΑΔΙΚΗ]),ΛίσταΜαθημάτων[ΜΟΝΑΔΙΚΗ],0),2),0)","v":0},{"$f":"IFERROR(INDEX(ΛίσταΜαθημάτων[],MATCH(SUMPRODUCT((ΛίσταΜαθημάτων[ΗΜΕΡΑ]=ΠρόγραμμαΜαθημάτων[[#Headers],[ΠΑΡΑΣΚΕΥΗ]])*(ROUNDDOWN($B42,10)>=ROUNDDOWN(ΛίσταΜαθημάτων[ΩΡΑ ΕΝΑΡΞΗΣ],10))*($B42<=ΛίσταΜαθημάτων[ΩΡΑ ΛΗΞΗΣ]),ΛίσταΜαθημάτων[ΜΟΝΑΔΙΚΗ]),ΛίσταΜαθημάτων[ΜΟΝΑΔΙΚΗ],0),2),0)","v":0},{"$f":"IFERROR(INDEX(ΛίσταΜαθημάτων[],MATCH(SUMPRODUCT((ΛίσταΜαθημάτων[ΗΜΕΡΑ]=ΠρόγραμμαΜαθημάτων[[#Headers],[ΣΑΒΒΑΤΟ]])*(ROUNDDOWN($B42,10)>=ROUNDDOWN(ΛίσταΜαθημάτων[ΩΡΑ ΕΝΑΡΞΗΣ],10))*($B42<=ΛίσταΜαθημάτων[ΩΡΑ ΛΗΞΗΣ]),ΛίσταΜαθημάτων[ΜΟΝΑΔΙΚΗ]),ΛίσταΜαθημάτων[ΜΟΝΑΔΙΚΗ],0),2),0)","v":0}]
[null,"17:45:00",{"$f":"IFERROR(INDEX(ΛίσταΜαθημάτων[],MATCH(SUMPRODUCT((ΛίσταΜαθημάτων[ΗΜΕΡΑ]=ΠρόγραμμαΜαθημάτων[[#Headers],[ΚΥΡΙΑΚΗ]])*(ROUNDDOWN($B43,10)>=ROUNDDOWN(ΛίσταΜαθημάτων[ΩΡΑ ΕΝΑΡΞΗΣ],10))*($B43<=ΛίσταΜαθημάτων[ΩΡΑ ΛΗΞΗΣ]),ΛίσταΜαθημάτων[ΜΟΝΑΔΙΚΗ]),ΛίσταΜαθημάτων[ΜΟΝΑΔΙΚΗ],0),2),0)","v":0},{"$f":"IFERROR(INDEX(ΛίσταΜαθημάτων[],MATCH(SUMPRODUCT((ΛίσταΜαθημάτων[ΗΜΕΡΑ]=ΠρόγραμμαΜαθημάτων[[#Headers],[ΔΕΥΤΕΡΑ]])*(ROUNDDOWN($B43,10)>=ROUNDDOWN(ΛίσταΜαθημάτων[ΩΡΑ ΕΝΑΡΞΗΣ],10))*($B43<=ΛίσταΜαθημάτων[ΩΡΑ ΛΗΞΗΣ]),ΛίσταΜαθημάτων[ΜΟΝΑΔΙΚΗ]),ΛίσταΜαθημάτων[ΜΟΝΑΔΙΚΗ],0),2),0)","v":0},{"$f":"IFERROR(INDEX(ΛίσταΜαθημάτων[],MATCH(SUMPRODUCT((ΛίσταΜαθημάτων[ΗΜΕΡΑ]=ΠρόγραμμαΜαθημάτων[[#Headers],[ΤΡΙΤΗ]])*(ROUNDDOWN($B43,10)>=ROUNDDOWN(ΛίσταΜαθημάτων[ΩΡΑ ΕΝΑΡΞΗΣ],10))*($B43<=ΛίσταΜαθημάτων[ΩΡΑ ΛΗΞΗΣ]),ΛίσταΜαθημάτων[ΜΟΝΑΔΙΚΗ]),ΛίσταΜαθημάτων[ΜΟΝΑΔΙΚΗ],0),2),0)","v":0},{"$f":"IFERROR(INDEX(ΛίσταΜαθημάτων[],MATCH(SUMPRODUCT((ΛίσταΜαθημάτων[ΗΜΕΡΑ]=ΠρόγραμμαΜαθημάτων[[#Headers],[ΤΕΤΑΡΤΗ]])*(ROUNDDOWN($B43,10)>=ROUNDDOWN(ΛίσταΜαθημάτων[ΩΡΑ ΕΝΑΡΞΗΣ],10))*($B43<=ΛίσταΜαθημάτων[ΩΡΑ ΛΗΞΗΣ]),ΛίσταΜαθημάτων[ΜΟΝΑΔΙΚΗ]),ΛίσταΜαθημάτων[ΜΟΝΑΔΙΚΗ],0),2),0)","v":0},{"$f":"IFERROR(INDEX(ΛίσταΜαθημάτων[],MATCH(SUMPRODUCT((ΛίσταΜαθημάτων[ΗΜΕΡΑ]=ΠρόγραμμαΜαθημάτων[[#Headers],[ΠΕΜΠΤΗ]])*(ROUNDDOWN($B43,10)>=ROUNDDOWN(ΛίσταΜαθημάτων[ΩΡΑ ΕΝΑΡΞΗΣ],10))*($B43<=ΛίσταΜαθημάτων[ΩΡΑ ΛΗΞΗΣ]),ΛίσταΜαθημάτων[ΜΟΝΑΔΙΚΗ]),ΛίσταΜαθημάτων[ΜΟΝΑΔΙΚΗ],0),2),0)","v":0},{"$f":"IFERROR(INDEX(ΛίσταΜαθημάτων[],MATCH(SUMPRODUCT((ΛίσταΜαθημάτων[ΗΜΕΡΑ]=ΠρόγραμμαΜαθημάτων[[#Headers],[ΠΑΡΑΣΚΕΥΗ]])*(ROUNDDOWN($B43,10)>=ROUNDDOWN(ΛίσταΜαθημάτων[ΩΡΑ ΕΝΑΡΞΗΣ],10))*($B43<=ΛίσταΜαθημάτων[ΩΡΑ ΛΗΞΗΣ]),ΛίσταΜαθημάτων[ΜΟΝΑΔΙΚΗ]),ΛίσταΜαθημάτων[ΜΟΝΑΔΙΚΗ],0),2),0)","v":0},{"$f":"IFERROR(INDEX(ΛίσταΜαθημάτων[],MATCH(SUMPRODUCT((ΛίσταΜαθημάτων[ΗΜΕΡΑ]=ΠρόγραμμαΜαθημάτων[[#Headers],[ΣΑΒΒΑΤΟ]])*(ROUNDDOWN($B43,10)>=ROUNDDOWN(ΛίσταΜαθημάτων[ΩΡΑ ΕΝΑΡΞΗΣ],10))*($B43<=ΛίσταΜαθημάτων[ΩΡΑ ΛΗΞΗΣ]),ΛίσταΜαθημάτων[ΜΟΝΑΔΙΚΗ]),ΛίσταΜαθημάτων[ΜΟΝΑΔΙΚΗ],0),2),0)","v":0}]
[null,"18:00:00",{"$f":"IFERROR(INDEX(ΛίσταΜαθημάτων[],MATCH(SUMPRODUCT((ΛίσταΜαθημάτων[ΗΜΕΡΑ]=ΠρόγραμμαΜαθημάτων[[#Headers],[ΚΥΡΙΑΚΗ]])*(ROUNDDOWN($B44,10)>=ROUNDDOWN(ΛίσταΜαθημάτων[ΩΡΑ ΕΝΑΡΞΗΣ],10))*($B44<=ΛίσταΜαθημάτων[ΩΡΑ ΛΗΞΗΣ]),ΛίσταΜαθημάτων[ΜΟΝΑΔΙΚΗ]),ΛίσταΜαθημάτων[ΜΟΝΑΔΙΚΗ],0),2),0)","v":0},{"$f":"IFERROR(INDEX(ΛίσταΜαθημάτων[],MATCH(SUMPRODUCT((ΛίσταΜαθημάτων[ΗΜΕΡΑ]=ΠρόγραμμαΜαθημάτων[[#Headers],[ΔΕΥΤΕΡΑ]])*(ROUNDDOWN($B44,10)>=ROUNDDOWN(ΛίσταΜαθημάτων[ΩΡΑ ΕΝΑΡΞΗΣ],10))*($B44<=ΛίσταΜαθημάτων[ΩΡΑ ΛΗΞΗΣ]),ΛίσταΜαθημάτων[ΜΟΝΑΔΙΚΗ]),ΛίσταΜαθημάτων[ΜΟΝΑΔΙΚΗ],0),2),0)","v":0},{"$f":"IFERROR(INDEX(ΛίσταΜαθημάτων[],MATCH(SUMPRODUCT((ΛίσταΜαθημάτων[ΗΜΕΡΑ]=ΠρόγραμμαΜαθημάτων[[#Headers],[ΤΡΙΤΗ]])*(ROUNDDOWN($B44,10)>=ROUNDDOWN(ΛίσταΜαθημάτων[ΩΡΑ ΕΝΑΡΞΗΣ],10))*($B44<=ΛίσταΜαθημάτων[ΩΡΑ ΛΗΞΗΣ]),ΛίσταΜαθημάτων[ΜΟΝΑΔΙΚΗ]),ΛίσταΜαθημάτων[ΜΟΝΑΔΙΚΗ],0),2),0)","v":0},{"$f":"IFERROR(INDEX(ΛίσταΜαθημάτων[],MATCH(SUMPRODUCT((ΛίσταΜαθημάτων[ΗΜΕΡΑ]=ΠρόγραμμαΜαθημάτων[[#Headers],[ΤΕΤΑΡΤΗ]])*(ROUNDDOWN($B44,10)>=ROUNDDOWN(ΛίσταΜαθημάτων[ΩΡΑ ΕΝΑΡΞΗΣ],10))*($B44<=ΛίσταΜαθημάτων[ΩΡΑ ΛΗΞΗΣ]),ΛίσταΜαθημάτων[ΜΟΝΑΔΙΚΗ]),ΛίσταΜαθημάτων[ΜΟΝΑΔΙΚΗ],0),2),0)","v":0},{"$f":"IFERROR(INDEX(ΛίσταΜαθημάτων[],MATCH(SUMPRODUCT((ΛίσταΜαθημάτων[ΗΜΕΡΑ]=ΠρόγραμμαΜαθημάτων[[#Headers],[ΠΕΜΠΤΗ]])*(ROUNDDOWN($B44,10)>=ROUNDDOWN(ΛίσταΜαθημάτων[ΩΡΑ ΕΝΑΡΞΗΣ],10))*($B44<=ΛίσταΜαθημάτων[ΩΡΑ ΛΗΞΗΣ]),ΛίσταΜαθημάτων[ΜΟΝΑΔΙΚΗ]),ΛίσταΜαθημάτων[ΜΟΝΑΔΙΚΗ],0),2),0)","v":0},{"$f":"IFERROR(INDEX(ΛίσταΜαθημάτων[],MATCH(SUMPRODUCT((ΛίσταΜαθημάτων[ΗΜΕΡΑ]=ΠρόγραμμαΜαθημάτων[[#Headers],[ΠΑΡΑΣΚΕΥΗ]])*(ROUNDDOWN($B44,10)>=ROUNDDOWN(ΛίσταΜαθημάτων[ΩΡΑ ΕΝΑΡΞΗΣ],10))*($B44<=ΛίσταΜαθημάτων[ΩΡΑ ΛΗΞΗΣ]),ΛίσταΜαθημάτων[ΜΟΝΑΔΙΚΗ]),ΛίσταΜαθημάτων[ΜΟΝΑΔΙΚΗ],0),2),0)","v":0},{"$f":"IFERROR(INDEX(ΛίσταΜαθημάτων[],MATCH(SUMPRODUCT((ΛίσταΜαθημάτων[ΗΜΕΡΑ]=ΠρόγραμμαΜαθημάτων[[#Headers],[ΣΑΒΒΑΤΟ]])*(ROUNDDOWN($B44,10)>=ROUNDDOWN(ΛίσταΜαθημάτων[ΩΡΑ ΕΝΑΡΞΗΣ],10))*($B44<=ΛίσταΜαθημάτων[ΩΡΑ ΛΗΞΗΣ]),ΛίσταΜαθημάτων[ΜΟΝΑΔΙΚΗ]),ΛίσταΜαθημάτων[ΜΟΝΑΔΙΚΗ],0),2),0)","v":0}]
[null,"18:15:00",{"$f":"IFERROR(INDEX(ΛίσταΜαθημάτων[],MATCH(SUMPRODUCT((ΛίσταΜαθημάτων[ΗΜΕΡΑ]=ΠρόγραμμαΜαθημάτων[[#Headers],[ΚΥΡΙΑΚΗ]])*(ROUNDDOWN($B45,10)>=ROUNDDOWN(ΛίσταΜαθημάτων[ΩΡΑ ΕΝΑΡΞΗΣ],10))*($B45<=ΛίσταΜαθημάτων[ΩΡΑ ΛΗΞΗΣ]),ΛίσταΜαθημάτων[ΜΟΝΑΔΙΚΗ]),ΛίσταΜαθημάτων[ΜΟΝΑΔΙΚΗ],0),2),0)","v":0},{"$f":"IFERROR(INDEX(ΛίσταΜαθημάτων[],MATCH(SUMPRODUCT((ΛίσταΜαθημάτων[ΗΜΕΡΑ]=ΠρόγραμμαΜαθημάτων[[#Headers],[ΔΕΥΤΕΡΑ]])*(ROUNDDOWN($B45,10)>=ROUNDDOWN(ΛίσταΜαθημάτων[ΩΡΑ ΕΝΑΡΞΗΣ],10))*($B45<=ΛίσταΜαθημάτων[ΩΡΑ ΛΗΞΗΣ]),ΛίσταΜαθημάτων[ΜΟΝΑΔΙΚΗ]),ΛίσταΜαθημάτων[ΜΟΝΑΔΙΚΗ],0),2),0)","v":0},{"$f":"IFERROR(INDEX(ΛίσταΜαθημάτων[],MATCH(SUMPRODUCT((ΛίσταΜαθημάτων[ΗΜΕΡΑ]=ΠρόγραμμαΜαθημάτων[[#Headers],[ΤΡΙΤΗ]])*(ROUNDDOWN($B45,10)>=ROUNDDOWN(ΛίσταΜαθημάτων[ΩΡΑ ΕΝΑΡΞΗΣ],10))*($B45<=ΛίσταΜαθημάτων[ΩΡΑ ΛΗΞΗΣ]),ΛίσταΜαθημάτων[ΜΟΝΑΔΙΚΗ]),ΛίσταΜαθημάτων[ΜΟΝΑΔΙΚΗ],0),2),0)","v":0},{"$f":"IFERROR(INDEX(ΛίσταΜαθημάτων[],MATCH(SUMPRODUCT((ΛίσταΜαθημάτων[ΗΜΕΡΑ]=ΠρόγραμμαΜαθημάτων[[#Headers],[ΤΕΤΑΡΤΗ]])*(ROUNDDOWN($B45,10)>=ROUNDDOWN(ΛίσταΜαθημάτων[ΩΡΑ ΕΝΑΡΞΗΣ],10))*($B45<=ΛίσταΜαθημάτων[ΩΡΑ ΛΗΞΗΣ]),ΛίσταΜαθημάτων[ΜΟΝΑΔΙΚΗ]),ΛίσταΜαθημάτων[ΜΟΝΑΔΙΚΗ],0),2),0)","v":0},{"$f":"IFERROR(INDEX(ΛίσταΜαθημάτων[],MATCH(SUMPRODUCT((ΛίσταΜαθημάτων[ΗΜΕΡΑ]=ΠρόγραμμαΜαθημάτων[[#Headers],[ΠΕΜΠΤΗ]])*(ROUNDDOWN($B45,10)>=ROUNDDOWN(ΛίσταΜαθημάτων[ΩΡΑ ΕΝΑΡΞΗΣ],10))*($B45<=ΛίσταΜαθημάτων[ΩΡΑ ΛΗΞΗΣ]),ΛίσταΜαθημάτων[ΜΟΝΑΔΙΚΗ]),ΛίσταΜαθημάτων[ΜΟΝΑΔΙΚΗ],0),2),0)","v":0},{"$f":"IFERROR(INDEX(ΛίσταΜαθημάτων[],MATCH(SUMPRODUCT((ΛίσταΜαθημάτων[ΗΜΕΡΑ]=ΠρόγραμμαΜαθημάτων[[#Headers],[ΠΑΡΑΣΚΕΥΗ]])*(ROUNDDOWN($B45,10)>=ROUNDDOWN(ΛίσταΜαθημάτων[ΩΡΑ ΕΝΑΡΞΗΣ],10))*($B45<=ΛίσταΜαθημάτων[ΩΡΑ ΛΗΞΗΣ]),ΛίσταΜαθημάτων[ΜΟΝΑΔΙΚΗ]),ΛίσταΜαθημάτων[ΜΟΝΑΔΙΚΗ],0),2),0)","v":0},{"$f":"IFERROR(INDEX(ΛίσταΜαθημάτων[],MATCH(SUMPRODUCT((ΛίσταΜαθημάτων[ΗΜΕΡΑ]=ΠρόγραμμαΜαθημάτων[[#Headers],[ΣΑΒΒΑΤΟ]])*(ROUNDDOWN($B45,10)>=ROUNDDOWN(ΛίσταΜαθημάτων[ΩΡΑ ΕΝΑΡΞΗΣ],10))*($B45<=ΛίσταΜαθημάτων[ΩΡΑ ΛΗΞΗΣ]),ΛίσταΜαθημάτων[ΜΟΝΑΔΙΚΗ]),ΛίσταΜαθημάτων[ΜΟΝΑΔΙΚΗ],0),2),0)","v":0}]
[null,"18:30:00",{"$f":"IFERROR(INDEX(ΛίσταΜαθημάτων[],MATCH(SUMPRODUCT((ΛίσταΜαθημάτων[ΗΜΕΡΑ]=ΠρόγραμμαΜαθημάτων[[#Headers],[ΚΥΡΙΑΚΗ]])*(ROUNDDOWN($B46,10)>=ROUNDDOWN(ΛίσταΜαθημάτων[ΩΡΑ ΕΝΑΡΞΗΣ],10))*($B46<=ΛίσταΜαθημάτων[ΩΡΑ ΛΗΞΗΣ]),ΛίσταΜαθημάτων[ΜΟΝΑΔΙΚΗ]),ΛίσταΜαθημάτων[ΜΟΝΑΔΙΚΗ],0),2),0)","v":0},{"$f":"IFERROR(INDEX(ΛίσταΜαθημάτων[],MATCH(SUMPRODUCT((ΛίσταΜαθημάτων[ΗΜΕΡΑ]=ΠρόγραμμαΜαθημάτων[[#Headers],[ΔΕΥΤΕΡΑ]])*(ROUNDDOWN($B46,10)>=ROUNDDOWN(ΛίσταΜαθημάτων[ΩΡΑ ΕΝΑΡΞΗΣ],10))*($B46<=ΛίσταΜαθημάτων[ΩΡΑ ΛΗΞΗΣ]),ΛίσταΜαθημάτων[ΜΟΝΑΔΙΚΗ]),ΛίσταΜαθημάτων[ΜΟΝΑΔΙΚΗ],0),2),0)","v":0},{"$f":"IFERROR(INDEX(ΛίσταΜαθημάτων[],MATCH(SUMPRODUCT((ΛίσταΜαθημάτων[ΗΜΕΡΑ]=ΠρόγραμμαΜαθημάτων[[#Headers],[ΤΡΙΤΗ]])*(ROUNDDOWN($B46,10)>=ROUNDDOWN(ΛίσταΜαθημάτων[ΩΡΑ ΕΝΑΡΞΗΣ],10))*($B46<=ΛίσταΜαθημάτων[ΩΡΑ ΛΗΞΗΣ]),ΛίσταΜαθημάτων[ΜΟΝΑΔΙΚΗ]),ΛίσταΜαθημάτων[ΜΟΝΑΔΙΚΗ],0),2),0)","v":0},{"$f":"IFERROR(INDEX(ΛίσταΜαθημάτων[],MATCH(SUMPRODUCT((ΛίσταΜαθημάτων[ΗΜΕΡΑ]=ΠρόγραμμαΜαθημάτων[[#Headers],[ΤΕΤΑΡΤΗ]])*(ROUNDDOWN($B46,10)>=ROUNDDOWN(ΛίσταΜαθημάτων[ΩΡΑ ΕΝΑΡΞΗΣ],10))*($B46<=ΛίσταΜαθημάτων[ΩΡΑ ΛΗΞΗΣ]),ΛίσταΜαθημάτων[ΜΟΝΑΔΙΚΗ]),ΛίσταΜαθημάτων[ΜΟΝΑΔΙΚΗ],0),2),0)","v":0},{"$f":"IFERROR(INDEX(ΛίσταΜαθημάτων[],MATCH(SUMPRODUCT((ΛίσταΜαθημάτων[ΗΜΕΡΑ]=ΠρόγραμμαΜαθημάτων[[#Headers],[ΠΕΜΠΤΗ]])*(ROUNDDOWN($B46,10)>=ROUNDDOWN(ΛίσταΜαθημάτων[ΩΡΑ ΕΝΑΡΞΗΣ],10))*($B46<=ΛίσταΜαθημάτων[ΩΡΑ ΛΗΞΗΣ]),ΛίσταΜαθημάτων[ΜΟΝΑΔΙΚΗ]),ΛίσταΜαθημάτων[ΜΟΝΑΔΙΚΗ],0),2),0)","v":0},{"$f":"IFERROR(INDEX(ΛίσταΜαθημάτων[],MATCH(SUMPRODUCT((ΛίσταΜαθημάτων[ΗΜΕΡΑ]=ΠρόγραμμαΜαθημάτων[[#Headers],[ΠΑΡΑΣΚΕΥΗ]])*(ROUNDDOWN($B46,10)>=ROUNDDOWN(ΛίσταΜαθημάτων[ΩΡΑ ΕΝΑΡΞΗΣ],10))*($B46<=ΛίσταΜαθημάτων[ΩΡΑ ΛΗΞΗΣ]),ΛίσταΜαθημάτων[ΜΟΝΑΔΙΚΗ]),ΛίσταΜαθημάτων[ΜΟΝΑΔΙΚΗ],0),2),0)","v":0},{"$f":"IFERROR(INDEX(ΛίσταΜαθημάτων[],MATCH(SUMPRODUCT((ΛίσταΜαθημάτων[ΗΜΕΡΑ]=ΠρόγραμμαΜαθημάτων[[#Headers],[ΣΑΒΒΑΤΟ]])*(ROUNDDOWN($B46,10)>=ROUNDDOWN(ΛίσταΜαθημάτων[ΩΡΑ ΕΝΑΡΞΗΣ],10))*($B46<=ΛίσταΜαθημάτων[ΩΡΑ ΛΗΞΗΣ]),ΛίσταΜαθημάτων[ΜΟΝΑΔΙΚΗ]),ΛίσταΜαθημάτων[ΜΟΝΑΔΙΚΗ],0),2),0)","v":0}]
[null,"18:45:00",{"$f":"IFERROR(INDEX(ΛίσταΜαθημάτων[],MATCH(SUMPRODUCT((ΛίσταΜαθημάτων[ΗΜΕΡΑ]=ΠρόγραμμαΜαθημάτων[[#Headers],[ΚΥΡΙΑΚΗ]])*(ROUNDDOWN($B47,10)>=ROUNDDOWN(ΛίσταΜαθημάτων[ΩΡΑ ΕΝΑΡΞΗΣ],10))*($B47<=ΛίσταΜαθημάτων[ΩΡΑ ΛΗΞΗΣ]),ΛίσταΜαθημάτων[ΜΟΝΑΔΙΚΗ]),ΛίσταΜαθημάτων[ΜΟΝΑΔΙΚΗ],0),2),0)","v":0},{"$f":"IFERROR(INDEX(ΛίσταΜαθημάτων[],MATCH(SUMPRODUCT((ΛίσταΜαθημάτων[ΗΜΕΡΑ]=ΠρόγραμμαΜαθημάτων[[#Headers],[ΔΕΥΤΕΡΑ]])*(ROUNDDOWN($B47,10)>=ROUNDDOWN(ΛίσταΜαθημάτων[ΩΡΑ ΕΝΑΡΞΗΣ],10))*($B47<=ΛίσταΜαθημάτων[ΩΡΑ ΛΗΞΗΣ]),ΛίσταΜαθημάτων[ΜΟΝΑΔΙΚΗ]),ΛίσταΜαθημάτων[ΜΟΝΑΔΙΚΗ],0),2),0)","v":0},{"$f":"IFERROR(INDEX(ΛίσταΜαθημάτων[],MATCH(SUMPRODUCT((ΛίσταΜαθημάτων[ΗΜΕΡΑ]=ΠρόγραμμαΜαθημάτων[[#Headers],[ΤΡΙΤΗ]])*(ROUNDDOWN($B47,10)>=ROUNDDOWN(ΛίσταΜαθημάτων[ΩΡΑ ΕΝΑΡΞΗΣ],10))*($B47<=ΛίσταΜαθημάτων[ΩΡΑ ΛΗΞΗΣ]),ΛίσταΜαθημάτων[ΜΟΝΑΔΙΚΗ]),ΛίσταΜαθημάτων[ΜΟΝΑΔΙΚΗ],0),2),0)","v":0},{"$f":"IFERROR(INDEX(ΛίσταΜαθημάτων[],MATCH(SUMPRODUCT((ΛίσταΜαθημάτων[ΗΜΕΡΑ]=ΠρόγραμμαΜαθημάτων[[#Headers],[ΤΕΤΑΡΤΗ]])*(ROUNDDOWN($B47,10)>=ROUNDDOWN(ΛίσταΜαθημάτων[ΩΡΑ ΕΝΑΡΞΗΣ],10))*($B47<=ΛίσταΜαθημάτων[ΩΡΑ ΛΗΞΗΣ]),ΛίσταΜαθημάτων[ΜΟΝΑΔΙΚΗ]),ΛίσταΜαθημάτων[ΜΟΝΑΔΙΚΗ],0),2),0)","v":0},{"$f":"IFERROR(INDEX(ΛίσταΜαθημάτων[],MATCH(SUMPRODUCT((ΛίσταΜαθημάτων[ΗΜΕΡΑ]=ΠρόγραμμαΜαθημάτων[[#Headers],[ΠΕΜΠΤΗ]])*(ROUNDDOWN($B47,10)>=ROUNDDOWN(ΛίσταΜαθημάτων[ΩΡΑ ΕΝΑΡΞΗΣ],10))*($B47<=ΛίσταΜαθημάτων[ΩΡΑ ΛΗΞΗΣ]),ΛίσταΜαθημάτων[ΜΟΝΑΔΙΚΗ]),ΛίσταΜαθημάτων[ΜΟΝΑΔΙΚΗ],0),2),0)","v":0},{"$f":"IFERROR(INDEX(ΛίσταΜαθημάτων[],MATCH(SUMPRODUCT((ΛίσταΜαθημάτων[ΗΜΕΡΑ]=ΠρόγραμμαΜαθημάτων[[#Headers],[ΠΑΡΑΣΚΕΥΗ]])*(ROUNDDOWN($B47,10)>=ROUNDDOWN(ΛίσταΜαθημάτων[ΩΡΑ ΕΝΑΡΞΗΣ],10))*($B47<=ΛίσταΜαθημάτων[ΩΡΑ ΛΗΞΗΣ]),ΛίσταΜαθημάτων[ΜΟΝΑΔΙΚΗ]),ΛίσταΜαθημάτων[ΜΟΝΑΔΙΚΗ],0),2),0)","v":0},{"$f":"IFERROR(INDEX(ΛίσταΜαθημάτων[],MATCH(SUMPRODUCT((ΛίσταΜαθημάτων[ΗΜΕΡΑ]=ΠρόγραμμαΜαθημάτων[[#Headers],[ΣΑΒΒΑΤΟ]])*(ROUNDDOWN($B47,10)>=ROUNDDOWN(ΛίσταΜαθημάτων[ΩΡΑ ΕΝΑΡΞΗΣ],10))*($B47<=ΛίσταΜαθημάτων[ΩΡΑ ΛΗΞΗΣ]),ΛίσταΜαθημάτων[ΜΟΝΑΔΙΚΗ]),ΛίσταΜαθημάτων[ΜΟΝΑΔΙΚΗ],0),2),0)","v":0}]
[null,"19:00:00",{"$f":"IFERROR(INDEX(ΛίσταΜαθημάτων[],MATCH(SUMPRODUCT((ΛίσταΜαθημάτων[ΗΜΕΡΑ]=ΠρόγραμμαΜαθημάτων[[#Headers],[ΚΥΡΙΑΚΗ]])*(ROUNDDOWN($B48,10)>=ROUNDDOWN(ΛίσταΜαθημάτων[ΩΡΑ ΕΝΑΡΞΗΣ],10))*($B48<=ΛίσταΜαθημάτων[ΩΡΑ ΛΗΞΗΣ]),ΛίσταΜαθημάτων[ΜΟΝΑΔΙΚΗ]),ΛίσταΜαθημάτων[ΜΟΝΑΔΙΚΗ],0),2),0)","v":0},{"$f":"IFERROR(INDEX(ΛίσταΜαθημάτων[],MATCH(SUMPRODUCT((ΛίσταΜαθημάτων[ΗΜΕΡΑ]=ΠρόγραμμαΜαθημάτων[[#Headers],[ΔΕΥΤΕΡΑ]])*(ROUNDDOWN($B48,10)>=ROUNDDOWN(ΛίσταΜαθημάτων[ΩΡΑ ΕΝΑΡΞΗΣ],10))*($B48<=ΛίσταΜαθημάτων[ΩΡΑ ΛΗΞΗΣ]),ΛίσταΜαθημάτων[ΜΟΝΑΔΙΚΗ]),ΛίσταΜαθημάτων[ΜΟΝΑΔΙΚΗ],0),2),0)","v":0},{"$f":"IFERROR(INDEX(ΛίσταΜαθημάτων[],MATCH(SUMPRODUCT((ΛίσταΜαθημάτων[ΗΜΕΡΑ]=ΠρόγραμμαΜαθημάτων[[#Headers],[ΤΡΙΤΗ]])*(ROUNDDOWN($B48,10)>=ROUNDDOWN(ΛίσταΜαθημάτων[ΩΡΑ ΕΝΑΡΞΗΣ],10))*($B48<=ΛίσταΜαθημάτων[ΩΡΑ ΛΗΞΗΣ]),ΛίσταΜαθημάτων[ΜΟΝΑΔΙΚΗ]),ΛίσταΜαθημάτων[ΜΟΝΑΔΙΚΗ],0),2),0)","v":0},{"$f":"IFERROR(INDEX(ΛίσταΜαθημάτων[],MATCH(SUMPRODUCT((ΛίσταΜαθημάτων[ΗΜΕΡΑ]=ΠρόγραμμαΜαθημάτων[[#Headers],[ΤΕΤΑΡΤΗ]])*(ROUNDDOWN($B48,10)>=ROUNDDOWN(ΛίσταΜαθημάτων[ΩΡΑ ΕΝΑΡΞΗΣ],10))*($B48<=ΛίσταΜαθημάτων[ΩΡΑ ΛΗΞΗΣ]),ΛίσταΜαθημάτων[ΜΟΝΑΔΙΚΗ]),ΛίσταΜαθημάτων[ΜΟΝΑΔΙΚΗ],0),2),0)","v":0},{"$f":"IFERROR(INDEX(ΛίσταΜαθημάτων[],MATCH(SUMPRODUCT((ΛίσταΜαθημάτων[ΗΜΕΡΑ]=ΠρόγραμμαΜαθημάτων[[#Headers],[ΠΕΜΠΤΗ]])*(ROUNDDOWN($B48,10)>=ROUNDDOWN(ΛίσταΜαθημάτων[ΩΡΑ ΕΝΑΡΞΗΣ],10))*($B48<=ΛίσταΜαθημάτων[ΩΡΑ ΛΗΞΗΣ]),ΛίσταΜαθημάτων[ΜΟΝΑΔΙΚΗ]),ΛίσταΜαθημάτων[ΜΟΝΑΔΙΚΗ],0),2),0)","v":0},{"$f":"IFERROR(INDEX(ΛίσταΜαθημάτων[],MATCH(SUMPRODUCT((ΛίσταΜαθημάτων[ΗΜΕΡΑ]=ΠρόγραμμαΜαθημάτων[[#Headers],[ΠΑΡΑΣΚΕΥΗ]])*(ROUNDDOWN($B48,10)>=ROUNDDOWN(ΛίσταΜαθημάτων[ΩΡΑ ΕΝΑΡΞΗΣ],10))*($B48<=ΛίσταΜαθημάτων[ΩΡΑ ΛΗΞΗΣ]),ΛίσταΜαθημάτων[ΜΟΝΑΔΙΚΗ]),ΛίσταΜαθημάτων[ΜΟΝΑΔΙΚΗ],0),2),0)","v":0},{"$f":"IFERROR(INDEX(ΛίσταΜαθημάτων[],MATCH(SUMPRODUCT((ΛίσταΜαθημάτων[ΗΜΕΡΑ]=ΠρόγραμμαΜαθημάτων[[#Headers],[ΣΑΒΒΑΤΟ]])*(ROUNDDOWN($B48,10)>=ROUNDDOWN(ΛίσταΜαθημάτων[ΩΡΑ ΕΝΑΡΞΗΣ],10))*($B48<=ΛίσταΜαθημάτων[ΩΡΑ ΛΗΞΗΣ]),ΛίσταΜαθημάτων[ΜΟΝΑΔΙΚΗ]),ΛίσταΜαθημάτων[ΜΟΝΑΔΙΚΗ],0),2),0)","v":0}]
[null,"19:15:00",{"$f":"IFERROR(INDEX(ΛίσταΜαθημάτων[],MATCH(SUMPRODUCT((ΛίσταΜαθημάτων[ΗΜΕΡΑ]=ΠρόγραμμαΜαθημάτων[[#Headers],[ΚΥΡΙΑΚΗ]])*(ROUNDDOWN($B49,10)>=ROUNDDOWN(ΛίσταΜαθημάτων[ΩΡΑ ΕΝΑΡΞΗΣ],10))*($B49<=ΛίσταΜαθημάτων[ΩΡΑ ΛΗΞΗΣ]),ΛίσταΜαθημάτων[ΜΟΝΑΔΙΚΗ]),ΛίσταΜαθημάτων[ΜΟΝΑΔΙΚΗ],0),2),0)","v":0},{"$f":"IFERROR(INDEX(ΛίσταΜαθημάτων[],MATCH(SUMPRODUCT((ΛίσταΜαθημάτων[ΗΜΕΡΑ]=ΠρόγραμμαΜαθημάτων[[#Headers],[ΔΕΥΤΕΡΑ]])*(ROUNDDOWN($B49,10)>=ROUNDDOWN(ΛίσταΜαθημάτων[ΩΡΑ ΕΝΑΡΞΗΣ],10))*($B49<=ΛίσταΜαθημάτων[ΩΡΑ ΛΗΞΗΣ]),ΛίσταΜαθημάτων[ΜΟΝΑΔΙΚΗ]),ΛίσταΜαθημάτων[ΜΟΝΑΔΙΚΗ],0),2),0)","v":0},{"$f":"IFERROR(INDEX(ΛίσταΜαθημάτων[],MATCH(SUMPRODUCT((ΛίσταΜαθημάτων[ΗΜΕΡΑ]=ΠρόγραμμαΜαθημάτων[[#Headers],[ΤΡΙΤΗ]])*(ROUNDDOWN($B49,10)>=ROUNDDOWN(ΛίσταΜαθημάτων[ΩΡΑ ΕΝΑΡΞΗΣ],10))*($B49<=ΛίσταΜαθημάτων[ΩΡΑ ΛΗΞΗΣ]),ΛίσταΜαθημάτων[ΜΟΝΑΔΙΚΗ]),ΛίσταΜαθημάτων[ΜΟΝΑΔΙΚΗ],0),2),0)","v":0},{"$f":"IFERROR(INDEX(ΛίσταΜαθημάτων[],MATCH(SUMPRODUCT((ΛίσταΜαθημάτων[ΗΜΕΡΑ]=ΠρόγραμμαΜαθημάτων[[#Headers],[ΤΕΤΑΡΤΗ]])*(ROUNDDOWN($B49,10)>=ROUNDDOWN(ΛίσταΜαθημάτων[ΩΡΑ ΕΝΑΡΞΗΣ],10))*($B49<=ΛίσταΜαθημάτων[ΩΡΑ ΛΗΞΗΣ]),ΛίσταΜαθημάτων[ΜΟΝΑΔΙΚΗ]),ΛίσταΜαθημάτων[ΜΟΝΑΔΙΚΗ],0),2),0)","v":0},{"$f":"IFERROR(INDEX(ΛίσταΜαθημάτων[],MATCH(SUMPRODUCT((ΛίσταΜαθημάτων[ΗΜΕΡΑ]=ΠρόγραμμαΜαθημάτων[[#Headers],[ΠΕΜΠΤΗ]])*(ROUNDDOWN($B49,10)>=ROUNDDOWN(ΛίσταΜαθημάτων[ΩΡΑ ΕΝΑΡΞΗΣ],10))*($B49<=ΛίσταΜαθημάτων[ΩΡΑ ΛΗΞΗΣ]),ΛίσταΜαθημάτων[ΜΟΝΑΔΙΚΗ]),ΛίσταΜαθημάτων[ΜΟΝΑΔΙΚΗ],0),2),0)","v":0},{"$f":"IFERROR(INDEX(ΛίσταΜαθημάτων[],MATCH(SUMPRODUCT((ΛίσταΜαθημάτων[ΗΜΕΡΑ]=ΠρόγραμμαΜαθημάτων[[#Headers],[ΠΑΡΑΣΚΕΥΗ]])*(ROUNDDOWN($B49,10)>=ROUNDDOWN(ΛίσταΜαθημάτων[ΩΡΑ ΕΝΑΡΞΗΣ],10))*($B49<=ΛίσταΜαθημάτων[ΩΡΑ ΛΗΞΗΣ]),ΛίσταΜαθημάτων[ΜΟΝΑΔΙΚΗ]),ΛίσταΜαθημάτων[ΜΟΝΑΔΙΚΗ],0),2),0)","v":0},{"$f":"IFERROR(INDEX(ΛίσταΜαθημάτων[],MATCH(SUMPRODUCT((ΛίσταΜαθημάτων[ΗΜΕΡΑ]=ΠρόγραμμαΜαθημάτων[[#Headers],[ΣΑΒΒΑΤΟ]])*(ROUNDDOWN($B49,10)>=ROUNDDOWN(ΛίσταΜαθημάτων[ΩΡΑ ΕΝΑΡΞΗΣ],10))*($B49<=ΛίσταΜαθημάτων[ΩΡΑ ΛΗΞΗΣ]),ΛίσταΜαθημάτων[ΜΟΝΑΔΙΚΗ]),ΛίσταΜαθημάτων[ΜΟΝΑΔΙΚΗ],0),2),0)","v":0}]
[null,"19:30:00",{"$f":"IFERROR(INDEX(ΛίσταΜαθημάτων[],MATCH(SUMPRODUCT((ΛίσταΜαθημάτων[ΗΜΕΡΑ]=ΠρόγραμμαΜαθημάτων[[#Headers],[ΚΥΡΙΑΚΗ]])*(ROUNDDOWN($B50,10)>=ROUNDDOWN(ΛίσταΜαθημάτων[ΩΡΑ ΕΝΑΡΞΗΣ],10))*($B50<=ΛίσταΜαθημάτων[ΩΡΑ ΛΗΞΗΣ]),ΛίσταΜαθημάτων[ΜΟΝΑΔΙΚΗ]),ΛίσταΜαθημάτων[ΜΟΝΑΔΙΚΗ],0),2),0)","v":0},{"$f":"IFERROR(INDEX(ΛίσταΜαθημάτων[],MATCH(SUMPRODUCT((ΛίσταΜαθημάτων[ΗΜΕΡΑ]=ΠρόγραμμαΜαθημάτων[[#Headers],[ΔΕΥΤΕΡΑ]])*(ROUNDDOWN($B50,10)>=ROUNDDOWN(ΛίσταΜαθημάτων[ΩΡΑ ΕΝΑΡΞΗΣ],10))*($B50<=ΛίσταΜαθημάτων[ΩΡΑ ΛΗΞΗΣ]),ΛίσταΜαθημάτων[ΜΟΝΑΔΙΚΗ]),ΛίσταΜαθημάτων[ΜΟΝΑΔΙΚΗ],0),2),0)","v":0},{"$f":"IFERROR(INDEX(ΛίσταΜαθημάτων[],MATCH(SUMPRODUCT((ΛίσταΜαθημάτων[ΗΜΕΡΑ]=ΠρόγραμμαΜαθημάτων[[#Headers],[ΤΡΙΤΗ]])*(ROUNDDOWN($B50,10)>=ROUNDDOWN(ΛίσταΜαθημάτων[ΩΡΑ ΕΝΑΡΞΗΣ],10))*($B50<=ΛίσταΜαθημάτων[ΩΡΑ ΛΗΞΗΣ]),ΛίσταΜαθημάτων[ΜΟΝΑΔΙΚΗ]),ΛίσταΜαθημάτων[ΜΟΝΑΔΙΚΗ],0),2),0)","v":0},{"$f":"IFERROR(INDEX(ΛίσταΜαθημάτων[],MATCH(SUMPRODUCT((ΛίσταΜαθημάτων[ΗΜΕΡΑ]=ΠρόγραμμαΜαθημάτων[[#Headers],[ΤΕΤΑΡΤΗ]])*(ROUNDDOWN($B50,10)>=ROUNDDOWN(ΛίσταΜαθημάτων[ΩΡΑ ΕΝΑΡΞΗΣ],10))*($B50<=ΛίσταΜαθημάτων[ΩΡΑ ΛΗΞΗΣ]),ΛίσταΜαθημάτων[ΜΟΝΑΔΙΚΗ]),ΛίσταΜαθημάτων[ΜΟΝΑΔΙΚΗ],0),2),0)","v":0},{"$f":"IFERROR(INDEX(ΛίσταΜαθημάτων[],MATCH(SUMPRODUCT((ΛίσταΜαθημάτων[ΗΜΕΡΑ]=ΠρόγραμμαΜαθημάτων[[#Headers],[ΠΕΜΠΤΗ]])*(ROUNDDOWN($B50,10)>=ROUNDDOWN(ΛίσταΜαθημάτων[ΩΡΑ ΕΝΑΡΞΗΣ],10))*($B50<=ΛίσταΜαθημάτων[ΩΡΑ ΛΗΞΗΣ]),ΛίσταΜαθημάτων[ΜΟΝΑΔΙΚΗ]),ΛίσταΜαθημάτων[ΜΟΝΑΔΙΚΗ],0),2),0)","v":0},{"$f":"IFERROR(INDEX(ΛίσταΜαθημάτων[],MATCH(SUMPRODUCT((ΛίσταΜαθημάτων[ΗΜΕΡΑ]=ΠρόγραμμαΜαθημάτων[[#Headers],[ΠΑΡΑΣΚΕΥΗ]])*(ROUNDDOWN($B50,10)>=ROUNDDOWN(ΛίσταΜαθημάτων[ΩΡΑ ΕΝΑΡΞΗΣ],10))*($B50<=ΛίσταΜαθημάτων[ΩΡΑ ΛΗΞΗΣ]),ΛίσταΜαθημάτων[ΜΟΝΑΔΙΚΗ]),ΛίσταΜαθημάτων[ΜΟΝΑΔΙΚΗ],0),2),0)","v":0},{"$f":"IFERROR(INDEX(ΛίσταΜαθημάτων[],MATCH(SUMPRODUCT((ΛίσταΜαθημάτων[ΗΜΕΡΑ]=ΠρόγραμμαΜαθημάτων[[#Headers],[ΣΑΒΒΑΤΟ]])*(ROUNDDOWN($B50,10)>=ROUNDDOWN(ΛίσταΜαθημάτων[ΩΡΑ ΕΝΑΡΞΗΣ],10))*($B50<=ΛίσταΜαθημάτων[ΩΡΑ ΛΗΞΗΣ]),ΛίσταΜαθημάτων[ΜΟΝΑΔΙΚΗ]),ΛίσταΜαθημάτων[ΜΟΝΑΔΙΚΗ],0),2),0)","v":0}]
[null,"19:45:00",{"$f":"IFERROR(INDEX(ΛίσταΜαθημάτων[],MATCH(SUMPRODUCT((ΛίσταΜαθημάτων[ΗΜΕΡΑ]=ΠρόγραμμαΜαθημάτων[[#Headers],[ΚΥΡΙΑΚΗ]])*(ROUNDDOWN($B51,10)>=ROUNDDOWN(ΛίσταΜαθημάτων[ΩΡΑ ΕΝΑΡΞΗΣ],10))*($B51<=ΛίσταΜαθημάτων[ΩΡΑ ΛΗΞΗΣ]),ΛίσταΜαθημάτων[ΜΟΝΑΔΙΚΗ]),ΛίσταΜαθημάτων[ΜΟΝΑΔΙΚΗ],0),2),0)","v":0},{"$f":"IFERROR(INDEX(ΛίσταΜαθημάτων[],MATCH(SUMPRODUCT((ΛίσταΜαθημάτων[ΗΜΕΡΑ]=ΠρόγραμμαΜαθημάτων[[#Headers],[ΔΕΥΤΕΡΑ]])*(ROUNDDOWN($B51,10)>=ROUNDDOWN(ΛίσταΜαθημάτων[ΩΡΑ ΕΝΑΡΞΗΣ],10))*($B51<=ΛίσταΜαθημάτων[ΩΡΑ ΛΗΞΗΣ]),ΛίσταΜαθημάτων[ΜΟΝΑΔΙΚΗ]),ΛίσταΜαθημάτων[ΜΟΝΑΔΙΚΗ],0),2),0)","v":0},{"$f":"IFERROR(INDEX(ΛίσταΜαθημάτων[],MATCH(SUMPRODUCT((ΛίσταΜαθημάτων[ΗΜΕΡΑ]=ΠρόγραμμαΜαθημάτων[[#Headers],[ΤΡΙΤΗ]])*(ROUNDDOWN($B51,10)>=ROUNDDOWN(ΛίσταΜαθημάτων[ΩΡΑ ΕΝΑΡΞΗΣ],10))*($B51<=ΛίσταΜαθημάτων[ΩΡΑ ΛΗΞΗΣ]),ΛίσταΜαθημάτων[ΜΟΝΑΔΙΚΗ]),ΛίσταΜαθημάτων[ΜΟΝΑΔΙΚΗ],0),2),0)","v":0},{"$f":"IFERROR(INDEX(ΛίσταΜαθημάτων[],MATCH(SUMPRODUCT((ΛίσταΜαθημάτων[ΗΜΕΡΑ]=ΠρόγραμμαΜαθημάτων[[#Headers],[ΤΕΤΑΡΤΗ]])*(ROUNDDOWN($B51,10)>=ROUNDDOWN(ΛίσταΜαθημάτων[ΩΡΑ ΕΝΑΡΞΗΣ],10))*($B51<=ΛίσταΜαθημάτων[ΩΡΑ ΛΗΞΗΣ]),ΛίσταΜαθημάτων[ΜΟΝΑΔΙΚΗ]),ΛίσταΜαθημάτων[ΜΟΝΑΔΙΚΗ],0),2),0)","v":0},{"$f":"IFERROR(INDEX(ΛίσταΜαθημάτων[],MATCH(SUMPRODUCT((ΛίσταΜαθημάτων[ΗΜΕΡΑ]=ΠρόγραμμαΜαθημάτων[[#Headers],[ΠΕΜΠΤΗ]])*(ROUNDDOWN($B51,10)>=ROUNDDOWN(ΛίσταΜαθημάτων[ΩΡΑ ΕΝΑΡΞΗΣ],10))*($B51<=ΛίσταΜαθημάτων[ΩΡΑ ΛΗΞΗΣ]),ΛίσταΜαθημάτων[ΜΟΝΑΔΙΚΗ]),ΛίσταΜαθημάτων[ΜΟΝΑΔΙΚΗ],0),2),0)","v":0},{"$f":"IFERROR(INDEX(ΛίσταΜαθημάτων[],MATCH(SUMPRODUCT((ΛίσταΜαθημάτων[ΗΜΕΡΑ]=ΠρόγραμμαΜαθημάτων[[#Headers],[ΠΑΡΑΣΚΕΥΗ]])*(ROUNDDOWN($B51,10)>=ROUNDDOWN(ΛίσταΜαθημάτων[ΩΡΑ ΕΝΑΡΞΗΣ],10))*($B51<=ΛίσταΜαθημάτων[ΩΡΑ ΛΗΞΗΣ]),ΛίσταΜαθημάτων[ΜΟΝΑΔΙΚΗ]),ΛίσταΜαθημάτων[ΜΟΝΑΔΙΚΗ],0),2),0)","v":0},{"$f":"IFERROR(INDEX(ΛίσταΜαθημάτων[],MATCH(SUMPRODUCT((ΛίσταΜαθημάτων[ΗΜΕΡΑ]=ΠρόγραμμαΜαθημάτων[[#Headers],[ΣΑΒΒΑΤΟ]])*(ROUNDDOWN($B51,10)>=ROUNDDOWN(ΛίσταΜαθημάτων[ΩΡΑ ΕΝΑΡΞΗΣ],10))*($B51<=ΛίσταΜαθημάτων[ΩΡΑ ΛΗΞΗΣ]),ΛίσταΜαθημάτων[ΜΟΝΑΔΙΚΗ]),ΛίσταΜαθημάτων[ΜΟΝΑΔΙΚΗ],0),2),0)","v":0}]
[null,"20:00:00",{"$f":"IFERROR(INDEX(ΛίσταΜαθημάτων[],MATCH(SUMPRODUCT((ΛίσταΜαθημάτων[ΗΜΕΡΑ]=ΠρόγραμμαΜαθημάτων[[#Headers],[ΚΥΡΙΑΚΗ]])*(ROUNDDOWN($B52,10)>=ROUNDDOWN(ΛίσταΜαθημάτων[ΩΡΑ ΕΝΑΡΞΗΣ],10))*($B52<=ΛίσταΜαθημάτων[ΩΡΑ ΛΗΞΗΣ]),ΛίσταΜαθημάτων[ΜΟΝΑΔΙΚΗ]),ΛίσταΜαθημάτων[ΜΟΝΑΔΙΚΗ],0),2),0)","v":0},{"$f":"IFERROR(INDEX(ΛίσταΜαθημάτων[],MATCH(SUMPRODUCT((ΛίσταΜαθημάτων[ΗΜΕΡΑ]=ΠρόγραμμαΜαθημάτων[[#Headers],[ΔΕΥΤΕΡΑ]])*(ROUNDDOWN($B52,10)>=ROUNDDOWN(ΛίσταΜαθημάτων[ΩΡΑ ΕΝΑΡΞΗΣ],10))*($B52<=ΛίσταΜαθημάτων[ΩΡΑ ΛΗΞΗΣ]),ΛίσταΜαθημάτων[ΜΟΝΑΔΙΚΗ]),ΛίσταΜαθημάτων[ΜΟΝΑΔΙΚΗ],0),2),0)","v":0},{"$f":"IFERROR(INDEX(ΛίσταΜαθημάτων[],MATCH(SUMPRODUCT((ΛίσταΜαθημάτων[ΗΜΕΡΑ]=ΠρόγραμμαΜαθημάτων[[#Headers],[ΤΡΙΤΗ]])*(ROUNDDOWN($B52,10)>=ROUNDDOWN(ΛίσταΜαθημάτων[ΩΡΑ ΕΝΑΡΞΗΣ],10))*($B52<=ΛίσταΜαθημάτων[ΩΡΑ ΛΗΞΗΣ]),ΛίσταΜαθημάτων[ΜΟΝΑΔΙΚΗ]),ΛίσταΜαθημάτων[ΜΟΝΑΔΙΚΗ],0),2),0)","v":0},{"$f":"IFERROR(INDEX(ΛίσταΜαθημάτων[],MATCH(SUMPRODUCT((ΛίσταΜαθημάτων[ΗΜΕΡΑ]=ΠρόγραμμαΜαθημάτων[[#Headers],[ΤΕΤΑΡΤΗ]])*(ROUNDDOWN($B52,10)>=ROUNDDOWN(ΛίσταΜαθημάτων[ΩΡΑ ΕΝΑΡΞΗΣ],10))*($B52<=ΛίσταΜαθημάτων[ΩΡΑ ΛΗΞΗΣ]),ΛίσταΜαθημάτων[ΜΟΝΑΔΙΚΗ]),ΛίσταΜαθημάτων[ΜΟΝΑΔΙΚΗ],0),2),0)","v":0},{"$f":"IFERROR(INDEX(ΛίσταΜαθημάτων[],MATCH(SUMPRODUCT((ΛίσταΜαθημάτων[ΗΜΕΡΑ]=ΠρόγραμμαΜαθημάτων[[#Headers],[ΠΕΜΠΤΗ]])*(ROUNDDOWN($B52,10)>=ROUNDDOWN(ΛίσταΜαθημάτων[ΩΡΑ ΕΝΑΡΞΗΣ],10))*($B52<=ΛίσταΜαθημάτων[ΩΡΑ ΛΗΞΗΣ]),ΛίσταΜαθημάτων[ΜΟΝΑΔΙΚΗ]),ΛίσταΜαθημάτων[ΜΟΝΑΔΙΚΗ],0),2),0)","v":0},{"$f":"IFERROR(INDEX(ΛίσταΜαθημάτων[],MATCH(SUMPRODUCT((ΛίσταΜαθημάτων[ΗΜΕΡΑ]=ΠρόγραμμαΜαθημάτων[[#Headers],[ΠΑΡΑΣΚΕΥΗ]])*(ROUNDDOWN($B52,10)>=ROUNDDOWN(ΛίσταΜαθημάτων[ΩΡΑ ΕΝΑΡΞΗΣ],10))*($B52<=ΛίσταΜαθημάτων[ΩΡΑ ΛΗΞΗΣ]),ΛίσταΜαθημάτων[ΜΟΝΑΔΙΚΗ]),ΛίσταΜαθημάτων[ΜΟΝΑΔΙΚΗ],0),2),0)","v":0},{"$f":"IFERROR(INDEX(ΛίσταΜαθημάτων[],MATCH(SUMPRODUCT((ΛίσταΜαθημάτων[ΗΜΕΡΑ]=ΠρόγραμμαΜαθημάτων[[#Headers],[ΣΑΒΒΑΤΟ]])*(ROUNDDOWN($B52,10)>=ROUNDDOWN(ΛίσταΜαθημάτων[ΩΡΑ ΕΝΑΡΞΗΣ],10))*($B52<=ΛίσταΜαθημάτων[ΩΡΑ ΛΗΞΗΣ]),ΛίσταΜαθημάτων[ΜΟΝΑΔΙΚΗ]),ΛίσταΜαθημάτων[ΜΟΝΑΔΙΚΗ],0),2),0)","v":0}]
[null,"20:15:00",{"$f":"IFERROR(INDEX(ΛίσταΜαθημάτων[],MATCH(SUMPRODUCT((ΛίσταΜαθημάτων[ΗΜΕΡΑ]=ΠρόγραμμαΜαθημάτων[[#Headers],[ΚΥΡΙΑΚΗ]])*(ROUNDDOWN($B53,10)>=ROUNDDOWN(ΛίσταΜαθημάτων[ΩΡΑ ΕΝΑΡΞΗΣ],10))*($B53<=ΛίσταΜαθημάτων[ΩΡΑ ΛΗΞΗΣ]),ΛίσταΜαθημάτων[ΜΟΝΑΔΙΚΗ]),ΛίσταΜαθημάτων[ΜΟΝΑΔΙΚΗ],0),2),0)","v":0},{"$f":"IFERROR(INDEX(ΛίσταΜαθημάτων[],MATCH(SUMPRODUCT((ΛίσταΜαθημάτων[ΗΜΕΡΑ]=ΠρόγραμμαΜαθημάτων[[#Headers],[ΔΕΥΤΕΡΑ]])*(ROUNDDOWN($B53,10)>=ROUNDDOWN(ΛίσταΜαθημάτων[ΩΡΑ ΕΝΑΡΞΗΣ],10))*($B53<=ΛίσταΜαθημάτων[ΩΡΑ ΛΗΞΗΣ]),ΛίσταΜαθημάτων[ΜΟΝΑΔΙΚΗ]),ΛίσταΜαθημάτων[ΜΟΝΑΔΙΚΗ],0),2),0)","v":0},{"$f":"IFERROR(INDEX(ΛίσταΜαθημάτων[],MATCH(SUMPRODUCT((ΛίσταΜαθημάτων[ΗΜΕΡΑ]=ΠρόγραμμαΜαθημάτων[[#Headers],[ΤΡΙΤΗ]])*(ROUNDDOWN($B53,10)>=ROUNDDOWN(ΛίσταΜαθημάτων[ΩΡΑ ΕΝΑΡΞΗΣ],10))*($B53<=ΛίσταΜαθημάτων[ΩΡΑ ΛΗΞΗΣ]),ΛίσταΜαθημάτων[ΜΟΝΑΔΙΚΗ]),ΛίσταΜαθημάτων[ΜΟΝΑΔΙΚΗ],0),2),0)","v":0},{"$f":"IFERROR(INDEX(ΛίσταΜαθημάτων[],MATCH(SUMPRODUCT((ΛίσταΜαθημάτων[ΗΜΕΡΑ]=ΠρόγραμμαΜαθημάτων[[#Headers],[ΤΕΤΑΡΤΗ]])*(ROUNDDOWN($B53,10)>=ROUNDDOWN(ΛίσταΜαθημάτων[ΩΡΑ ΕΝΑΡΞΗΣ],10))*($B53<=ΛίσταΜαθημάτων[ΩΡΑ ΛΗΞΗΣ]),ΛίσταΜαθημάτων[ΜΟΝΑΔΙΚΗ]),ΛίσταΜαθημάτων[ΜΟΝΑΔΙΚΗ],0),2),0)","v":0},{"$f":"IFERROR(INDEX(ΛίσταΜαθημάτων[],MATCH(SUMPRODUCT((ΛίσταΜαθημάτων[ΗΜΕΡΑ]=ΠρόγραμμαΜαθημάτων[[#Headers],[ΠΕΜΠΤΗ]])*(ROUNDDOWN($B53,10)>=ROUNDDOWN(ΛίσταΜαθημάτων[ΩΡΑ ΕΝΑΡΞΗΣ],10))*($B53<=ΛίσταΜαθημάτων[ΩΡΑ ΛΗΞΗΣ]),ΛίσταΜαθημάτων[ΜΟΝΑΔΙΚΗ]),ΛίσταΜαθημάτων[ΜΟΝΑΔΙΚΗ],0),2),0)","v":0},{"$f":"IFERROR(INDEX(ΛίσταΜαθημάτων[],MATCH(SUMPRODUCT((ΛίσταΜαθημάτων[ΗΜΕΡΑ]=ΠρόγραμμαΜαθημάτων[[#Headers],[ΠΑΡΑΣΚΕΥΗ]])*(ROUNDDOWN($B53,10)>=ROUNDDOWN(ΛίσταΜαθημάτων[ΩΡΑ ΕΝΑΡΞΗΣ],10))*($B53<=ΛίσταΜαθημάτων[ΩΡΑ ΛΗΞΗΣ]),ΛίσταΜαθημάτων[ΜΟΝΑΔΙΚΗ]),ΛίσταΜαθημάτων[ΜΟΝΑΔΙΚΗ],0),2),0)","v":0},{"$f":"IFERROR(INDEX(ΛίσταΜαθημάτων[],MATCH(SUMPRODUCT((ΛίσταΜαθημάτων[ΗΜΕΡΑ]=ΠρόγραμμαΜαθημάτων[[#Headers],[ΣΑΒΒΑΤΟ]])*(ROUNDDOWN($B53,10)>=ROUNDDOWN(ΛίσταΜαθημάτων[ΩΡΑ ΕΝΑΡΞΗΣ],10))*($B53<=ΛίσταΜαθημάτων[ΩΡΑ ΛΗΞΗΣ]),ΛίσταΜαθημάτων[ΜΟΝΑΔΙΚΗ]),ΛίσταΜαθημάτων[ΜΟΝΑΔΙΚΗ],0),2),0)","v":0}]
[null,"20:30:00",{"$f":"IFERROR(INDEX(ΛίσταΜαθημάτων[],MATCH(SUMPRODUCT((ΛίσταΜαθημάτων[ΗΜΕΡΑ]=ΠρόγραμμαΜαθημάτων[[#Headers],[ΚΥΡΙΑΚΗ]])*(ROUNDDOWN($B54,10)>=ROUNDDOWN(ΛίσταΜαθημάτων[ΩΡΑ ΕΝΑΡΞΗΣ],10))*($B54<=ΛίσταΜαθημάτων[ΩΡΑ ΛΗΞΗΣ]),ΛίσταΜαθημάτων[ΜΟΝΑΔΙΚΗ]),ΛίσταΜαθημάτων[ΜΟΝΑΔΙΚΗ],0),2),0)","v":0},{"$f":"IFERROR(INDEX(ΛίσταΜαθημάτων[],MATCH(SUMPRODUCT((ΛίσταΜαθημάτων[ΗΜΕΡΑ]=ΠρόγραμμαΜαθημάτων[[#Headers],[ΔΕΥΤΕΡΑ]])*(ROUNDDOWN($B54,10)>=ROUNDDOWN(ΛίσταΜαθημάτων[ΩΡΑ ΕΝΑΡΞΗΣ],10))*($B54<=ΛίσταΜαθημάτων[ΩΡΑ ΛΗΞΗΣ]),ΛίσταΜαθημάτων[ΜΟΝΑΔΙΚΗ]),ΛίσταΜαθημάτων[ΜΟΝΑΔΙΚΗ],0),2),0)","v":0},{"$f":"IFERROR(INDEX(ΛίσταΜαθημάτων[],MATCH(SUMPRODUCT((ΛίσταΜαθημάτων[ΗΜΕΡΑ]=ΠρόγραμμαΜαθημάτων[[#Headers],[ΤΡΙΤΗ]])*(ROUNDDOWN($B54,10)>=ROUNDDOWN(ΛίσταΜαθημάτων[ΩΡΑ ΕΝΑΡΞΗΣ],10))*($B54<=ΛίσταΜαθημάτων[ΩΡΑ ΛΗΞΗΣ]),ΛίσταΜαθημάτων[ΜΟΝΑΔΙΚΗ]),ΛίσταΜαθημάτων[ΜΟΝΑΔΙΚΗ],0),2),0)","v":0},{"$f":"IFERROR(INDEX(ΛίσταΜαθημάτων[],MATCH(SUMPRODUCT((ΛίσταΜαθημάτων[ΗΜΕΡΑ]=ΠρόγραμμαΜαθημάτων[[#Headers],[ΤΕΤΑΡΤΗ]])*(ROUNDDOWN($B54,10)>=ROUNDDOWN(ΛίσταΜαθημάτων[ΩΡΑ ΕΝΑΡΞΗΣ],10))*($B54<=ΛίσταΜαθημάτων[ΩΡΑ ΛΗΞΗΣ]),ΛίσταΜαθημάτων[ΜΟΝΑΔΙΚΗ]),ΛίσταΜαθημάτων[ΜΟΝΑΔΙΚΗ],0),2),0)","v":0},{"$f":"IFERROR(INDEX(ΛίσταΜαθημάτων[],MATCH(SUMPRODUCT((ΛίσταΜαθημάτων[ΗΜΕΡΑ]=ΠρόγραμμαΜαθημάτων[[#Headers],[ΠΕΜΠΤΗ]])*(ROUNDDOWN($B54,10)>=ROUNDDOWN(ΛίσταΜαθημάτων[ΩΡΑ ΕΝΑΡΞΗΣ],10))*($B54<=ΛίσταΜαθημάτων[ΩΡΑ ΛΗΞΗΣ]),ΛίσταΜαθημάτων[ΜΟΝΑΔΙΚΗ]),ΛίσταΜαθημάτων[ΜΟΝΑΔΙΚΗ],0),2),0)","v":0},{"$f":"IFERROR(INDEX(ΛίσταΜαθημάτων[],MATCH(SUMPRODUCT((ΛίσταΜαθημάτων[ΗΜΕΡΑ]=ΠρόγραμμαΜαθημάτων[[#Headers],[ΠΑΡΑΣΚΕΥΗ]])*(ROUNDDOWN($B54,10)>=ROUNDDOWN(ΛίσταΜαθημάτων[ΩΡΑ ΕΝΑΡΞΗΣ],10))*($B54<=ΛίσταΜαθημάτων[ΩΡΑ ΛΗΞΗΣ]),ΛίσταΜαθημάτων[ΜΟΝΑΔΙΚΗ]),ΛίσταΜαθημάτων[ΜΟΝΑΔΙΚΗ],0),2),0)","v":0},{"$f":"IFERROR(INDEX(ΛίσταΜαθημάτων[],MATCH(SUMPRODUCT((ΛίσταΜαθημάτων[ΗΜΕΡΑ]=ΠρόγραμμαΜαθημάτων[[#Headers],[ΣΑΒΒΑΤΟ]])*(ROUNDDOWN($B54,10)>=ROUNDDOWN(ΛίσταΜαθημάτων[ΩΡΑ ΕΝΑΡΞΗΣ],10))*($B54<=ΛίσταΜαθημάτων[ΩΡΑ ΛΗΞΗΣ]),ΛίσταΜαθημάτων[ΜΟΝΑΔΙΚΗ]),ΛίσταΜαθημάτων[ΜΟΝΑΔΙΚΗ],0),2),0)","v":0}]
[null,"20:45:00",{"$f":"IFERROR(INDEX(ΛίσταΜαθημάτων[],MATCH(SUMPRODUCT((ΛίσταΜαθημάτων[ΗΜΕΡΑ]=ΠρόγραμμαΜαθημάτων[[#Headers],[ΚΥΡΙΑΚΗ]])*(ROUNDDOWN($B55,10)>=ROUNDDOWN(ΛίσταΜαθημάτων[ΩΡΑ ΕΝΑΡΞΗΣ],10))*($B55<=ΛίσταΜαθημάτων[ΩΡΑ ΛΗΞΗΣ]),ΛίσταΜαθημάτων[ΜΟΝΑΔΙΚΗ]),ΛίσταΜαθημάτων[ΜΟΝΑΔΙΚΗ],0),2),0)","v":0},{"$f":"IFERROR(INDEX(ΛίσταΜαθημάτων[],MATCH(SUMPRODUCT((ΛίσταΜαθημάτων[ΗΜΕΡΑ]=ΠρόγραμμαΜαθημάτων[[#Headers],[ΔΕΥΤΕΡΑ]])*(ROUNDDOWN($B55,10)>=ROUNDDOWN(ΛίσταΜαθημάτων[ΩΡΑ ΕΝΑΡΞΗΣ],10))*($B55<=ΛίσταΜαθημάτων[ΩΡΑ ΛΗΞΗΣ]),ΛίσταΜαθημάτων[ΜΟΝΑΔΙΚΗ]),ΛίσταΜαθημάτων[ΜΟΝΑΔΙΚΗ],0),2),0)","v":0},{"$f":"IFERROR(INDEX(ΛίσταΜαθημάτων[],MATCH(SUMPRODUCT((ΛίσταΜαθημάτων[ΗΜΕΡΑ]=ΠρόγραμμαΜαθημάτων[[#Headers],[ΤΡΙΤΗ]])*(ROUNDDOWN($B55,10)>=ROUNDDOWN(ΛίσταΜαθημάτων[ΩΡΑ ΕΝΑΡΞΗΣ],10))*($B55<=ΛίσταΜαθημάτων[ΩΡΑ ΛΗΞΗΣ]),ΛίσταΜαθημάτων[ΜΟΝΑΔΙΚΗ]),ΛίσταΜαθημάτων[ΜΟΝΑΔΙΚΗ],0),2),0)","v":0},{"$f":"IFERROR(INDEX(ΛίσταΜαθημάτων[],MATCH(SUMPRODUCT((ΛίσταΜαθημάτων[ΗΜΕΡΑ]=ΠρόγραμμαΜαθημάτων[[#Headers],[ΤΕΤΑΡΤΗ]])*(ROUNDDOWN($B55,10)>=ROUNDDOWN(ΛίσταΜαθημάτων[ΩΡΑ ΕΝΑΡΞΗΣ],10))*($B55<=ΛίσταΜαθημάτων[ΩΡΑ ΛΗΞΗΣ]),ΛίσταΜαθημάτων[ΜΟΝΑΔΙΚΗ]),ΛίσταΜαθημάτων[ΜΟΝΑΔΙΚΗ],0),2),0)","v":0},{"$f":"IFERROR(INDEX(ΛίσταΜαθημάτων[],MATCH(SUMPRODUCT((ΛίσταΜαθημάτων[ΗΜΕΡΑ]=ΠρόγραμμαΜαθημάτων[[#Headers],[ΠΕΜΠΤΗ]])*(ROUNDDOWN($B55,10)>=ROUNDDOWN(ΛίσταΜαθημάτων[ΩΡΑ ΕΝΑΡΞΗΣ],10))*($B55<=ΛίσταΜαθημάτων[ΩΡΑ ΛΗΞΗΣ]),ΛίσταΜαθημάτων[ΜΟΝΑΔΙΚΗ]),ΛίσταΜαθημάτων[ΜΟΝΑΔΙΚΗ],0),2),0)","v":0},{"$f":"IFERROR(INDEX(ΛίσταΜαθημάτων[],MATCH(SUMPRODUCT((ΛίσταΜαθημάτων[ΗΜΕΡΑ]=ΠρόγραμμαΜαθημάτων[[#Headers],[ΠΑΡΑΣΚΕΥΗ]])*(ROUNDDOWN($B55,10)>=ROUNDDOWN(ΛίσταΜαθημάτων[ΩΡΑ ΕΝΑΡΞΗΣ],10))*($B55<=ΛίσταΜαθημάτων[ΩΡΑ ΛΗΞΗΣ]),ΛίσταΜαθημάτων[ΜΟΝΑΔΙΚΗ]),ΛίσταΜαθημάτων[ΜΟΝΑΔΙΚΗ],0),2),0)","v":0},{"$f":"IFERROR(INDEX(ΛίσταΜαθημάτων[],MATCH(SUMPRODUCT((ΛίσταΜαθημάτων[ΗΜΕΡΑ]=ΠρόγραμμαΜαθημάτων[[#Headers],[ΣΑΒΒΑΤΟ]])*(ROUNDDOWN($B55,10)>=ROUNDDOWN(ΛίσταΜαθημάτων[ΩΡΑ ΕΝΑΡΞΗΣ],10))*($B55<=ΛίσταΜαθημάτων[ΩΡΑ ΛΗΞΗΣ]),ΛίσταΜαθημάτων[ΜΟΝΑΔΙΚΗ]),ΛίσταΜαθημάτων[ΜΟΝΑΔΙΚΗ],0),2),0)","v":0}]
[null,"21:00:00",{"$f":"IFERROR(INDEX(ΛίσταΜαθημάτων[],MATCH(SUMPRODUCT((ΛίσταΜαθημάτων[ΗΜΕΡΑ]=ΠρόγραμμαΜαθημάτων[[#Headers],[ΚΥΡΙΑΚΗ]])*(ROUNDDOWN($B56,10)>=ROUNDDOWN(ΛίσταΜαθημάτων[ΩΡΑ ΕΝΑΡΞΗΣ],10))*($B56<=ΛίσταΜαθημάτων[ΩΡΑ ΛΗΞΗΣ]),ΛίσταΜαθημάτων[ΜΟΝΑΔΙΚΗ]),ΛίσταΜαθημάτων[ΜΟΝΑΔΙΚΗ],0),2),0)","v":0},{"$f":"IFERROR(INDEX(ΛίσταΜαθημάτων[],MATCH(SUMPRODUCT((ΛίσταΜαθημάτων[ΗΜΕΡΑ]=ΠρόγραμμαΜαθημάτων[[#Headers],[ΔΕΥΤΕΡΑ]])*(ROUNDDOWN($B56,10)>=ROUNDDOWN(ΛίσταΜαθημάτων[ΩΡΑ ΕΝΑΡΞΗΣ],10))*($B56<=ΛίσταΜαθημάτων[ΩΡΑ ΛΗΞΗΣ]),ΛίσταΜαθημάτων[ΜΟΝΑΔΙΚΗ]),ΛίσταΜαθημάτων[ΜΟΝΑΔΙΚΗ],0),2),0)","v":0},{"$f":"IFERROR(INDEX(ΛίσταΜαθημάτων[],MATCH(SUMPRODUCT((ΛίσταΜαθημάτων[ΗΜΕΡΑ]=ΠρόγραμμαΜαθημάτων[[#Headers],[ΤΡΙΤΗ]])*(ROUNDDOWN($B56,10)>=ROUNDDOWN(ΛίσταΜαθημάτων[ΩΡΑ ΕΝΑΡΞΗΣ],10))*($B56<=ΛίσταΜαθημάτων[ΩΡΑ ΛΗΞΗΣ]),ΛίσταΜαθημάτων[ΜΟΝΑΔΙΚΗ]),ΛίσταΜαθημάτων[ΜΟΝΑΔΙΚΗ],0),2),0)","v":0},{"$f":"IFERROR(INDEX(ΛίσταΜαθημάτων[],MATCH(SUMPRODUCT((ΛίσταΜαθημάτων[ΗΜΕΡΑ]=ΠρόγραμμαΜαθημάτων[[#Headers],[ΤΕΤΑΡΤΗ]])*(ROUNDDOWN($B56,10)>=ROUNDDOWN(ΛίσταΜαθημάτων[ΩΡΑ ΕΝΑΡΞΗΣ],10))*($B56<=ΛίσταΜαθημάτων[ΩΡΑ ΛΗΞΗΣ]),ΛίσταΜαθημάτων[ΜΟΝΑΔΙΚΗ]),ΛίσταΜαθημάτων[ΜΟΝΑΔΙΚΗ],0),2),0)","v":0},{"$f":"IFERROR(INDEX(ΛίσταΜαθημάτων[],MATCH(SUMPRODUCT((ΛίσταΜαθημάτων[ΗΜΕΡΑ]=ΠρόγραμμαΜαθημάτων[[#Headers],[ΠΕΜΠΤΗ]])*(ROUNDDOWN($B56,10)>=ROUNDDOWN(ΛίσταΜαθημάτων[ΩΡΑ ΕΝΑΡΞΗΣ],10))*($B56<=ΛίσταΜαθημάτων[ΩΡΑ ΛΗΞΗΣ]),ΛίσταΜαθημάτων[ΜΟΝΑΔΙΚΗ]),ΛίσταΜαθημάτων[ΜΟΝΑΔΙΚΗ],0),2),0)","v":0},{"$f":"IFERROR(INDEX(ΛίσταΜαθημάτων[],MATCH(SUMPRODUCT((ΛίσταΜαθημάτων[ΗΜΕΡΑ]=ΠρόγραμμαΜαθημάτων[[#Headers],[ΠΑΡΑΣΚΕΥΗ]])*(ROUNDDOWN($B56,10)>=ROUNDDOWN(ΛίσταΜαθημάτων[ΩΡΑ ΕΝΑΡΞΗΣ],10))*($B56<=ΛίσταΜαθημάτων[ΩΡΑ ΛΗΞΗΣ]),ΛίσταΜαθημάτων[ΜΟΝΑΔΙΚΗ]),ΛίσταΜαθημάτων[ΜΟΝΑΔΙΚΗ],0),2),0)","v":0},{"$f":"IFERROR(INDEX(ΛίσταΜαθημάτων[],MATCH(SUMPRODUCT((ΛίσταΜαθημάτων[ΗΜΕΡΑ]=ΠρόγραμμαΜαθημάτων[[#Headers],[ΣΑΒΒΑΤΟ]])*(ROUNDDOWN($B56,10)>=ROUNDDOWN(ΛίσταΜαθημάτων[ΩΡΑ ΕΝΑΡΞΗΣ],10))*($B56<=ΛίσταΜαθημάτων[ΩΡΑ ΛΗΞΗΣ]),ΛίσταΜαθημάτων[ΜΟΝΑΔΙΚΗ]),ΛίσταΜαθημάτων[ΜΟΝΑΔΙΚΗ],0),2),0)","v":0}]

{"sheet":"Λίστα μαθημάτων","index":1,"n_rows":10,"n_cols":8,"rows_kept":10,"merged":[[0,1,0,5],[0,6,0,7]]}
[null,"ΛΊΣΤΑ ΜΑΘΗΜΆΤΩΝ",{"$nulls":4},"Πρόγραμμα μαθημάτων"]
[null,"ΜΑΘΗΜΑ","Αναγνωριστικό","ΗΜΕΡΑ","ΘΕΣΗ","ΩΡΑ ΕΝΑΡΞΗΣ","ΩΡΑ ΛΗΞΗΣ","ΜΟΝΑΔΙΚΗ"]
[null,"Σύνταξη τεχνικού κειμένου","WR-121","ΔΕΥΤΕΡΑ","Κτίριο Α","13:00:00","14:00:00",{"$f":"ROW()-ROW(ΛίσταΜαθημάτων[[#Headers],[ΜΟΝΑΔΙΚΗ]])","v":1}]
[null,"Σύνταξη τεχνικού κειμένου","WR-121","ΤΕΤΑΡΤΗ","Κτίριο Α","13:00:00","14:00:00",{"$f":"ROW()-ROW(ΛίσταΜαθημάτων[[#Headers],[ΜΟΝΑΔΙΚΗ]])","v":2}]
[null,"Δημόσια ομιλία","SP-111","ΔΕΥΤΕΡΑ","Κτίριο Β","16:00:00","17:00:00",{"$f":"ROW()-ROW(ΛίσταΜαθημάτων[[#Headers],[ΜΟΝΑΔΙΚΗ]])","v":3}]
[null,"Υγεία και φυσική κατάσταση","HPE-295","ΤΡΙΤΗ","Κτίριο Β","11:00:00","12:00:00",{"$f":"ROW()-ROW(ΛίσταΜαθημάτων[[#Headers],[ΜΟΝΑΔΙΚΗ]])","v":4}]
[null,"Υγεία και φυσική κατάσταση","HPE-295","ΠΕΜΠΤΗ","Κτίριο Β","11:00:00","12:00:00",{"$f":"ROW()-ROW(ΛίσταΜαθημάτων[[#Headers],[ΜΟΝΑΔΙΚΗ]])","v":5}]
[null,"Άλγεβρα","MTH-113","ΔΕΥΤΕΡΑ","Κτίριο Γ","08:10:00","09:15:00",{"$f":"ROW()-ROW(ΛίσταΜαθημάτων[[#Headers],[ΜΟΝΑΔΙΚΗ]])","v":6}]
[null,"Άλγεβρα","MTH-113","ΤΕΤΑΡΤΗ","Κτίριο Γ","08:10:00","09:15:00",{"$f":"ROW()-ROW(ΛίσταΜαθημάτων[[#Headers],[ΜΟΝΑΔΙΚΗ]])","v":7}]
[null,"Άλγεβρα","MTH-113","ΠΑΡΑΣΚΕΥΗ","Κτίριο Γ","08:10:00","09:15:00",{"$f":"ROW()-ROW(ΛίσταΜαθημάτων[[#Headers],[ΜΟΝΑΔΙΚΗ]])","v":8}]